Workbook

Sheet Design the Converter
A1: LMR604x0 36VIN, 3AOUT, 4AOUT Converter Design Tool
O2: http://www.ti.com/product/lm5175
A3: About | C3: xx | F3: = Input Box | O3: TERMS OF USE
A5: Step 1: Operating Specifications
D6: Device | E6: LMR60440
D7: Input Voltage – Min, VIN(min) | E7: 9 | F7: V
D8: Input Voltage – Nom, VIN(nom) | E8: 12 | F8: V
D9: Input Voltage – Max, VIN(max) | E9: 18 | F9: V
D10: Output Voltage, VOUT | E10: 6 | F10: V
D11: Full Load Output Current, IOUT | E11: 3 | F11: A
D12: Switching Frequency, FSW | E12: 400 | F12: kHz
D13: Frequency Set Resistor, RT | E13: ='Variable Management'!C352 -> 86.6 | F13: ='Variable Management'!E352 -> kΩ
D14: Ambient Temperature, TA | E14: 25 | F14: °C
D15: Light-Load Operating Mode
A18: Step 2: Buck Inductor
D19: Inductance for 35% Ripple Current at VIN(nom) | E19: =Lopt*1000000 -> 7.142857143 | F19: µH
D20: Buck Inductance, LO | E20: 5.6 | F20: µH
D21: Inductor DCR at 25°C | E21: 200 | F21: mΩ
D22: Inductor Pk-Pk Ripple Current at VIN(nom) | E22: ='Variable Management'!B73 -> 1.309433962 | F22: Apk-pk
D23: DIL as a % of Full Load at VIN(nom) | E23: ='Variable Management'!D73*100 -> 43.64779874 | F23: %
D24: Peak Inductor Current at VIN(max) and Full Load | E24: ='Variable Management'!B110 -> 3.937656904 | F24: Apk
D25: Peak Inductor Current Limit at VIN(nom) | E25: =Ipk_OCP_Vinnom -> 5.792115723 | F25: Apk
D26: Estimate Inductor Core Loss at VIN(nom) | E26: 0.1 | F26: W
A28: Step 3: Output Capacitors
D29: Desired Output Voltage Ripple | E29: 100 | F29: mVpk-pk
D30: Effective COUT Value to Meet Ripple Spec | E30: ='Variable Management'!B124 -> 10 | F30: µF
D31: Desired Crossover Frequency | E31: 62 | F31: =" kHz " -> kHz
D32: Effective COUT Value to Meet Crossover Spec | E32: ='Variable Management'!B220 -> 35.78616671 | F32: µF
D33: Output Capacitance (derated), COUT | E33: 35.2 | F33: µF
D34: Output Cap ESR (Max) to Meet Ripple Spec | E34: 1 | F34: mΩ
D35: Output Capacitor ESR | E35: 1 | F35: mΩ
D36: Resulting Output Voltage Ripple (max) | E36: ='Variable Management'!B130*1000 -> 11.69846127 | F36: mVpk-pk
D37: Output Capacitor RMS Current (max) | E37: ='Variable Management'!B117 -> 0.5413564658 | F37: A (rms)
D38: Effective Crossover Frequency | E38: ='Stability Calculations'!AK7 -> 45.1885 | F38: kHz
A40: Step 4: Input Capacitors
D41: Input Voltage Ripple Spec | E41: 120 | F41: mVpk-pk
D42: Minimum Input Capacitance | E42: ='Variable Management'!B147 -> 15.625 | F42: µF
D43: Input Capacitance (derated), CIN | E43: 20 | F43: µF
D44: Maximum Permitted ESR | E44: ='Variable Management'!B152 -> 6.66640102 | F44: mΩ | L44: =CHOOSE(SCH_MODE, "", "** For Single-Output Operation in 2-Phase Mode, tie MODE to VDDA and use FB1 to set VOUT **", "** For Single-Output Operation in 3-Phase Mode, tie both MODE pins to VDDA. Use FB1 of master IC to set VOUT. Connect FB2 of master IC to AGND. Connect FB2 of slave IC to VDDA to configure it as a slave **", "** For Single-Output Operation in 4-Phase Mode, tie both MODE pins to VDDA. Use FB1 of master IC to set VOUT. Connect FB2 of master IC to AGND. Connect FB2 of slave IC to VDDA to configure it as a slave **") -> 
D45: Input Capacitor ESR | E45: 2 | F45: mΩ
D46: Resulting Input Voltage Ripple (max) | E46: ='Variable Management'!B157*1000 -> 101.6253138 | F46: mVpk-pk | L46: =CHOOSE(SCH_MODE, "", "** For Single-Output Operation in 2-Phase Mode, tie MODE to VDDA and use FB1 to set VOUT **", "** For Single-Output Operation in 3-Phase Mode, tie both MODE pins to VDDA. Use FB1 of master IC to set VOUT. Connect FB2 of master IC to AGND. Connect FB2 of slave IC to VDDA to configure it as a slave **", "** For Single-Output Operation in 4-Phase Mode, tie both MODE pins to VDDA. Use FB1 of master IC to set VOUT. Connect FB2 of master IC to AGND. Connect FB2 of slave IC to VDDA to configure it as a slave **") -> 
D47: Input Capacitor RMS Current (max) | E47: ='Variable Management'!B140 -> 1.5 | F47: A (rms)
A49: Step 5: Feedback Network
D50: =CHOOSE(LMR604x0_FB_sel, "Upper Feedback Resistance (E96), RFBT", "* Tie FB to VOUT for a Fixed 5V Output*", "*Tie FB to VOUT for a Fixed 3.3V Output*") -> Upper Feedback Resistance (E96), RFBT | E50: 100 | F50: kΩ
D51: =CHOOSE(LMR604x0_FB_sel, "Lower Feedback Resistance (E96), RFBB", "","") -> Lower Feedback Resistance (E96), RFBB | E51: =IF(Vout=Vref,"OPEN",Rfb2_u/1000) -> 20 | F51: =IF(Vout=Vref,"","kΩ") -> kΩ
D52: =CHOOSE(LMR604x0_FB_sel, "Feedforward Capacitance, CFF", "*Select drop table as No CFF*", "*Select drop table as No CFF*") -> Feedforward Capacitance, CFF | E52: 100 | F52: pF
A54: Step 6: VIN UVLO
D55: Desired VIN UVLO Turn-On Threshold | E55: 3.5 | F55: V
D56: UVLO Divider Upper Resistance, RENT | E56: 175 | F56: kΩ
D57: UVLO Divider Lower Resistance (E96), RENB | E57: =Renb_u/1000 -> 100 | F57: =IF(Vout=Vref,"","kΩ") -> kΩ
D58: Actual VIN UVLO Turn-On Threshold | E58: =1.263/E57*(E56+E57) -> 3.47325 | F58: V
D59: Actual VIN UVLO Turn-Off Threshold | E59: =E58*0.72 -> 2.50074 | F59: V
A62: Step 7: Power Loss & Thermals
D63: IC Power Dissipation | E63: ='Efficiency Calculations'!BE109 -> 0.6368792718 | F63: W
D64: Junction Temperature (estimate) | E64: ='Variable Management'!B296 -> 78.75261054 | F64: °C
E65: =CHOOSE(Ext_VCC, "* Tie FB pin to VOUT", "* Tie FB pin to VOUT Resistor Divider") -> * Tie FB pin to VOUT Resistor Divider
A68: Pole/Zero Frequencies
D69: Load Pole Frequency, FP-LOAD | E69: =Fp_dominant/1000 -> 4.835091601 | F69: kHz
D70: Output Cap ESR Zero Frequency, FZ-ESR | E70: =Fesr/1000000 -> 4.521447252 | F70: MHz
D71: Error Amp Dominant Pole Frequency, FP-EA | E71: =Fp1_u -> 11.78925506 | F71: Hz
D72: Compensator Zero Frequency, FZ-COMP | E72: =Fz1_u/1000 -> 10.10507576 | F72: kHz
D73: Compensator Pole Frequency, FP-COMP | E73: =Fp2_u_simplified/1000 -> 2115.329193 | F73: kHz

Sheet Variable Management (hidden)
A1: EXCEL Variables Names/Calculations
B2: Input from user = | E2: Good
B3: Output =
B4: Constant
A5: Variable Name | B5: Value | C5: STD Units | E5: Notes | I5: Iteration
K7: Device GPN | O7: Use feedforward cap | P7: Use CFF | Q7: 1 | S7: BOM Variant | T7: LMR60440 5V | U7: 1 | Y7: selector used in power loss and thermal calculations
L8: LMR60440 | P8: No CFF | Q8: 2 | T8: LMR60440 3.3V | U8: 2 | Y8: Fixed Output | Z8: 1
L9: LMR60430 | P9: Result | Q9: 2 | T9: LMR60440 ADJ | U9: 3 | Y9: Adjustable Output | Z9: 2
P10: No FF | Q10: =IF(Q9=2, TRUE, FALSE) -> TRUE | T10: LMR60430 5V | U10: 4 | Y10: Ext_VCC | Z10: =IF(VOUT_FIXED = TRUE, 1, 2) -> 2
K11: Device Selected | L11: =Device -> LMR60440 | T11: LMR60430 3.3V | U11: 5
T12: LMR60430 ADJ | U12: 6
S14: 4A fixed BOM Variant Selected | U14: =IF(AND(Device="LMR60440",Vout=5),1,IF(AND(Device="LMR60440",Vout=3.3),2,0)) -> 0 | V14: 1 =5V, 4A; 2 = 3.3V, 4A
S15: 3A fixed BOM Variant Selected | U15: =IF(AND(Device="LMR60430",Vout=5),4,IF(AND(Device="LMR60430",Vout=3.3),5,0)) -> 0 | V15: 4 = 5V, 3A; 5 = 3.3V, 3A
S16: 4A BOM Variant Adj | U16: =IF(AND(AND(SelectFixed4A = 0, SelectFixed3A = 0), Device = "LMR60440"),3,) -> 3 | V16: Shows 3 if adj 4A
S17: 3A adj BOM Variant Selected | U17: =IF(AND(AND(SelectFixed4A = 0, SelectFixed3A = 0), Device = "LMR60430"),6,) -> 0 | V17: Shows 6 if adj 3A
S18: BOM Selector | U18: =SUM(U14:U17) -> 3
A19: Step 1: Operational Specs
A20: VIN_min | B20: ='Design the Converter'!E7 -> 9 | C20: V | D20: Minimum input voltage | I20: 1 | K20: Used in Step 5: Feedback Network | O20: Used in efficiency calculations for single/dual phase | R20: Single/Dual Yes/No | S20: 1 | U20: Selector used in schematic design. Mode = RT for FPWM, Mode = GND for DEM | X20: Selector used in Bode plot manager Set to single channel.
A21: VIN_nom | B21: ='Design the Converter'!E8 -> 12 | C21: V | D21: Nominal input voltage | K21: LMR604x0 3.3Vout | L21: =IF(Vout = 3.3, 1, 0) -> 0 | R21: MODE (Single/Dual), DUAL = 1, SINGLE = 2 | S21: =IF(S20=1, 1, 2) -> 1 | U21: FPWM | V21: 1 | Y21: =CHOOSE(SCH_MODE, "Bode Plot (Ch1)", "Bode Plot - 2 Ph", "Bode Plot - 3 Ph", "Bode Plot - 4 Ph") -> Bode Plot (Ch1) | Z21: 1
A22: VIN_max | B22: ='Design the Converter'!E9 -> 18 | C22: V | D22: Maximum input voltage | K22: LMR604x0 5Vout | L22: =IF(Vout = 5, 1, 0) -> 0 | R22: SINGLE OUTPUT (1 = YES) | S22: =IF(S20=1, 2, 1) -> 2 | U22: DEM | V22: 2 | Y22: =IF(MODE=1, "Bode Plot (Ch2)", "N/A - Do Not Use") -> Bode Plot (Ch2) | Z22: 2
K23: Connection Point | L23: =IF(Vout=3.3,3,IF(Vout=5,2,1)) -> 1 | M23: 1 = No, 2 = 5V, 3 = 3.3V | R23: Number of Phases | S23: =SCH_MODE -> 1 | U23: FPWM/DEM | V23: 2 | Y23: BODE_PLOT_TYPE | Z23: 1
A24: Vout | B24: ='Design the Converter'!E10 -> 6 | C24: V | D24: Output voltage | K24: Fixed VOUT | L24: =OR(L21,L22) -> FALSE | M24: If VOUT = 5 or 3.3
A25: Iout | B25: ='Design the Converter'!E11 -> 3 | C25: A | D25: Output current | F25: Iout-max | G25: =CHOOSE(GPN, 6, 6) ->  | H25: A | I25: 1
I26: 1
A27: Rout | B27: =Vout/Iout -> 2 | C27: W | D27: Load resistance | N27: This defines the schematic variant
A28: Pout | B28: =Vout*Iout -> 18 | C28: W | D28: Output power | R28: Schematic Look-up Table | U28: Value
N29: Schematic variant definition | O29: LMR60440_Fix_FPWM | P29: 1 | R29: If (Bom selector = 1 or 2 or 4 or 5) & DEMB = 1, do variant 1 | U29: =IF(AND(OR(BOM_sel = 1, BOM_sel = 2, BOM_sel = 4, BOM_sel =5), DEMB = 1),1,) -> 0
A30: Efficiency | B30: 0.9 | D30: Estimate of efficiency | O30: LMR60440_Adj_FPWM | P30: 2 | R30: if (BOM selector = 3 or 6) & DEMB = 1, do variant 2 | U30: =IF(AND(OR(BOM_sel = 3, BOM_sel = 6), DEMB = 1),2,) -> 0
A31: Pin | B31: =Pout/Efficiency -> 20 | C31: W | D31: Calculate input power assuming finite efficiency | O31: LMR60440_Fix_DEM | P31: 3 | R31: If (Bom selector = 1 or 2 or 4 or 5) & DEMB = 2, do variant 3 | U31: =IF(AND(OR(BOM_sel = 1, BOM_sel = 2, BOM_sel = 4, BOM_sel =5), DEMB = 2),3,) -> 0
O32: LMR60440_Adj_DEM | P32: 4 | R32: If (Bom selector = 3 or 6) & DEMB = 2, do variant 4 | U32: =IF(AND(OR(BOM_sel = 3, BOM_sel = 6), DEMB = 2),4,) -> 4
A33: Iin_Vinmin | B33: =Pin/VIN_min -> 2.222222222 | C33: A | R33: Result | U33: =SUM(U29:U32) -> 4
A34: Iin_Vinnom | B34: =Pin/VIN_nom -> 1.666666667 | C34: A | D34: Input currents at min, nom, max Vin | H34: =AND(OSC=1, OR(Fsw/1000>2530, Fsw/1000<1800)) -> FALSE | T34: VARIANT | U34: =U33 -> 4
A35: Iin_Vinmax | B35: =Pin/VIN_max -> 1.111111111 | C35: A | H35: =AND(OSC=2, OR(Fsw/1000>500, Fsw/1000<300)) -> FALSE
H36: =OR(H34,H35) -> FALSE
A37: Fsw | B37: ='Design the Converter'!E12*1000 -> 400000 | C37: Hz | D37: Nominal switching frequency - determines RT resistor
A38: RT resistor to AGND | B38: =((1/Fsw-(30*10^-9))/(2.825*10^-11))/1000 -> 87.43362832 | C38: kΩ | I38: 1 | K38: basically if has fixed RT option
A39: Tsw | B39: =1/Fsw -> 2.5e-06 | C39: sec | D39: Switching period
A40: Max crossover frequency = 20% Fsw | B40: =Fsw*0.2/1000 -> 80 | C40: kHz | F40: Min Crossover | G40: 10 | K40: Adjustable
A41: Vref | B41: 1 | C41: V | D41: Reference voltage | K41: 5V
A42: Rt | B42: ='Standard Value Calculator'!O12/1000 -> 86.6 | C42: kΩ | D42: Frequency set resistor | F42: =IF(OR((Fsw=440000),(Fsw=2200000)),"N/A",Rfadj/1000) -> 0.0866 | K42: 3.3V | L42: 1
K43: Adjustable_NoRT | L43: 2
K44: 5V_NoRT | L44: 3
K45: 3.3V_NoRT | L45: 4
A46: Step 2: Buck Inductor | B46: Channel 1 | K46: Schematic setting | L46: 5
A47: Don1 | B47: =Vout/VIN_nom -> 0.5 | F47: Ideal Duty Cycle at VIN(nom) | L47: 6
A48: Doff1 | B48: =1-B47 -> 0.5 | F48: Ideal 1- Duty Cycle at VIN(nom) | L48: =IF(No_RT, IF(Vout=3.3, 6, IF(Vout=5, 5, 4)),IF(Vout=3.3, 3, IF(Vout=5, 2, 1))) -> 1
A50: D_Vinmin | B50: =Vout/VIN_min -> 0.6666666667
A51: D_Vinnom | B51: =Vout/VIN_nom -> 0.5
A52: D_Vinmax | B52: =Vout/VIN_max -> 0.3333333333
A54: L_Vinnom | B54: =(VIN_nom-Vout)*D1_Vinnom/(Fsw*Iout*0.35) -> 7.142857143e-06 | C54: H | F54: Calculated inductance for 35% ripple at VIN(nom)
A55: L_slopecomp | B55: =0.27*Vout/Fsw -> 4.05e-06 | C55: H | D55: Matches DS | F55: Calculated inductance based on one times inductor downslope
A57: Lopt | B57: =B54 -> 7.142857143e-06 | C57: H | F57: min of calculated inductances at VIN(min) and VIN(nom)
A58: L_actual_TPSM63602-03 | B58: =-0.0238*Iout^2-0.0868*Iout+2.0073 -> 1.5327 | C58: uH | F58: Calculate TOKO chip inductance based on entered load current value
A59: L_actual_TPSM63604-06 | B59: =-0.1304*Iout+2.32 -> 1.9288 | C59: uH | F59: Calculate MagLayers inductance based on entered load current value
A61: Lo | B61: ='Design the Converter'!E20*0.000001 -> 5.6e-06 | C61: H | F61: Chosen inductance
A62: Rdcr | B62: ='Design the Converter'!E21/1000 -> 0.2 | C62: W | F62: Chosen inductor DCR
A64: Don2 | B64: =(Vout+Iout*(Rdcr+Rdson2))/(Vin+Iout*(Rdson2-Rdson1)) -> 0.5635220126
A65: Doff2 | B65: =1-_Don2 -> 0.4364779874
A67: D_Vinmin_2 | B67: =(Vout+Iout*(Rdcr+Rdson2))/(VIN_min+Iout*(Rdson2-Rdson1)) -> 0.7529411765 | D67: =Vout/VIN_min -> 0.6666666667 | F67: Duty cycles adjusted for DCR/Rdson voltage drops
A68: D_Vinnom_2 | B68: =(Vout+Iout*(Rdcr+Rdson2))/(VIN_nom+Iout*(Rdson2-Rdson1)) -> 0.5635220126 | D68: =Vout/VIN_nom -> 0.5
A69: D_Vinmax_2 | B69: =(Vout+Iout*(Rdcr+Rdson2))/(VIN_max+Iout*(Rdson2-Rdson1)) -> 0.3748953975 | D69: =Vout/VIN_max -> 0.3333333333 | F69: =(Ts-0.000000085)/Ts -> 0.966 | G69: Dmax = [Ts-toff(min)]/Ts
A72: Iripple_Vinmin | B72: =(VIN_min-Vout-Iout*(Rdcr+Rdson1))*D1_Vinmin_2/(Fsw*Lf) -> 0.7411764706 | C72: A | D72: =B72/Iout -> 0.2470588235 | F72: Ripple calculations include DCR and Rdson
A73: Iripple_Vinnom | B73: =(VIN_nom-Vout-Iout*(Rdcr+Rdson1))*D1_Vinnom_2/(Fsw*Lf) -> 1.309433962 | C73: A | D73: =B73/Iout -> 0.4364779874 | F73: % ripple current at Vin-nom
A74: Iripple_Vinmax | B74: =(VIN_max-Vout-Iout*(Rdcr+Rdson1))*D1_Vinmax_2/(Fsw*Lf) -> 1.875313808 | C74: A | D74: =B74/Iout -> 0.6251046025 | F74: Max inductor ripple current - it's at Vin-max
A76: Iinductor_rms_Vinmin | B76: =SQRT(Iout^2+(Iripple_Vinmin^2)/12) -> 3.00762008 | C76: A
A77: Iinductor_rms_Vinnom | B77: =SQRT(Iout^2+(Iripple_Vinnom^2)/12) -> 3.023720353 | C77: A
A78: Iinudctor_rms_Vinmax | B78: =SQRT(Iout^2+(Iripple_Vinmax^2)/12) -> 3.048453185 | C78: A
A81: Core loss estimate - Vin(nom) | B81: ='Design the Converter'!E26 -> 0.1 | C81: W
A84: Inductor copper temperature | B84: 125 | C84: °C
A85: Inductor DCR at hot | B85: =Rdcr*(1+Ltc*(B84-25))*1000 -> 278.6 | C85: mW
A88: Step 2b: Sense Resistors, Slope Comp, Current Limit
A90: Ilimit_inductor_Vinmin | B90: =Ipk_OCP_Vinmin -> 5.419717647 | C90: A | D90: refers to B87 | F90: Peak inductor current at current limit inception
A91: Ilimit_inductor_Vinnom | B91: =Ipk_OCP_Vinnom -> 5.792115723 | C91: A | D91: refers to B88
A92: Ilimit_inductor_Vinmax | B92: =Ipk_OCP_Vinmax -> 6.162955649 | C92: A | D92: refers to B89
A94: CS threshold_min | B94: 0.068 | C94: V | D94: not applicable here
A95: CS threshold | B95: 0.075 | C95: V | D95: not applicable here
A96: CS threshold_max | B96: 0.082 | C96: V | D96: not applicable here
A98: Rs | B98: 0.065 | C98: W | F98: Current sense resistance Rs = 0.12Ohm: high-side MOSFET Rdson
A100: Current limit setpoint - peak - Vin(min) | B100: =6.9-(1.966)*MAX(0, (D1_Vinmin_2)) -> 5.419717647 | C100: A | E100: 6.9-1.966*MAX(0, (D1_Vinmin_2)) (original) | F100: Golf Peak Current limit can be defined that at 100% duty cycle, the current limit will drop by 28.5% from the 0% duty cycle current limit (6.9A nominal)
A101: Current limit setpoint - peak - Vin(nom) | B101: =6.9-(1.966)*MAX(0, (D1_Vinnom_2)) -> 5.792115723 | C101: A | F101: Peak current limit (6.9A trimmed at ATE minus slope comp contribution) = min inductor sat current at hot
A102: Current limit setpoint - peak - Vin(max) | B102: =6.9-(1.966)*MAX(0, (D1_Vinmax_2)) -> 6.162955649 | C102: A
A104: Iout_OCP_Vinmin | B104: =Ipk_OCP_Vinmin-Iripple_Vinmin/2 -> 5.049129412 | C104: A | F104: Current limit setpoints (i.e. IOUT) assuming no CS delay
A105: Iout_OCP_Vinnom | B105: =Ipk_OCP_Vinnom-Iripple_Vinnom/2 -> 5.137398742 | C105: A
A106: Iout_OCP_Vinmax | B106: =Ipk_OCP_Vinmax-Iripple_Vinmax/2 -> 5.225298745 | C106: A
A108: Ipk_full-load_Vinmin | B108: =Iout+Iripple_Vinmin/2 -> 3.370588235 | C108: A
A109: Ipk_full-load_Vinnom | B109: =Iout+Iripple_Vinnom/2 -> 3.654716981 | C109: A
A110: Ipk_full-load_Vinmax | B110: =Iout+Iripple_Vinmax/2 -> 3.937656904 | C110: A
A113: Step 3: Output Capacitor
A114: Icoutrms_VINmin | B114: =Iripple_Vinmin/SQRT(12) -> 0.2139592174 | C114: A | F114: Output cap RMS current
A115: Icoutrms_VINnom | B115: =Iripple_Vinnom/SQRT(12) -> 0.3780010253 | C115: A
A116: Icoutrms_VINmax | B116: =Iripple_Vinmax/SQRT(12) -> 0.5413564658 | C116: A
A117: Max Cout rms current | B117: =MAX(B114:B116) -> 0.5413564658 | C117: A
A119: Vripple1 | B119: ='Design the Converter'!E29/1000 -> 0.1 | C119: V | F119: Output voltage ripple spec(pk-pk)
A121: Output Ripple Spec (pk-pk) | B121: =Vo1_ripple*1000 -> 100 | C121: mV | F121: Vout ripple spec at Vin(nom)
A123: Coutmin | B123: =Iripple_Vinnom/(Fsw*8*Vo1_ripple) -> 4.091981132e-06 | C123: F | F123: Minimum output capacitnace | H123: =Vo2_ripple -> 0 | I123: 1
A124: Reported Coutmin | B124: =IF(Cout_min*1000000<10, 10,Cout_min*1000000) -> 10 | C124: uF
A125: Cout | B125: ='Design the Converter'!E33/1000000 -> 3.52e-05 | C125: F | F125: Chosen output capacitance | I125: 1
A126: Resrmax | B126: =SQRT((Vo1_ripple/Iripple_Vinnom)^2-(1/(Fsw*Cout*8))^2) -> 0.0758510987 | C126: W | F126: Max ESR before ripple exceeds Vripple1. Terms are squared because the voltage ripple from ESR and output capacitor are out of phase, so you need to treat the ripples like you're summing two orthogonal vectors. | I126: 1
A128: Reported Cout ESR max | B128: =IF(OR(CoutEsrMax>0.3, CoutEsrMax<0, (ISERROR(CoutEsrMax))), "N/A", CoutEsrMax*1000) -> 75.8510987 | C128: mΩ
A129: CoutEsr | B129: ='Design the Converter'!E35/1000 -> 0.001 | C129: W | F129: Chosen ESR | I129: 1 | K129: =ISERROR(CoutEsrMax) -> FALSE
A130: Vripple | B130: =Iripple_Vinnom*SQRT(Cout_ESR^2+(1/(8*Fsw*Cout))^2) -> 0.01169846127 | C130: Vp-p
K131: =OR(TRUE, FALSE, TRUE) -> TRUE | L131: =ISERROR(B128) -> FALSE
A132: Step 4: Input Capacitor | L132: =OR(CoutEsrMax>0.3,CoutEsrMax<0) -> FALSE
A134: Icinrms_VINmin | B134: =SQRT(D1_Vinmin_2*(Iout^2*(1-D1_Vinmin_2)+Iripple_Vinmin^2/12)) -> 1.307155463 | C134: A | F134: Calculate input cap rms current
A135: Icinrms_VINnom | B135: =SQRT(D1_Vinnom_2*(Iout^2*(1-D1_Vinnom_2)+Iripple_Vinnom^2/12)) -> 1.514662768 | C135: A
A136: Icinrms_VINmax | B136: =SQRT(D1_Vinmax_2*(Iout^2*(1-D1_Vinmax_2)+Iripple_Vinmax^2/12)) -> 1.489633831 | C136: A | O136: A
A137: Max Cin rms current | B137: =MAX(B134:B136) -> 1.514662768 | C137: A
A139: Icinrms - max at D = 0.5 | B139: =Iout/2 -> 1.5 | C139: A
A140: Final result | B140: =IF(VIN_min<2*Vout, Iout/2, B134) -> 1.5 | C140: A | D140: …report this
A142: Vinripple1 | B142: ='Design the Converter'!E41/1000 -> 0.12 | C142: Vp-p | F142: Input voltage ripple spec (pk-pk)
F143: =Number_of_Phases -> 1
A144: Cinmin_Vinmax | B144: =Iout*D1_Vinmax*(1-D1_Vinmax)/(Vinripple1*Fsw) -> 1.388888889e-05 | C144: F | F144: Calculate cap at Vinmax and 50% duty cycle (Vin = 2*Vout)
A145: Cinmin_50%D | B145: =Iout*0.5*(1-0.5)/(Vinripple1*Fsw) -> 1.5625e-05 | C145: F | F145: Buck 50% typically worst case
A146: Cinmin | B146: =IF(VIN_max<2*Vout, B144,B145) -> 1.5625e-05 | C146: F
A147: Reported Cinmin | B147: =IF(Cinmin*1000000<4.7, 4.7,Cinmin*1000000) -> 15.625 | C147: uF | F147: …report this
A148: Cin | B148: ='Design the Converter'!E43/1000000 -> 2e-05 | C148: F | F148: Input capacitance
A149: CinEsrMax_Vinmax | B149: =-(Iout*D1_Vinmax*(1-D1_Vinmax)/(Cin*Fsw)-Vinripple1)/(Iout+Iripple_Vinmax/2) -> 0.00931179825 | C149: W
A150: CinEsrMax_50%D | B150: =-(Iout*0.5*(1-0.5)/(Cin*Fsw)-Vinripple1)/(Iout+Iripple_Vinmax/2) -> 0.00666640102 | C150: W | F150: Calculate ESR at Vinmax and 50% duty cycle (Vin = 2*Vout)
A151: CinEsrMax | B151: =IF(VIN_max<2*Vout, B149,B150) -> 0.00666640102 | C151: W
A152: Reported Cin ESR max | B152: =IF(OR(CinEsrMax>0.3, CinEsrMax<0), "N/A",CinEsrMax*1000) -> 6.66640102 | C152: mΩ | F152: …report this
A153: RCinEsr | B153: ='Design the Converter'!E45/1000 -> 0.002 | C153: W | F153: Input capacitance series resistance (ESR)
A155: Vinripple2_Vinmax | B155: =Iout*D1_Vinmax_2*(1-D1_Vinmax_2)/(Cin*Fsw)+(Iout +Iripple_Vinmax/2)*RCinEsr -> 0.09575612822 | C155: Vp-p
A156: Vinripple2_50%D | B156: =Iout*0.5*(1-0.5)/(Cin*Fsw)+(Iout +Iripple_Vinmax/2)*RCinEsr -> 0.1016253138 | C156: Vp-p | F156: Calculate ripple at Vinmax and 50% duty cycle (Vin = 2*Vout)
A157: Vinripple2 | B157: =IF(VIN_max<2*Vout, B155,B156) -> 0.1016253138 | C157: Vp-p | F157: …report highest of these
B159: =Iout*D1_Vinmax_2*(1-D1_Vinmax_2)/(Cin*Fsw) -> 0.08788081441 | C159: Vp-p
A161: Step ?: Other Components - MODE
A163: RPG1/2 | B163: 100 | C163: kΩ
A164: RFB1/2 | C164: W | E164: Tie to VDDA 3.3V/5V output, respectively.
A165: R_MODE | C165: W | E165: Tie to VDDA or AGND for Single/Dual operation, respectively.
C166: W
A169: Step 5: Feedback Network and Internal Compensation
A170: Pi | B170: 3.14159265 | D170: p
A171: CS Amp Gain (effective value) | B171: =IF(Device = "LMR60440",1, IF(Device = "LMR60430",1.3)) -> 1 | C171: 1.3 | D171: *per Simplis, CS Amp = 1.3 for 3A device, 1 for 4A device | F171: Effective CS gain - depending on control architecture
A172: Ri | B172: =Rdson1*CSAmp_gain -> 0.065 | C172: W | D172: Grabbed value from SIMPLIS model.Use slightly higher value to match bench | F172: Current Sense effective resistance = shunt resistor Rs * CS amp gain
A174: Se_ext | B174: =(B178/Ri)*1000000 -> 1661538462 | C174: A/s | F174: Slope Comp Slope - referred to inductor current
A175: Sn | B175: =(Vin-Vout)/Lf -> 1071428.571 | C175: A/s | D175: (VIN-VOUT)/L | F175: On-time Slope
A176: Sf | B176: =Vout/Lf -> 1071428.571 | C176: A/s | D176: VOUT/L | F176: Off-time Slope
A178: Se_int | B178: =0.27*Fsw/1000 -> 108 | C178: mV/μs | D178: From SIMPLIS (1V amplitude, period of 1/fsw, multiply by gain of 0.27) | F178: Slope Comp Slope - referred to IC | H178: Slope = 0.27
A179: Sn_int | B179: =Sn*Ri/1000 -> 69.64285714 | C179: mV/μs | F179: Upslope
A180: Sf_int | B180: =Sf*Ri/1000 -> 69.64285714 | C180: mV/μs | F180: Downslope
A182: Gain Terms Control-to-Output
A183: Km | B183: =VIN_nom/0.27 -> 44.44444444 | C183: =1/((0.5-D1_Vinnom)*Ri*(1/(Fsw*Lf))+(Vout*Ri*(1/(Lf*Fsw))/VIN_nom)) -> 68.92307692 | D183: From Sheehan's paper | F183: =1/((0.5-D1_Vinnom)*Ri*(1/(Fsw*Lf))+(Vout*Ri*(1/(Lf*Fsw))/VIN_nom)) -> 68.92307692 | G183: =1/((0.5-D1_Vinnom)*Ri*(1/(Fsw*Lf))+(Vout*Ri*(1/(Lf*Fsw))/VIN_nom)) -> 68.92307692 | H183: =1/((0.5-D1_Vinnom)*Ri*(1/(Fsw*Lf))+((Se_int*1000/Fsw)*CSAmp_gain)/VIN_nom) -> 44.44444444
A184: Kd | B184: =1+(Ro/(Km*Ri)) -> 1.446428571 | D184: From Sheehan's paper
A185: mc | B185: =1+Se_int/Sn_int -> 2.550769231 | D185: Mc is ratio of 1+ (Se_int/Sn_int)
A186: Q | B186: =1/(Pi*((1-(Vout/Vin))*(1+mc)-0.5)) -> 0.249579525 | D186: Q equation in PCM2 Bob Sheehan | F186: 1/(Pi*(k-0.5)) | H186: Q = 2/Pi = 0.636 gives ideal one-cycle damping
A188: Error Amp (EA)
A189: gm | B189: =8.63/1000000 -> 8.63e-06 | C189: S | F189: Error Amp Transconductance
A190: Imod | B190: 0.0003753
A191: GBW | B191: 1.44 | C191: MHz | D191: Check Simplis (plotting TF across error amp_ | F191: EA gain-bandwidth product
A192: Cbw | B192: =gm/(2*Pi*GBW*1000000) -> 9.53824417e-13 | C192: F | D192: Need to check | F192: EA effective bandwidth limiting capacitance = gm/(2*Pi*GBW)
A194: RoEA | B194: 540000000 | C194: W | D194: Simplis model (DCGain/GM) | F194: EA output resistance
A196: AEA | B196: =gm*RoEA -> 4660.2 | C196: V/V | F196: EA DC gain = gm*RoEA
A197: Afb | B197: =Vref/Vout -> 0.1666666667 | C197: V/V | F197: Feedback gain from Vout to FB
A198: Acs | B198: =1/Ri -> 15.38461538 | C198: =1/Ri -> 15.38461538 | F198: Acs = 1/Ri
A199: Am | B199: =Rout/Ri -> 30.76923077 | D199: Buck modulator gain
C200: =Acs*Ro/Kd -> 21.27255461
A201: DC Gain is Adc = AEA*Afb*Am
A202: Power-Stage
A203: Rout | B203: =Rout -> 2 | C203: W | F203: Output Resistance (Load)
A204: Fp_load_buck_simplified | B204: =Kd/(2*Pi*Ro*Cout) -> 3269.975245 | F204: Buck dominant pole frequency - without slope comp influence
A205: Fp_load_buck | B205: =Kd/(2*Pi*Ro*Cout)+((mc*(1-D1_Vinnom)-0.5)/(2*Pi*Fsw*Lf*Cout)) -> 4835.091601 | C205: Hz | F205: Buck dominant pole frequency -- note slope comp influence
A206: Fp_dominant | B206: =Fload_u -> 4835.091601 | C206: Hz
A207: Inductor pole | B207: =(B183*Ri)/(2*Pi*Lf) -> 82103.74058 | C207: Hz | D207: inductor pole
A208: Fesr | B208: =1/(2*Pi*Cout*Cout_ESR) -> 4521447.252 | C208: Hz | F208: Cout ESR zero frequency
A209: Cbw | B209: =Cbw -> 9.53824417e-13 | C209: F | F209: Cbw
A211: Error Amplifier
A212: Fp_EA | B212: =1/(2*Pi*(RoEA)*Cc1ea_u) -> 11.78925506 | C212: Hz | F212: Error Amp LF pole -- related to amplifier ouptut resistance and comp cap
A213: Fp_HF_simplified | B213: =1*(Cc1ea_u+Cc2ea_u)/(2*Pi*Rcea1_u*Cc2ea_u*Cc1ea_u) -> 2115329.193 | C213: Hz | F213: Error Amp HF pole without Cbw effect (like the SIMPLIS model)
A214: Fp_HF | B214: =1/(2*Pi*Rcea1_u*(Cc2ea_u+Cbw)) -> 235259.0331 | C214: Hz | F214: Error Amp HF pole cancels zero related to Output Cap ESR
A215: F_mod | B215: =Fsw/2 -> 200000 | C215: Hz | F215: Zero-order sample-and-hold effects of current-mode control modeled as pole at Fsw/2
A216: Fz_ff | B216: =IF(NO_FF_CAP=TRUE, 1000000000, 1/(2*Pi*Rfb1_*Cff_u*0.000000000001)) -> 1000000000 | C216: Hz | D216: =Fz_ff/1000 -> 1000000 | E216: kHz
A217: Fp_ff | B217: =IF(NO_FF_CAP=TRUE, 1000000000, 1/(2*Pi*Rfb4_u*Cff_u*0.000000000001)) -> 1000000000 | C217: Hz | D217: =Fp_ff/1000 -> 1000000 | E217: kHz
A219: Desired Crossover Frequency | B219: ='Design the Converter'!E31*1000 -> 62000 | C219: Hz
A220: Cout - for the Fc spec | B220: =(Rcea1_u*gm*Vref)/(Fcross*2*Pi*Vout*Ri)*1000000 -> 35.78616671 | C220: uF | F220: Output cap to meet the crossover frequeny spec
A222: Chosen Compensation Components from the standard value sheet
A223: Rcea1_u | B223: 630000 | C223: W | D223: Rcomp | F223: =1/(Rcea1*2*Pi*(Fsw/2))-Cbw -> 
A224: Cc1ea_u | B224: 2.5e-11 | C224: F | D224: Ccomp
A225: Cc2ea_u | B225: 1.2e-13 | C225: F | D225: Chf
A227: Resulting Pole/Zero Locations | F227: =Cout -> 3.52e-05 | G227: =Cout_ESR -> 0.001
A228: Fz1 | B228: =1/(2*Pi*Rcea1_u*Cc1ea_u) -> 10105.07576 | C228: Hz | D228: Zero from Rcomp, Ccomp | F228: This zero is set at or close to the dominant load pole
A229: Fp2 | B229: =1/(2*Pi*Rcea1_u*(Cc2ea_u+Cbw)) -> 235259.0331 | C229: Hz | D229: high frequency pole Rcomp, Chf | F229: This pole cancels the zero from the Output Cap ESR
A231: Rfb1 | B231: ='Design the Converter'!E50*1000 -> 100000 | C231: W | F231: Upper Feedback Resistance - chosen by user
A232: Rfb2 | B232: =IF(Vout=Vref, "N/A", Vref*B231/(Vout-Vref)) -> 20000 | C232: W | D232: =Rfb2_u -> 20000 | F232: Upper Feedback Resistance
A233: Rfb2_u | B233: =IF(Vout=Vref,"N/A",'Standard Value Calculator'!O11) -> 20000 | C233: W | F233: Std Value Upper Feedback Resistance
A234: Cff | B234: =1/(2*Pi*200000)/Rfb1_ -> 7.957747164e-12 | C234: F | D234: =1/(1/Rfb1_+1/Rfb2_u) -> 16666.66667 | E234: W | F234: Based on a 200kHz zero frequency
A235: Cff_u | B235: =IF('Design the Converter'!E52<0.1, 0.1, 'Design the Converter'!E52) -> 100 | C235: pF
A238: Step 6: UVLO Divider
A239: VIN UVLO turn-on voltage | B239: ='Design the Converter'!E55 -> 3.5 | C239: V
A240: VIN UVLO turn-off voltage | B240: ='Design the Converter'!E59 -> 2.50074 | C240: V
A241: Rent | B241: ='Design the Converter'!E56*1000 -> 175000 | C241: W
A242: Renb | B242: =B241*(1.263/(B239-1.263)) -> 98804.20206 | C242: W
A243: Renb_u | B243: ='Standard Value Calculator'!O7 -> 100000 | C243: W
A245: Step 7: Efficiency
A246: VAR | B246: 0
A247: Design
A248: Ta | B248: ='Design the Converter'!E14 -> 25 | C248: °C | D248: Ambient Temperature
A249: Components
A250: LTc | B250: =3930/1000000 -> 0.00393 | C250: %/°C | D250: Inductor DCR Temp Co
A251: θCA | B251: 22 | C251: °C/W | D251: Inductor Core-to-Ambient Thermal Resistance
A252: RCinEsr | B252: =RCinEsr -> 0.002 | C252: W | D252: Input Capacitor ESR
... 82 more rows

Sheet Schematic Management (hidden)
A1: =VARIANT -> 4 | N1: 3.3V or 5V fixed (FB1/2)
A2: =CHOOSE(VARIANT, "LMR60440_fix_FPWM", "LMR60440_adj_FPWM", "LMR60440_fix_DEM", "LMR60440_adj_DEM") -> LMR60440_adj_DEM | J2: With/without dither (DITH) | N2: With/without VOUT connected to VCCX
J3: FPWM or DEM (DEMB)
J4: Shunt or inductor DCR current sensing

Sheet Schematic & BOM (hidden)
A32: ="VIN = "&VIN_min&" V to "&VIN_max&" V, VOUT = "&Vout&" V, IOUT = "&Iout&" A, Fsw = "&Fsw/1000&" kHz" -> VIN = 9 V to 18 V, VOUT = 6 V, IOUT = 3 A, Fsw = 400 kHz
A33: High-Efficiency Synchronous Buck DC/DC Converter BOM
A34: Count | B34: Ref Des | C34: Value | D34: Description | H34: Size | I34: Part Number | J34: MFR
A35: =ROUNDUP('Design the Converter'!E43/10,0) -> 2 | B35: CIN1, CIN2 | C35: 10 | D35: =C35 -> 10 | H35: 1210 | I35: Std | J35: Std
A36: 2 | B36: COUT | C36: 47 | D36: =C36 -> 47 | H36: 1210 | I36: Std | J36: Std
A37: 1 | B37: CVCC | C37: 1 | D37: =C37 -> 1 | H37: 0402 | I37: Std | J37: Std
A38: 1 | B38: CSYNC | C38: 1 | D38: =C38 -> 1 | H38: 0402 | I38: Std | J38: Std
A39: 1 | B39: CFF | C39: ='Variable Management'!D310 -> 100 | D39: 100 | H39: 0402 | I39: Std | J39: Std
A40: 1 | B40: LO | C40: ='Design the Converter'!E20 -> 5.6 | D40: ="Buck Inductor, "&Lf*1000000&" µH, "&Rdcr*1000&" mΩ, >"&ROUNDUP(Ipk_OCP_Vinmin*1.05,0)&" A" -> Buck Inductor, 5.6 µH, 200 mΩ, >6 A | H40: -- | I40: -- | J40: Various
A41: 1 | B41: RRT | C41: ='Design the Converter'!E13 -> 86.6 | D41: =C41 -> 86.6 | H41: 0402 | I41: Std | J41: Std
A42: 1 | B42: RFBT | C42: ='Design the Converter'!E50 -> 100 | D42: =C42 -> 100 | H42: 0402 | I42: Std | J42: Std
A43: 1 | B43: RFBB | C43: ='Design the Converter'!E51 -> 20 | D43: 20 | H43: 0402 | I43: Std | J43: Std
A44: 1 | B44: RENT | C44: ='Variable Management'!D313 -> 175 | D44: =C44 -> 175 | H44: 0402 | I44: Std | J44: Std
A45: 1 | B45: RENB | C45: ='Variable Management'!D314 -> 100 | D45: 100 | H45: 0402 | I45: Std | J45: Std
A46: 1 | B46: RPGOOD | C46: 100 | D46: 100 | H46: 0402 | I46: Std | J46: Std
A47: 1 | B47: U1 | C47: ='Variable Management'!O34 -> 0 | D47: =CHOOSE(GPN, "IC, LMR36503E-Q1 Synchronous Buck DC/DC Converter, 3V–65V Input, 0.3A Output", "IC, LMR36503E-Q1 Synchronous Buck DC/DC Converter, 3V–65V Input, 0.3A Output", "IC, LMR36503E-Q1 Synchronous Buck DC/DC Converter, 3V–65V Input, 0.3A Output") ->  | H47: VQFN-22 | I47: =CHOOSE(VARIANT, "LM63460AASQRYFTQ1", "LM63460AFSQRYFTQ1", "LM64460APPQRYFRQ1", "LM64460BPPQRYFRQ1", "LM64460CPPQRYFRQ1") -> LM64460BPPQRYFRQ1 | J47: TI
A50: NOTES:
A51: ** Effective input and output capacitances should be appropriately derated for applied voltage and temperature, particularly with ceramics **

Sheet EVMs (hidden)
A1: LM63460-Q1 & LM64460-Q1 Converter Design Tool
B6: LM64460EVM-2MHZ (BSR173) PCB Layout

Sheet MOSFET Parameters (hidden)
A3: MOSFET Parameters
E4: Internal Power MOSFETs
E5: High-side | F5: Low-side
D6: On-State Resistance, RDS(on) | E6: 42 | F6: 60 | G6: mΩ | H6: LMR60440 Switcher Template
D7: Total Gate Charge, QG | E7: 3.182 | F7: 5.047 | G7: nC | H7: LMR60440 FET parameter table @36V
D8: Gate-Drain Charge, QGD | E8: 2.008 | F8: 2.749 | G8: nC | H8: LMR60440 FET parameter table @36V
D9: Gate-Source Charge, QGS | E9: 1.175 | F9: 2.298 | G9: nC | H9: LMR60440 FET parameter table @36V
D10: Output Charge, QOSS | E10: 5.047 | F10: 3.182 | G10: nC | H10: LMR60440 FET parameter table @36V
D11: Output Capacitance, COSS | E11: 140 | F11: 88.39 | G11: pF | H11: Qoss/36V
D12: Gate Resistance, RGATE | E12: 0 | F12: 0 | G12: Ω
D13: Transconductance, gFS | E13: 100 | F13: 100 | G13: S
D14: Gate-Source Miller Plateau Voltage, VTH | E14: 1.5 | F14: 1.5 | G14: V
D15: Body Diode Forward Voltage, VBD | E15: 0.7 | F15: 0.7 | G15: V | H15: LMR60440 Switcher Template
D16: Body Diode Rev Recovery Charge, QRR | E16: 4.5 | F16: 7 | G16: nC | H16: N/A
D17: Thermal Resistance, θJA | E17: 23 | F17: 23 | G17: °C/W
A20: Note:
A21: 2025-03-21 | B21: values from Golf Parameter FET table (worst case)
A22: 2025-03-26

Sheet Stability Calculations (hidden)
T1: 2025-03-21 | U1: AM matches
A2: Divider Network & EA Poles/Zeros | E2: Modulator | J2: Power Stage Poles/Zeros | M2: Complex Pole Pair | P2: Total System | U2: Afb matches
B3: Afb1 | C3: =Afb*0.8 -> 0.1333333333 | D3: V/V | E3: Acs | F3: =Acs -> 15.38461538 | G3: A/V | H3: gm | I3: =gm -> 8.63e-06 | J3: z_ESR | K3: =Fesr -> 4521447.252 | L3: Hz | M3: p3 | N3: =Fsw/2 -> 200000 | O3: Hz | P3: Adc | Q3: =Am_stability*C3*0.8*Aea_stability -> 15295.01538 | R3: V/V | U3: p_dom matches SIMPLIS model if neglecting slope comp influence. Need to change back
B4: EA zero, z1 | C4: =Fz1_u -> 10105.07576 | D4: Hz | E4: Am | F4: =Am_new -> 30.76923077 | G4: V/V | J4: p_dom | K4: =Fp_load_buck_simplified -> 3269.975245 | L4: Hz | M4: pterm1 | N4: =Q*pole3 -> 49915.90501 | P4: Crossover | Q4: =AK7 -> 45.1885 | R4: kHz | U4: z_ESR doesn't really matter (beyond half the switching frequency)
B5: EA pole, p1 | C5: =Fp1_u -> 11.78925506 | D5: Hz | E5: Q | F5: =Q -> 0.249579525 | J5: p_L | K5: =FL -> 82103.74058 | L5: Hz | M5: pterm2 | N5: =pole3^2 -> 40000000000 | P5: Phase Margin | Q5: =AK9 -> 37.24627336 | R5: ° | U5: FF zero, FF pole don't matter (beyond)
B6: Aea | C6: =AEA -> 4660.2 | D6: V/V | E6: mc | F6: =mc -> 2.550769231 | H6: FF zero, z5 | I6: =1*Fz_ff -> 1000000000 | P6: radconv | Q6: =180/Pi -> 57.29577958 | U6: EA zero, z1 looks correct | AJ6: XOVER SEARCH
B7: EA pole, p2 | C7: =1*Fp2_u_simplified -> 2115329.193 | D7: Hz | H7: FF pole, p5 | I7: =Fp_ff -> 1000000000 | U7: EA HF pole seems off by 2x from SIMPLIS) | AJ7: xover | AK7: =SUM(AJ12:AJ613)/1000 -> 45.1885
AJ9: phase margin | AK9: =SUM(AK13:AK613) -> 37.24627336
A10: Freq (Hz) | C10: Power Stage | I10: Error Amplifier | P10: FF Network | S10: Sampling Double Pole | U10: System Response | AB10: ERROR AMP Response | AG10: PLANT Response
C11: p_dom | E11: z_ESR | G11: z_RHP | I11: p1 | K11: z1 | M11: p2 | O11: z3 | Q11: p3 | S11: p3
C12: Gain(V/V) | D12: Phase(rad) | E12: Gain(V/V) | F12: Phase(rad) | G12: Gain(V/V) | H12: Phase(rad) | I12: Gain(V/V) | J12: Phase(rad) | K12: Gain(V/V) | L12: Phase(rad) | M12: Gain(V/V) | N12: Phase(rad) | O12: Gain(V/V) | P12: Phase(rad) | Q12: Gain(V/V) | R12: Phase(rad) | S12: Gain(V/V) | T12: Phase(rad) | U12: Gain (dB) | V12: Phase (°) | W12: Phase Margin (°) | Z12: Fsquare | AB12: Gain(dB) | AC12: Phase(Deg) | AG12: Gain(dB) | AH12: Phase(Deg)
A13: 1 | B13: =A13/1000 -> 0.001 | C13: =SQRT(1+(A13/p_dom)^2) -> 1.000000047 | D13: =ATAN(A13/p_dom) -> 0.0003058127031 | E13: =SQRT(1+(A13/z_ESR)^2) -> 1 | F13: =ATAN(A13/z_ESR) -> 2.211681226e-07 | G13: =IF(VIN_nom>Vout, 1, SQRT(1+(A13/z_RHP)^2)) -> 1 | H13: =IF(VIN_nom>Vout, 0, -ATAN(A13/z_RHP)) -> 0 | I13: =SQRT(1+(A13/EA_p1)^2) -> 1.003591023 | J13: =ATAN(A13/EA_p1) -> 0.08462044309 | K13: =SQRT(1+(A13/EA_z1)^2) -> 1.000000005 | L13: =ATAN(A13/EA_z1) -> 9.896016815e-05 | M13: =SQRT(1+(A13/EA_hf_p)^2) -> 1 | N13: =ATAN(A13/EA_hf_p) -> 4.727396583e-07 | O13: =SQRT(1+(A13/Zero3)^2) -> 1 | P13: =ATAN(A13/Zero3) -> 1e-09 | Q13: =SQRT(1+(A13/pole5)^2) -> 1 | R13: =ATAN(A13/pole5) -> 1e-09 | S13: =SQRT((1-(Z13/pterm2))^2+(A13/pterm1)^2) -> 1 | T13: =IF((ATAN((A13/pterm1)/(1-A13^2/pterm2))>0),ATAN((A13/pterm1)/(1-A13^2/pterm2)),PI()+ATAN((A13/pterm1)/(1-A13^2/pterm2))) -> 2.003369467e-05 | U13: =20*LOG10(((E13*K13*G13*O13)/(C13*I13*S13*M13*Q13))*Adc) -> 83.65986264 | V13: =((F13+L13+H13+P13)-(D13+J13+T13+N13+R13))*radconv -> -4.861408293 | W13: =IF(V13>0,V13,V13+180) -> 175.1385917 | Y13: =IF(U13<0,A13,1000000000) -> 1000000000 | Z13: =A13^2 -> 1 | AB13: =20*LOG10((K13/(I13*M13))*Aea_stability*Afb*0.8) -> 55.83573053 | AC13: =(L13-(J13+N13))*radconv -> -4.842751341 | AD13: 57dB | AF13: 33dB | AG13: =20*LOG10((E13*G13/(C13*S13))*Am_stability) -> 29.76233237 | AH13: =(F13+H13-(D13+T13))*radconv -> -0.01865695139 | AJ13: =SUM((U14<0)*(U13>0))*A13 -> 0 | AK13: =IF(AJ13>0,W11,0) -> 0
A14: 1.0965 | B14: =A14/1000 -> 0.0010965 | C14: 1.000000056 | D14: 0.0003353236269 | E14: 1 | F14: 2.425108464e-07 | G14: 1 | H14: 0 | I14: =SQRT(1+(A14/EA_p1)^2) -> 1.004315969 | J14: 0.09274161282 | K14: 1.000000006 | L14: 0.0001085098243 | M14: =SQRT(1+(A14/EA_hf_p)^2) -> 1 | N14: 5.183590353e-07 | O14: 1 | P14: 1.0965e-09 | Q14: 1 | R14: 1.0965e-09 | S14: 1 | T14: 2.19669462e-05 | U14: 83.65359056 | V14: -5.327972898 | W14: 174.6720271 | Y14: 1000000000 | Z14: 1.20231225 | AB14: 55.82945853 | AC14: -5.307515551 | AG14: 29.76233229 | AH14: -0.02045734707 | AJ14: 0 | AK14: 0
A15: 1.2023 | B15: 0.0012023 | C15: 1.000000068 | D15: 0.0003676786079 | E15: 1 | F15: 2.659104338e-07 | G15: 1 | H15: 0 | I15: 1.005186784 | J15: 0.1016313288 | K15: 1.000000007 | L15: 0.00011897981 | M15: 1 | N15: 5.683748912e-07 | O15: 1 | P15: 1.2023e-09 | Q15: 1 | R15: 1.2023e-09 | S15: 1 | T15: 2.40865111e-05 | U15: 83.64606244 | V15: -5.83869299 | W15: 174.161307 | Y15: 1000000000 | Z15: 1.44552529 | AB15: 55.82193051 | AC15: -5.816261738 | AG15: 29.76233219 | AH15: -0.02243125236 | AJ15: 0 | AK15: 0
A16: 1.3183 | B16: 0.0013183 | C16: 1.000000081 | D16: 0.0004031528773 | E16: 1 | F16: 2.91565936e-07 | G16: 1 | H16: 0 | I16: 1.006232675 | J16: 0.1113595467 | K16: 1.000000009 | L16: 0.0001304591894 | M16: 1 | N16: 6.232126916e-07 | O16: 1 | P16: 1.3183e-09 | Q16: 1 | R16: 1.3183e-09 | S16: 1 | T16: 2.641041968e-05 | U16: 83.63702941 | V16: -6.397588448 | W16: 173.6024116 | Y16: 1000000000 | Z16: 1.73791489 | AB16: 55.8128976 | AC16: -6.372992989 | AG16: 29.76233207 | AH16: -0.02459545848 | AJ16: 0 | AK16: 0
A17: 1.4454 | B17: 0.0014454 | C17: 1.000000098 | D17: 0.0004420216661 | E17: 1 | F17: 3.196764043e-07 | G17: 1 | H17: 0 | I17: 1.007487735 | J17: 0.1219943434 | K17: 1.00000001 | L17: 0.0001430370265 | M17: 1 | N17: 6.832979021e-07 | O17: 1 | P17: 1.4454e-09 | Q17: 1 | R17: 1.4454e-09 | S17: 1 | T17: 2.895670227e-05 | U17: 83.62620224 | V17: -7.008571495 | W17: 172.9914285 | Y17: 1000000000 | Z17: 2.08918116 | AB17: 55.80207057 | AC17: -6.981604739 | AG17: 29.76233193 | AH17: -0.02696675667 | AJ17: 0 | AK17: 0
A18: 1.5849 | B18: 0.0015849 | C18: 1.000000117 | D18: 0.0004846825304 | E18: 1 | F18: 3.505293574e-07 | G18: 1 | H18: 0 | I18: 1.008996051 | J18: 0.1336347571 | K18: 1.000000012 | L18: 0.0001568419697 | M18: 1 | N18: 7.492450845e-07 | O18: 1 | P18: 1.5849e-09 | Q18: 1 | R18: 1.5849e-09 | S18: 1 | T18: 3.175140267e-05 | U18: 83.61320811 | V18: -7.677333534 | W18: 172.3226665 | Y18: 1000000000 | Z18: 2.51190801 | AB18: 55.78907662 | AC18: -7.647764133 | AG18: 29.76233176 | AH18: -0.02956940094 | AJ18: 0 | AK18: 0
A19: 1.7378 | B19: 0.0017378 | C19: 1.000000141 | D19: 0.0005314412821 | E19: 1 | F19: 3.843459634e-07 | G19: 1 | H19: 0 | I19: 1.010805795 | J19: 0.1463514926 | K19: 1.000000015 | L19: 0.0001719729791 | M19: 1 | N19: 8.215269782e-07 | O19: 1 | P19: 1.7378e-09 | Q19: 1 | R19: 1.7378e-09 | S19: 1.000000001 | T19: 3.481455458e-05 | U19: 83.5976428 | V19: -8.407938652 | W19: 171.5920613 | Y19: 1000000000 | Z19: 3.01994884 | AB19: 55.77351151 | AC19: -8.375516604 | AG19: 29.76233155 | AH19: -0.0324220482 | AJ19: 0 | AK19: 0
A20: 1.9055 | B20: 0.0019055 | C20: 1.00000017 | D20: 0.000582726058 | E20: 1 | F20: 4.214358575e-07 | G20: 1 | H20: 0 | I20: 1.012977952 | J20: 0.160244394 | K20: 1.000000018 | L20: 0.0001885685988 | M20: 1 | N20: 9.008054189e-07 | O20: 1 | P20: 1.9055e-09 | Q20: 1 | R20: 1.9055e-09 | S20: 1.000000001 | T20: 3.817420517e-05 | U20: 83.57899718 | V20: -9.206125722 | W20: 170.7938743 | Y20: 1000000000 | Z20: 3.63093025 | AB20: 55.75486614 | AC20: -9.170574904 | AG20: 29.7623313 | AH20: -0.03555081813 | AJ20: 0 | AK20: 0
A21: 2.0893 | B21: 0.0020893 | C21: 1.000000204 | D21: 0.0006389344136 | E21: 1 | F21: 4.620865585e-07 | G21: 1 | H21: 0 | I21: 1.015582185 | J21: 0.1753995601 | K21: 1.000000021 | L21: 0.000206757477 | M21: 1 | N21: 9.876949681e-07 | O21: 1 | P21: 2.0893e-09 | Q21: 1 | R21: 2.0893e-09 | S21: 1.000000001 | T21: 4.185639825e-05 | U21: 83.55669528 | V21: -10.07684476 | W21: 169.9231552 | Y21: 1000000000 | Z21: 4.36517449 | AB21: 55.73256454 | AC21: -10.03786479 | AG21: 29.762331 | AH21: -0.03897996469 | AJ21: 0 | AK21: 0
A22: 2.2909 | B22: 0.0022909 | C22: 1.000000245 | D22: 0.0007005862288 | E22: 1 | F22: 5.06674052e-07 | G22: 1 | H22: 0 | I22: 1.018705383 | J22: 0.191929081 | K22: 1.000000026 | L22: 0.0002267078461 | M22: 1 | N22: 1.082999283e-06 | O22: 1 | P22: 2.2909e-09 | Q22: 1 | R22: 2.2909e-09 | S22: 1.000000001 | T22: 4.589519109e-05 | U22: 83.53002443 | V22: -11.02654017 | W22: 168.9734598 | Y22: 1000000000 | Z22: 5.24822281 | AB22: 55.70589405 | AC22: -10.98379897 | AG22: 29.76233064 | AH22: -0.04274120461 | AJ22: 0 | AK22: 0
A23: 2.5119 | B23: 0.0025119 | C23: 1.000000295 | D23: 0.0007681708019 | E23: 1 | F23: 5.555522071e-07 | G23: 1 | H23: 0 | I23: 1.022446822 | J23: 0.209927735 | K23: 1.000000031 | L23: 0.0002485780421 | M23: 1 | N23: 1.187474748e-06 | O23: 1 | P23: 2.5119e-09 | Q23: 1 | R23: 2.5119e-09 | S23: 1.000000001 | T23: 5.03226376e-05 | U23: 83.49818148 | V23: -12.06066319 | W23: 167.9393368 | Y23: 1000000000 | Z23: 6.30964161 | AB23: 55.67405153 | AC23: -12.0137988 | AG23: 29.76233021 | AH23: -0.0468643889 | AJ23: 0 | AK23: 0
A24: 2.7542 | B24: 0.0027542 | C24: 1.000000355 | D24: 0.0008422691741 | E24: 1 | F24: 6.091412432e-07 | G24: 1 | H24: 0 | I24: 1.026926519 | J24: 0.2295033173 | K24: 1.000000037 | L24: 0.0002725560893 | M24: 1 | N24: 1.302019567e-06 | O24: 1 | P24: 2.7542e-09 | Q24: 1 | R24: 2.7542e-09 | S24: 1.000000001 | T24: 5.517680181e-05 | U24: 83.46020821 | V24: -13.18541473 | W24: 166.8145853 | Y24: 1000000000 | Z24: 7.58561764 | AB24: 55.63607878 | AC24: -13.13402977 | AG24: 29.76232969 | AH24: -0.0513849656 | AJ24: 0 | AK24: 0
A25: 3.02 | B25: 0.00302 | C25: 1.000000426 | D25: 0.0009235541297 | E25: 1 | F25: 6.679277301e-07 | G25: 1 | H25: 0 | I25: 1.03228908 | J25: 0.2507729827 | K25: 1.000000045 | L25: 0.0002988596999 | M25: 1 | N25: 1.427673768e-06 | O25: 1 | P25: 3.02e-09 | Q25: 1 | R25: 3.02e-09 | S25: 1.000000002 | T25: 6.050175784e-05 | U25: 83.41496837 | V25: -14.40753592 | W25: 165.5924641 | Y25: 1000000000 | Z25: 9.1204 | AB25: 55.59083956 | AC25: -14.35119194 | AG25: 29.76232906 | AH25: -0.05634397979 | AJ25: 0 | AK25: 0
A26: 3.3113 | B26: 0.0033113 | C26: 1.000000513 | D26: 0.001012637289 | E26: 1 | F26: 7.323540042e-07 | G26: 1 | H26: 0 | I26: 1.038696506 | J26: 0.2738193544 | K26: 1.000000054 | L26: 0.0003276867941 | M26: 1 | N26: 1.565382831e-06 | O26: 1 | P26: 3.3113e-09 | Q26: 1 | R26: 3.3113e-09 | S26: 1.000000002 | T26: 6.633757308e-05 | U26: 83.36122095 | V26: -15.73178674 | W26: 164.2682133 | Y26: 1000000000 | Z26: 10.96470769 | AB26: 55.5370929 | AC26: -15.67000799 | AG26: 29.76232831 | AH26: -0.06177874509 | AJ26: 0 | AK26: 0
A27: 3.6308 | B27: 0.0036308 | C27: 1.000000616 | D27: 0.001110344341 | E27: 1 | F27: 8.030172194e-07 | G27: 1 | H27: 0 | I27: 1.046350237 | J27: 0.2987574777 | K27: 1.000000065 | L27: 0.0003593045642 | M27: 1 | N27: 1.716423151e-06 | O27: 1 | P27: 3.6308e-09 | Q27: 1 | R27: 3.6308e-09 | S27: 1.000000002 | T27: 7.27383385e-05 | U27: 83.29745201 | V27: -17.16479393 | W27: 162.8352061 | Y27: 1000000000 | Z27: 13.18270864 | AB27: 55.47332486 | AC27: -17.0970543 | AG27: 29.76232741 | AH27: -0.06773963492 | AJ27: 0 | AK27: 0
A28: 3.9811 | B28: 0.0039811 | C28: 1.000000741 | D28: 0.001217470389 | E28: 1 | F28: 8.804924127e-07 | G28: 1 | H28: 0 | I28: 1.055477977 | J28: 0.3256653854 | K28: 1.000000078 | L28: 0.0003939703063 | M28: 1 | N28: 1.882023854e-06 | O28: 1 | P28: 3.9811e-09 | Q28: 1 | R28: 3.9811e-09 | S28: 1.000000003 | T28: 7.975614171e-05 | U28: 83.22200905 | V28: -18.71106229 | W28: 161.2889377 | Y28: 1000000000 | Z28: 15.84915721 | AB28: 55.397883 | AC28: -18.63678713 | AG28: 29.76232632 | AH28: -0.07427515686 | AJ28: 0 | AK28: 0
A29: 4.3652 | B29: 0.0043652 | C29: 1.000000891 | D29: 0.00133493286 | E29: 1 | F29: 9.654430886e-07 | G29: 1 | H29: 0 | I29: 1.066348631 | J29: 0.3546168289 | K29: 1.000000093 | L29: 0.0004319809006 | M29: 1 | N29: 2.063603156e-06 | O29: 1 | P29: 4.3652e-09 | Q29: 1 | R29: 4.3652e-09 | S29: 1.000000003 | T29: 8.745108378e-05 | U29: 83.13300709 | V29: -20.3748565 | W29: 159.6251435 | Y29: 1000000000 | Z29: 19.05497104 | AB29: 55.30888234 | AC29: -20.29341522 | AG29: 29.76232501 | AH29: -0.08144128113 | AJ29: 0 | AK29: 0
A30: 4.7863 | B30: 0.0047863 | C30: 1.000001071 | D30: 0.001463710341 | E30: 1 | F30: 1.058576985e-06 | G30: 1 | H30: 0 | I30: 1.079271294 | J30: 0.385658049 | K30: 1.000000112 | L30: 0.000473653019 | M30: 1 | N30: 2.262673827e-06 | O30: 1 | P30: 4.7863e-09 | Q30: 1 | R30: 4.7863e-09 | S30: 1.000000004 | T30: 9.588727255e-05 | U30: 83.02837748 | V30: -22.1588676 | W30: 157.8411324 | Y30: 1000000000 | Z30: 22.90866769 | AB30: 55.2042543 | AC30: -22.06956989 | AG30: 29.76232344 | AH30: -0.08929770912 | AJ30: 0 | AK30: 0
A31: 5.2481 | B31: 0.0052481 | C31: 1.000001288 | D31: 0.001604934319 | E31: 1 | F31: 1.160712424e-06 | G31: 1 | H31: 0 | I31: 1.094608179 | J31: 0.4188213582 | K31: 1.000000135 | L31: 0.0005193528135 | M31: 1 | N31: 2.480985001e-06 | O31: 1 | P31: 5.2481e-09 | Q31: 1 | R31: 5.2481e-09 | S31: 1.000000005 | T31: 0.0001051388327 | U31: 82.90581453 | V31: -24.06499512 | W31: 155.9350049 | Y31: 1000000000 | Z31: 27.54255361 | AB31: 55.08169324 | AC31: -23.96708165 | AG31: 29.76232155 | AH31: -0.09791347046 | AJ31: 0 | AK31: 0
A32: 5.7544 | B32: 0.0057544 | C32: 1.000001548 | D32: 0.001759766857 | E32: 1 | F32: 1.272689844e-06 | G32: 1 | H32: 0 | I32: 1.112765456 | J32: 0.4540867945 | K32: 1.000000162 | L32: 0.0005694563319 | M32: 1 | N32: 2.72033309e-06 | O32: 1 | P32: 5.7544e-09 | Q32: 1 | R32: 5.7544e-09 | S32: 1.000000006 | T32: 0.0001152818922 | U32: 82.76291357 | V32: -26.09214477 | W32: 153.9078552 | Y32: 1000000000 | Z32: 33.11311936 | AB32: 54.93879455 | AC32: -25.98478531 | AG32: 29.76231928 | AH32: -0.1073594601 | AJ32: 0 | AK32: 0
A33: 6.3096 | B33: 0.0063096 | C33: 1.000001862 | D33: 0.001929553497 | E33: 1 | F33: 1.395482386e-06 | G33: 1 | H33: 0 | I33: 1.134212588 | J33: 0.4914088732 | K33: 1.000000195 | L33: 0.0006243989979 | M33: 1 | N33: 2.982798148e-06 | O33: 1 | P33: 6.3096e-09 | Q33: 1 | R33: 6.3096e-09 | S33: 1.000000007 | T33: 0.0001264045993 | U33: 82.59709457 | V33: -28.23776772 | W33: 151.7622323 | Y33: 1000000000 | Z33: 39.81105216 | AB33: 54.77297828 | AC33: -28.12004996 | AG33: 29.76231655 | AH33: -0.1177177667 | AJ33: 0 | AK33: 0
A34: 6.9183 | B34: 0.0069183 | C34: 1.000002238 | D34: 0.002115700933 | E34: 1 | F34: 1.530107422e-06 | G34: 1 | H34: 0 | I34: 1.15946996 | J34: 0.5306801128 | K34: 1.000000234 | L34: 0.0006846360266 | M34: 1 | N34: 3.270554778e-06 | O34: 1 | P34: 6.9183e-09 | Q34: 1 | R34: 6.9183e-09 | S34: 1.000000008 | T34: 0.0001385991091 | U34: 82.40579086 | V34: -30.49576561 | W34: 149.5042344 | Y34: 1000000000 | Z34: 47.86287489 | AB34: 54.58167785 | AC34: -30.3666914 | AG34: 29.76231327 | AH34: -0.1290742096 | AJ34: 0 | AK34: 0
A35: 7.5858 | B35: 0.0075858 | C35: 1.000002691 | D35: 0.002319829914 | E35: 1 | F35: 1.677737144e-06 | G35: 1 | H35: 0 | I35: 1.189129228 | J35: 0.5717570912 | K35: 1.000000282 | L35: 0.000750691905 | M35: 1 | N35: 3.5861085e-06 | O35: 1 | P35: 7.5858e-09 | Q35: 1 | R35: 7.5858e-09 | S35: 1.00000001 | T35: 0.0001519716001 | U35: 82.18639627 | V35: -32.85798993 | W35: 147.1420101 | Y35: 1000000000 | Z35: 57.54436164 | AB35: 54.36228721 | AC35: -32.71646226 | AG35: 29.76230932 | AH35: -0.1415276675 | AJ35: 0 | AK35: 0
A36: 8.3176 | B36: 0.0083176 | C36: 1.000003235 | D36: 0.002543622333 | E36: 1 | F36: 1.839587976e-06 | G36: 1 | H36: 0 | I36: 1.223831618 | J36: 0.6144235986 | K36: 1.000000339 | L36: 0.0008231109114 | M36: 1 | N36: 3.932059382e-06 | O36: 1 | P36: 8.3176e-09 | Q36: 1 | R36: 8.3176e-09 | S36: 1.000000012 | T36: 0.0001666322575 | U36: 81.93653972 | V36: -35.31212433 | W36: 144.6878757 | Y36: 1000000000 | Z36: 69.18246976 | AB36: 54.1124354 | AC36: -35.15694358 | AG36: 29.76230458 | AH36: -0.155180749 | AJ36: 0 | AK36: 0
A37: 9.1201 | B37: 0.0091201 | C37: 1.000003889 | D37: 0.002789035289 | E37: 1 | F37: 2.017075395e-06 | G37: 1 | H37: 0 | I37: 1.264297462 | J37: 0.6584312237 | K37: 1.000000407 | L37: 0.0009025263875 | M37: 1 | N37: 4.311432958e-06 | O37: 1 | P37: 9.1201e-09 | Q37: 1 | R37: 9.1201e-09 | S37: 1.000000015 | T37: 0.0001827092971 | U37: 81.65398267 | V37: -37.84401919 | W37: 142.1559808 | Y37: 1000000000 | Z37: 83.17622401 | AB37: 53.82988405 | AC37: -37.67386634 | AG37: 29.76229887 | AH37: -0.1701528529 | AJ37: 0 | AK37: 0
A38: 10 | B38: 0.01 | C38: 1.000004676 | D38: 0.003058117593 | E38: 1 | F38: 2.211681226e-06 | G38: 1 | H38: 0 | I38: 1.311294841 | J38: 0.7034655991 | K38: 1.00000049 | L38: 0.0009896013617 | M38: 1 | N38: 4.727396583e-06 | O38: 1 | P38: 1e-08 | Q38: 1 | R38: 1e-08 | S38: 1.000000018 | T38: 0.0002003369445 | U38: 81.3369548 | V38: -40.43574976 | W38: 139.5642502 | Y38: 1000000000 | Z38: 100 | AB38: 53.51286305 | AC38: -40.24918079 | AG38: 29.76229201 | AH38: -0.186568973 | AJ38: 0 | AK38: 0
A39: 10.965 | B39: 0.010965 | C39: 1.000005622 | D39: 0.003353223826 | E39: 1 | F39: 2.425108464e-06 | G39: 1 | H39: 0 | I39: 1.365670766 | J39: 0.749189779 | K39: 1.000000589 | L39: 0.001085097821 | M39: 1 | N39: 5.183590353e-06 | O39: 1 | P39: 1.0965e-08 | Q39: 1 | R39: 1.0965e-08 | S39: 1.000000021 | T39: 0.0002196694592 | U39: 80.9840342 | V39: -43.06811067 | W39: 136.9318893 | Y39: 1000000000 | Z39: 120.231225 | AB39: 53.1599507 | AC39: -42.86353791 | AG39: 29.76228376 | AH39: -0.2045727577 | AJ39: 0 | AK39: 0
A40: 12.023 | B40: 0.012023 | C40: 1.000006759 | D40: 0.003676769676 | E40: 1 | F40: 2.659104338e-06 | G40: 1 | H40: 0 | I40: 1.42830214 | J40: 0.7952140097 | K40: 1.000000708 | L40: 0.001189797544 | M40: 1 | N40: 5.683748912e-06 | O40: 1 | P40: 1.2023e-08 | Q40: 1 | R40: 1.2023e-08 | S40: 1.000000025 | T40: 0.0002408651072 | U40: 80.59454384 | V40: -45.71887348 | W40: 134.2811265 | Y40: 1000000000 | Z40: 144.552529 | AB40: 52.77047025 | AC40: -45.49456189 | AG40: 29.76227385 | AH40: -0.2243115836 | AJ40: 0 | AK40: 0
A41: 13.183 | B41: 0.013183 | C41: 1.000008127 | D41: 0.00403150715 | E41: 1 | F41: 2.91565936e-06 | G41: 1 | H41: 0 | I41: 1.500139864 | J41: 0.8411520587 | K41: 1.000000851 | L41: 0.001304591161 | M41: 1 | N41: 6.232126916e-06 | O41: 1 | P41: 1.3183e-08 | Q41: 1 | R41: 1.3183e-08 | S41: 1.000000031 | T41: 0.0002641041918 | U41: 80.16829986 | V41: -48.3660258 | W41: 131.6339742 | Y41: 1000000000 | Z41: 173.791489 | AB41: 52.34423819 | AC41: -48.12007245 | AG41: 29.76226193 | AH41: -0.2459533456 | AJ41: 0 | AK41: 0
A42: 14.454 | B42: 0.014454 | C42: 1.000009769 | D42: 0.004420188161 | E42: 1 | F42: 3.196764043e-06 | G42: 1 | H42: 0 | I42: 1.582135785 | J42: 0.8865915167 | K42: 1.000001023 | L42: 0.0014303693 | M42: 1 | N42: 6.832979021e-06 | O42: 1 | P42: 1.4454e-08 | Q42: 1 | R42: 1.4454e-08 | S42: 1.000000037 | T42: 0.0002895670162 | U42: 79.70604701 | V42: -50.98605543 | W42: 129.0139446 | Y42: 1000000000 | Z42: 208.918116 | AB42: 51.88199966 | AC42: -50.71638949 | AG42: 29.76224761 | AH42: -0.2696659334 | AJ42: 0 | AK42: 0
A43: 15.849 | B43: 0.015849 | C43: 1.000011746 | D43: 0.00484678773 | E43: 1 | F43: 3.505293574e-06 | G43: 1 | H43: 0 | I43: 1.675500863 | J43: 0.9312438093 | K43: 1.00000123 | L43: 0.001568418424 | M43: 1 | N43: 7.492450845e-06 | O43: 1 | P43: 1.5849e-08 | Q43: 1 | R43: 1.5849e-08 | S43: 1.000000044 | T43: 0.0003175140181 | U43: 79.20801352 | V43: -53.56259742 | W43: 126.4374026 | Y43: 1000000000 | Z43: 251.190801 | AB43: 51.38398341 | AC43: -53.26690556 | AG43: 29.76223038 | AH43: -0.2956918561 | AJ43: 0 | AK43: 0
A44: 17.378 | B44: 0.017378 | C44: 1.000014121 | D44: 0.00531436329 | E44: 1 | F44: 3.843459634e-06 | G44: 1 | H44: 0 | I44: 1.781245506 | J44: 0.9747137922 | K44: 1.000001479 | L44: 0.001719728112 | M44: 1 | N44: 8.215269782e-06 | O44: 1 | P44: 1.7378e-08 | Q44: 1 | R44: 1.7378e-08 | S44: 1.000000053 | T44: 0.0003481455345 | U44: 78.67641246 | V44: -56.07314177 | W44: 123.9268582 | Y44: 1000000000 | Z44: 301.994884 | AB44: 50.85240306 | AC44: -55.74892413 | AG44: 29.76220966 | AH44: -0.3242176435 | AJ44: 0 | AK44: 0
A45: 19.055 | B45: 0.019055 | C45: 1.000016978 | D45: 0.005827195283 | E45: 1 | F45: 4.214358575e-06 | G45: 1 | H45: 0 | I45: 1.900640184 | J45: 1.016742968 | K45: 1.000001778 | L45: 0.001885683775 | M45: 1 | N45: 9.008054189e-06 | O45: 1 | P45: 1.9055e-08 | Q45: 1 | R45: 1.9055e-08 | S45: 1.000000064 | T45: 0.0003817420368 | U45: 78.11286764 | V45: -58.50305985 | W45: 121.4969401 | Y45: 1000000000 | Z45: 363.093025 | AB45: 50.28888315 | AC45: -58.14755541 | AG45: 29.76218476 | AH45: -0.3555044391 | AJ45: 0 | AK45: =IF(AJ45>0,W43,0) -> 0
A46: 20.893 | B46: 0.020893 | C46: 1.000020412 | D46: 0.006389258062 | E46: 1 | F46: 4.620865585e-06 | G46: 1 | H46: 0 | I46: 2.034875315 | J46: 1.057064695 | K46: 1.000002137 | L46: 0.002067571854 | M46: 1 | N46: 9.876949681e-06 | O46: 1 | P46: 2.0893e-08 | Q46: 1 | R46: 2.0893e-08 | S46: 1.000000077 | T46: 0.0004185639628 | U46: 77.5200829 | V46: -60.83724326 | W46: 119.1627567 | Y46: 1000000000 | Z46: 436.517449 | AB46: 49.69612834 | AC46: -60.44744854 | AG46: 29.76215482 | AH46: -0.3897947141 | AJ46: 0 | AK46: 0
A47: 22.909 | B47: 0.022909 | C47: 1.000024541 | D47: 0.007005748817 | E47: 1 | F47: 5.06674052e-06 | G47: 1 | H47: 0 | I47: 2.185421163 | J47: 1.095527265 | K47: 1.00000257 | L47: 0.002267074616 | M47: 1 | N47: 1.082999283e-05 | O47: 1 | P47: 2.2909e-08 | Q47: 1 | R47: 2.2909e-08 | S47: 1.000000092 | T47: 0.0004589518849 | U47: 76.90010384 | V47: -63.06722097 | W47: 116.932779 | Y47: 1000000000 | Z47: 524.822281 | AB47: 49.07618528 | AC47: -62.63981542 | AG47: 29.76211882 | AH47: -0.4274055432 | AJ47: 0 | AK47: 0
A48: 25.119 | B48: 0.025119 | C48: 1.000029504 | D48: 0.007681558439 | E48: 1 | F48: 5.555522071e-06 | G48: 1 | H48: 0 | I48: 2.353667412 | J48: 1.131979307 | K48: 1.00000309 | L48: 0.002485775352 | M48: 1 | N48: 1.187474748e-05 | O48: 1 | P48: 2.5119e-08 | Q48: 1 | R48: 2.5119e-08 | S48: 1.000000111 | T48: 0.0005032263418 | U48: 76.25586609 | V48: -65.1845281 | W48: 114.8154719 | Y48: 1000000000 | Z48: 630.964161 | AB48: 48.43199079 | AC48: -64.71589278 | AG48: 29.76207555 | AH48: -0.4686353167 | AJ48: 0 | AK48: 0
A49: 27.542 | B49: 0.027542 | C49: 1.00003547 | D49: 0.008422494567 | E49: 1 | F49: 6.091412431e-06 | G49: 1 | H49: 0 | I49: 2.541221672 | J49: 1.166348149 | K49: 1.000003714 | L49: 0.002725554211 | M49: 1 | N49: 1.302019567e-05 | O49: 1 | P49: 2.7542e-08 | Q49: 1 | R49: 2.7542e-08 | S49: 1.000000133 | T49: 0.000551767973 | U49: 75.58987037 | V49: -67.18524809 | W49: 112.8147519 | Y49: 1000000000 | Z49: 758.561764 | AB49: 47.7660471 | AC49: -66.67140973 | AG49: 29.76202354 | AH49: -0.5138383562 | AJ49: 0 | AK49: 0
A50: 30.2 | B50: 0.0302 | C50: 1.000042647 | D50: 0.009235281353 | E50: 1 | F50: 6.679277301e-06 | G50: 1 | H50: 0 | I50: 2.749922641 | J50: 1.198616811 | K50: 1.000004466 | L50: 0.00298858819 | M50: 1 | N50: 1.427673768e-05 | O50: 1 | P50: 3.02e-08 | Q50: 1 | R50: 3.02e-08 | S50: 1.00000016 | T50: 0.0006050175189 | U50: 74.90425581 | V50: -69.06869403 | W50: 110.931306 | Y50: 1000000000 | Z50: 912.04 | AB50: 47.0804951 | AC50: -68.50526913 | AG50: 29.76196097 | AH50: -0.5634249008 | AJ50: 0 | AK50: 0
A51: 33.113 | B51: 0.033113 | C51: 1.00005127 | D51: 0.01012603024 | E51: 1 | F51: 7.323540042e-06 | G51: 1 | H51: 0 | I51: 2.981449839 | J51: 1.2287588 | K51: 1.000005369 | L51: 0.00327685633 | M51: 1 | N51: 1.56538283e-05 | O51: 1 | P51: 3.3113e-08 | Q51: 1 | R51: 3.3113e-08 | S51: 1.000000193 | T51: 0.0006633756524 | U51: 74.20204787 | V51: -70.83360804 | W51: 109.166392 | Y51: 1000000000 | Z51: 1096.470769 | AB51: 46.37836234 | AC51: -70.21584022 | AG51: 29.76188579 | AH51: -0.6177678141 | AJ51: 0 | AK51: 0
A52: 36.308 | B52: 0.036308 | C52: 1.000061641 | D52: 0.0111029917 | E52: 1 | F52: 8.030172194e-06 | G52: 1 | H52: 0 | I52: 3.238036731 | J52: 1.256834609 | K52: 1.000006455 | L52: 0.003593030335 | M52: 1 | N52: 1.716423151e-05 | O52: 1 | P52: 3.6308e-08 | Q52: 1 | R52: 3.6308e-08 | S52: 1.000000232 | T52: 0.0007273832817 | U52: 73.48488161 | V52: -72.48380715 | W52: 107.5161929 | Y52: 1000000000 | Z52: 1318.270864 | AB52: 45.66128649 | AC52: -71.80643669 | AG52: 29.76179538 | AH52: -0.6773704625 | AJ52: 0 | AK52: 0
A53: 39.811 | B53: 0.039811 | C53: 1.000074109 | D53: 0.01217410843 | E53: 1 | F53: 8.804924127e-06 | G53: 1 | H53: 0 | I53: 3.521842705 | J53: 1.282893216 | K53: 1.000007761 | L53: 0.003939682884 | M53: 1 | N53: 1.882023854e-05 | O53: 1 | P53: 3.9811e-08 | Q53: 1 | R53: 3.9811e-08 | S53: 1.000000278 | T53: 0.0007975612809 | U53: 72.75502057 | V53: -74.0224355 | W53: 105.9775645 | Y53: 1000000000 | Z53: 1584.915721 | AB53: 44.93153414 | AC53: -73.27971806 | AG53: 29.76168668 | AH53: -0.7427174436 | AJ53: 0 | AK53: 0
A54: 43.652 | B54: 0.043652 | C54: 1.000089098 | D54: 0.01334854365 | E54: 1 | F54: 9.654430886e-06 | G54: 1 | H54: 0 | I54: 3.835354008 | J54: 1.307015846 | K54: 1.00000933 | L54: 0.004319782404 | M54: 1 | N54: 2.063603156e-05 | O54: 1 | P54: 4.3652e-08 | Q54: 1 | R54: 4.3652e-08 | S54: 1.000000335 | T54: 0.0008745106584 | U54: 72.01419351 | V54: -75.4545367 | W54: 104.5454633 | Y54: 1000000000 | Z54: 1905.497104 | AB54: 44.19083776 | AC54: -74.64016888 | AG54: 29.76155601 | AH54: -0.8143678262 | AJ54: 0 | AK54: 0
A55: 47.863 | B55: 0.047863 | C55: 1.000107117 | D55: 0.01463606869 | E55: 1 | F55: 1.058576985e-05 | G55: 1 | H55: 0 | I55: 4.181226207 | J55: 1.329291254 | K55: 1.000011217 | L55: 0.004736495123 | M55: 1 | N55: 2.262673826e-05 | O55: 1 | P55: 4.7863e-08 | Q55: 1 | R55: 4.7863e-08 | S55: 1.000000402 | T55: 0.0009588724889 | U55: 71.26408867 | V55: -76.78561173 | W55: 103.2143883 | Y55: 1000000000 | Z55: 2290.866769 | AB55: 43.44089 | AC55: -75.89269394 | AG55: 29.76139893 | AH55: -0.8929177925 | AJ55: 0 | AK55: 0
A56: 52.481 | B56: 0.052481 | C56: 1.000128783 | D56: 0.01604797918 | E56: 1 | F56: 1.160712424e-05 | G56: 1 | H56: 0 | I56: 4.562532899 | J56: 1.349825957 | K56: 1.000013486 | L56: 0.005193481908 | M56: 1 | N56: 2.480985e-05 | O56: 1 | P56: 5.2481e-08 | Q56: 1 | R56: 5.2481e-08 | S56: 1.000000484 | T56: 0.001051388015 | U56: 70.5058726 | V56: -78.02224393 | W56: 101.9777561 | Y56: 1000000000 | Z56: 2754.255361 | AB56: 42.6828628 | AC56: -77.0431874 | AG56: 29.76121006 | AH56: -0.9790565344 | AJ56: 0 | AK56: 0
A57: 57.544 | B57: 0.057544 | C57: 1.000154827 | D57: 0.01759587053 | E57: 1 | F57: 1.272689844e-05 | G57: 1 | H57: 0 | I57: 4.982438758 | J57: 1.368718891 | K57: 1.000016214 | L57: 0.005694502381 | M57: 1 | N57: 2.720333089e-05 | O57: 1 | P57: 5.7544e-08 | Q57: 1 | R57: 5.7544e-08 | S57: 1.000000582 | T57: 0.001152818511 | U57: 69.74095005 | V57: -79.17059515 | W57: 100.8294049 | Y57: 1000000000 | Z57: 3311.311936 | AB57: 41.91816729 | AC57: -78.09710359 | AG57: 29.76098302 | AH57: -1.073491557 | AJ57: 0 | AK57: 0
A58: 63.096 | B58: 0.063096 | C58: 1.000186142 | D58: 0.01929316476 | E58: 1 | F58: 1.395482386e-05 | G58: 1 | H58: 0 | I58: 5.444613806 | J58: 1.386079936 | K58: 1.000019494 | L58: 0.006243909646 | M58: 1 | N58: 2.982798147e-05 | O58: 1 | P58: 6.3096e-08 | Q58: 1 | R58: 6.3096e-08 | S58: 1.000000699 | T58: 0.001264045451 | U58: 68.97020334 | V58: -80.23753169 | W58: 99.76246831 | Y58: 1000000000 | Z58: 3981.105216 | AB58: 41.14769355 | AC58: -79.06048986 | AG58: 29.76071005 | AH58: -1.177041832 | AJ58: 0 | AK58: 0
A59: 69.183 | B59: 0.069183 | C59: 1.000223785 | D59: 0.02115388497 | E59: 1 | F59: 1.530107422e-05 | G59: 1 | H59: 0 | I59: 5.952903403 | J59: 1.402010803 | K59: 1.000023436 | L59: 0.00684625437 | M59: 1.000000001 | N59: 3.270554777e-05 | O59: 1 | P59: 6.9183e-08 | Q59: 1 | R59: 6.9183e-08 | S59: 1.000000841 | T59: 0.001385990377 | U59: 68.19467435 | V59: -81.22947737 | W59: 98.77052263 | Y59: 1000000000 | Z59: 4786.287489 | AB59: 40.37249269 | AC59: -79.93891433 | AG59: 29.76038192 | AH59: -1.290563043 | AJ59: 0 | AK59: 0
A60: 75.858 | B60: 0.075858 | C60: 1.000269045 | D60: 0.02319418061 | E60: 1 | F60: 1.677737144e-05 | G60: 1 | H60: 0 | I60: 6.511745703 | J60: 1.416617569 | K60: 1.000028177 | L60: 0.00750677945 | M60: 1.000000001 | N60: 3.586108499e-05 | O60: 1 | P60: 7.5858e-08 | Q60: 1 | R60: 7.5858e-08 | S60: 1.000001011 | T60: 0.001519715059 | U60: 67.41494909 | V60: -82.15319654 | W60: 97.84680346 | Y60: 1000000000 | Z60: 5754.436164 | AB60: 39.59316193 | AC60: -80.73815589 | AG60: 29.75998742 | AH60: -1.415040646 | AJ60: 0 | AK60: 0
A61: 83.176 | B61: 0.083176 | C61: 1.00032345 | D61: 0.02543079452 | E61: 1 | F61: 1.839587976e-05 | G61: 1 | H61: 0 | I61: 7.125754901 | J61: 1.429995553 | K61: 1.000033875 | L61: 0.008230925091 | M61: 1.000000001 | N61: 3.93205938e-05 | O61: 1 | P61: 8.3176e-08 | Q61: 1 | R61: 8.3176e-08 | S61: 1.000001215 | T61: 0.001666321334 | U61: 66.63185543 | V61: -83.01486203 | W61: 96.98513797 | Y61: 1000000000 | Z61: 6918.246976 | AB61: 38.81054246 | AC61: -81.46336566 | AG61: 29.75951323 | AH61: -1.551496371 | AJ61: 0 | AK61: 0
A62: 91.201 | B62: 0.091201 | C62: 1.000388862 | D62: 0.02788319682 | E62: 1 | F62: 2.017075394e-05 | G62: 1 | H62: 0 | I62: 7.800308158 | J62: 1.442242474 | K62: 1.000040727 | L62: 0.009025021285 | M62: 1.000000001 | N62: 4.311432955e-05 | O62: 1 | P62: 9.1201e-08 | Q62: 1 | R62: 9.1201e-08 | S62: 1.000001461 | T62: 0.001827091334 | U62: 65.84572724 | V62: -83.82089994 | W62: 96.17910006 | Y62: 1000000000 | Z62: 8317.622401 | AB62: 38.02498437 | AC62: -82.11978151 | AG62: 29.75894313 | AH62: -1.701118422 | AJ62: 0 | AK62: 0
A63: 100 | B63: 0.1 | C63: 1.000467498 | D63: 0.03057174327 | E63: 1 | F63: 2.211681225e-05 | G63: 1 | H63: 0 | I63: 8.541043023 | J63: 1.453445449 | K63: 1.000048964 | L63: 0.009895693824 | M63: 1.000000001 | N63: 4.72739658e-05 | O63: 1 | P63: 1e-07 | Q63: 1 | R63: 1e-07 | S63: 1.000001757 | T63: 0.002003367287 | U63: 65.05713051 | V63: -84.57716632 | W63: 95.42283368 | Y63: 1000000000 | Z63: 10000 | AB63: 37.23707293 | AC63: -82.71201717 | AG63: 29.75825784 | AH63: -1.865149154 | AJ63: 0 | AK63: 0
A64: 109.65 | B64: 0.10965 | C64: 1.000562052 | D64: 0.03351980427 | E64: 1 | F64: 2.425108463e-05 | G64: 1 | H64: 0 | I64: 9.354446223 | J64: 1.463690628 | K64: 1.00005887 | L64: 0.01085055662 | M64: 1.000000001 | N64: 5.183590349e-05 | O64: 1 | P64: 1.0965e-07 | Q64: 1 | R64: 1.0965e-07 | S64: 1.000002112 | T64: 0.002196691747 | U64: 64.26624913 | V64: -85.28958946 | W64: 94.71041054 | Y64: 1000000000 | Z64: 12023.1225 | AB64: 36.4470155 | AC64: -83.24457447 | AG64: 29.75743389 | AH64: -2.045014998 | AJ64: 0 | AK64: 0
A65: 120.23 | B65: 0.12023 | C65: 1.00067571 | D65: 0.03675130734 | E65: 1 | F65: 2.659104337e-05 | G65: 1 | H65: 0 | I65: 10.24718012 | J65: 1.473052942 | K65: 1.000070778 | L65: 0.01189741967 | M65: 1.000000002 | N65: 5.683748906e-05 | O65: 1 | P65: 1.2023e-07 | Q65: 1 | R65: 1.2023e-07 | S65: 1.000002539 | T65: 0.002408647322 | U65: 63.47363649 | V65: -85.96347785 | W65: 94.03652215 | Y65: 1000000000 | Z65: 14455.2529 | AB65: 35.65539318 | AC65: -83.72130127 | AG65: 29.75644357 | AH65: -2.242176576 | AJ65: 0 | AK65: 0
A66: 131.83 | B66: 0.13183 | C66: 1.000812331 | D66: 0.0402934694 | E66: 1 | F66: 2.915659359e-05 | G66: 1 | H66: 0 | I66: 11.22684111 | J66: 1.481605873 | K66: 1.000085094 | L66: 0.01304517896 | M66: 1.000000002 | N66: 6.232126908e-05 | O66: 1 | P66: 1.3183e-07 | Q66: 1 | R66: 1.3183e-07 | S66: 1.000003053 | T66: 0.002641036975 | U66: 62.67950644 | V66: -86.60419603 | W66: 93.39580397 | Y66: 1000000000 | Z66: 17379.1489 | AB66: 34.86245339 | AC66: -84.14590056 | AG66: 29.75525331 | AH66: -2.458295464 | AJ66: 0 | AK66: 0
A67: 144.54 | B67: 0.14454 | C67: 1.000976439 | D67: 0.04417341532 | E67: 1.000000001 | F67: 3.196764042e-05 | G67: 1 | H67: 0 | I67: 12.30103102 | J67: 1.489412519 | K67: 1.000102293 | L67: 0.01430272738 | M67: 1.000000002 | N67: 6.832979011e-05 | O67: 1 | P67: 1.4454e-07 | Q67: 1 | R67: 1.4454e-07 | S67: 1.00000367 | T67: 0.002895663646 | U67: 61.88454755 | V67: -87.21650846 | W67: 92.78349154 | Y67: 1000000000 | Z67: 20891.8116 | AB67: 34.06892401 | AC67: -84.5214805 | AG67: 29.7538238 | AH67: -2.695027963 | AJ67: 0 | AK67: 0
A68: 158.49 | B68: 0.15849 | C68: 1.001173897 | D68: 0.04843035682 | E68: 1.000000001 | F68: 3.505293573e-05 | G68: 1 | H68: 0 | I68: 13.48073864 | J68: 1.496548215 | K68: 1.000122989 | L68: 0.01568291122 | M68: 1.000000003 | N68: 7.492450831e-05 | O68: 1 | P68: 1.5849e-07 | Q68: 1 | R68: 1.5849e-07 | S68: 1.000004413 | T68: 0.003175131592 | U68: 61.08756409 | V68: -87.8063932 | W68: 92.1936068 | Y68: 1000000000 | Z68: 25119.0801 | AB68: 33.27366025 | AC68: -84.85162489 | AG68: 29.7521041 | AH68: -2.954768304 | AJ68: 0 | AK68: 0
A69: 173.78 | B69: 0.17378 | C69: 1.001411154 | D69: 0.05309418618 | E69: 1.000000001 | F69: 3.843459632e-05 | G69: 1 | H69: 0 | I69: 14.77442233 | J69: 1.503059999 | K69: 1.000147863 | L69: 0.01719560303 | M69: 1.000000003 | N69: 8.215269764e-05 | O69: 1 | P69: 1.7378e-07 | Q69: 1 | R69: 1.7378e-07 | S69: 1.000005305 | T69: 0.003481444022 | U69: 60.28977781 | V69: -88.37780863 | W69: 91.62219137 | Y69: 1000000000 | Z69: 30199.4884 | AB69: 32.47793985 | AC69: -85.13846593 | AG69: 29.75003822 | AH69: -3.239342698 | AJ69: 0 | AK69: 0
A70: 190.55 | B70: 0.19055 | C70: 1.00169641 | D70: 0.05820678774 | E70: 1.000000001 | F70: 4.214358573e-05 | G70: 1 | H70: 0 | I70: 16.19392821 | J70: 1.509005474 | K70: 1.000177775 | L70: 0.01885462553 | M70: 1.000000004 | N70: 9.008054165e-05 | O70: 1 | P70: 1.9055e-07 | Q70: 1 | R70: 1.9055e-07 | S70: 1.000006379 | T70: 0.003817405441 | U70: 59.49072039 | V70: -88.93582563 | W70: 91.06417437 | Y70: 1000000000 | Z70: 36309.3025 | AB70: 31.68136561 | AC70: -85.38451578 | AG70: 29.74755504 | AH70: -3.551309852 | AJ70: 0 | AK70: 0
A71: 208.93 | B71: 0.20893 | C71: 1.002039108 | D71: 0.06380671678 | E71: 1.000000001 | F71: 4.620865581e-05 | G71: 1 | H71: 0 | I71: 17.7502607 | J71: 1.514429282 | K71: 1.00021372 | L71: 0.02067280255 | M71: 1.000000005 | N71: 9.876949649e-05 | O71: 1 | P71: 2.0893e-07 | Q71: 1 | R71: 2.0893e-07 | S71: 1.000007668 | T71: 0.004185619951 | U71: 58.69099973 | V71: -89.48462745 | W71: 90.51537255 | Y71: 1000000000 | Z71: 43651.7449 | AB71: 30.88462723 | AC71: -85.59160108 | AG71: 29.74457275 | AH71: -3.893026377 | AJ71: 0 | AK71: 0
A72: 229.09 | B72: 0.22909 | C72: 1.002451102 | D72: 0.06994434984 | E72: 1.000000001 | F72: 5.066740515e-05 | G72: 1 | H72: 0 | I72: 19.45781503 | J72: 1.519380444 | K72: 1.000256949 | L72: 0.0226669022 | M72: 1.000000006 | N72: 0.0001082999279 | O72: 1 | P72: 2.2909e-07 | Q72: 1 | R72: 2.2909e-07 | S72: 1.00000922 | T72: 0.004589492909 | U72: 57.89000442 | V72: -90.02914592 | W72: 89.97085408 | Y72: 1000000000 | Z72: 52482.2281 | AB72: 30.08721593 | AC72: -85.76157432 | AG72: 29.74098876 | AH72: -4.267571597 | AJ72: 0 | AK72: 0
A73: 251.19 | B73: 0.25119 | C73: 1.002946093 | D73: 0.07666653221 | E73: 1.000000002 | F73: 5.555522065e-05 | G73: 1 | H73: 0 | I73: 21.33014366 | J73: 1.523897126 | K73: 1.000308908 | L73: 0.02485268665 | M73: 1.000000007 | N73: 0.0001187474742 | O73: 1 | P73: 2.5119e-07 | Q73: 1 | R73: 2.5119e-07 | S73: 1.000011084 | T73: 0.005032229224 | U73: 57.08815733 | V73: -90.57353467 | W73: 89.42646533 | Y73: 1000000000 | Z73: 63096.4161 | AB73: 29.2896729 | AC73: -85.89572352 | AG73: 29.7366847 | AH73: -4.677811147 | AJ73: 0 | AK73: 0
A74: 275.42 | B74: 0.27542 | C74: 1.00354082 | D74: 0.08402860724 | E74: 1.000000002 | F74: 6.091412424e-05 | G74: 1 | H74: 0 | I74: 23.38334361 | J74: 1.528017797 | K74: 1.000371365 | L74: 0.0272488635 | M74: 1.000000008 | N74: 0.000130201956 | O74: 1 | P74: 2.7542e-07 | Q74: 1 | R74: 2.7542e-07 | S74: 1.000013326 | T74: 0.005517634655 | U74: 56.28527452 | V74: -91.12231764 | W74: 88.87768236 | Y74: 1000000000 | Z74: 75856.1764 | AB74: 28.49195858 | AC74: -85.99518602 | AG74: 29.7315162 | AH74: -5.127131615 | AJ74: 0 | AK74: 0
A75: 302 | B75: 0.302 | C75: 1.004255708 | D75: 0.09209419218 | E75: 1.000000002 | F75: 6.679277291e-05 | G75: 1 | H75: 0 | I75: 25.63605767 | J75: 1.53177887 | K75: 1.000446486 | L75: 0.02987707788 | M75: 1.00000001 | N75: 0.0001427673758 | O75: 1 | P75: 3.02e-07 | Q75: 1 | R75: 3.02e-07 | S75: 1.000016022 | T75: 0.006050115764 | U75: 55.48082542 | V75: -91.68024169 | W75: 88.31975831 | Y75: 1000000000 | Z75: 91204 | AB75: 27.69371822 | AC75: -86.060814 | AG75: 29.72530746 | AH75: -5.619427691 | AJ75: 0 | AK75: 0
A76: 331.13 | B76: 0.33113 | C76: 1.005114098 | D76: 0.1009197463 | E76: 1.000000003 | F76: 7.323540029e-05 | G76: 1 | H76: 0 | I76: 28.10523642 | J76: 1.535208257 | K76: 1.000536749 | L76: 0.03275695928 | M76: 1.000000012 | N76: 0.0001565382818 | O76: 1 | P76: 3.3113e-07 | Q76: 1 | R76: 3.3113e-07 | S76: 1.000019262 | T76: 0.006633678192 | U76: 54.67543972 | V76: -92.25124859 | W76: 87.74875141 | Y76: 1000000000 | Z76: 109647.0769 | AB76: 26.89578177 | AC76: -86.09308736 | AG76: 29.71785821 | AH76: -6.158161225 | AJ76: 0 | AK76: 0
A77: 363.08 | B77: 0.36308 | C77: =SQRT(1+(A77/p_dom)^2) -> 1.006145445 | D77: =ATAN(A77/p_dom) -> 0.1105815237 | E77: =SQRT(1+(A77/z_ESR)^2) -> 1.000000003 | F77: =ATAN(A77/z_ESR) -> 8.030172177e-05 | G77: =IF(VIN_nom>Vout, 1, SQRT(1+(A77/z_RHP)^2)) -> 1 | H77: =IF(VIN_nom>Vout, 0, -ATAN(A77/z_RHP)) -> 0 | I77: =SQRT(1+(A77/EA_p1)^2) -> 30.81376619 | J77: =ATAN(A77/EA_p1) -> 1.5383376 | K77: =SQRT(1+(A77/EA_z1)^2) -> 1.000645291 | L77: =ATAN(A77/EA_z1) -> 0.03591500789 | M77: =SQRT(1+(A77/EA_hf_p)^2) -> 1.000000015 | N77: =ATAN(A77/EA_hf_p) -> 0.0001716423135 | O77: =SQRT(1+(A77/Zero3)^2) -> 1 | P77: =ATAN(A77/Zero3) -> 3.6308e-07 | Q77: =SQRT(1+(A77/pole5)^2) -> 1 | R77: =ATAN(A77/pole5) -> 3.6308e-07 | S77: =SQRT((1-(Z77/pterm2))^2+(A77/pterm1)^2) -> 1.000023158 | T77: =IF((ATAN((A77/pterm1)/(1-A77^2/pterm2))>0),ATAN((A77/pterm1)/(1-A77^2/pterm2)),PI()+ATAN((A77/pterm1)/(1-A77^2/pterm2))) -> 0.007273729552 | U77: =20*LOG10(((E77*K77*G77*O77)/(C77*I77*S77*M77*Q77))*Adc) -> 53.86828927 | V77: =((F77+L77+H77+P77)-(D77+J77+T77+N77+R77))*radconv -> -92.84031572 | W77: =IF(V77>0,V77,V77+180) -> 87.15968428 | Y77: =IF(U77<0,A77,1000000000) -> 1000000000 | Z77: =A77^2 -> 131827.0864 | AB77: =20*LOG10((K77/(I77*M77))*Aea_stability*Afb*0.8) -> 26.09757317 | AC77: =(L77-(J77+N77))*radconv -> -86.09230806 | AG77: =20*LOG10((E77*G77/(C77*S77))*Am_stability) -> 29.70891635 | AH77: =(F77+H77-(D77+T77))*radconv -> -6.748007661 | AJ77: =SUM((U78<0)*(U77>0))*A77 -> 0 | AK77: =IF(AJ77>0,W75,0) -> 0
A78: 398.11 | B78: =A78/1000 -> 0.39811 | C78: 1.007383917 | D78: 0.1211508664 | E78: 1.000000004 | F78: 8.804924104e-05 | G78: 1 | H78: 0 | I78: 33.78368843 | J78: 1.541191919 | K78: 1.000775762 | L78: 0.03937666858 | M78: 1.000000018 | N78: 0.0001882023832 | O78: 1 | P78: 3.9811e-07 | Q78: 1 | R78: 3.9811e-07 | S78: 1.000027843 | T78: 0.00797547668 | U78: 53.05945046 | V78: -93.45180841 | W78: 86.54819159 | Y78: 1000000000 | Z78: 158491.5721 | AB78: 25.29946 | AC78: -86.05845877 | AG78: 29.69819072 | AH78: -7.39334964 | AJ78: 0 | AK78: 0
A79: 436.52 | B79: 0.43652 | C79: 1.008870893 | D79: 0.1327087657 | E79: 1.000000005 | F79: 9.654430856e-05 | G79: 1 | H79: 0 | I79: 37.04043786 | J79: 1.543795525 | K79: 1.000932603 | L79: 0.04317125249 | M79: 1.000000021 | N79: 0.0002063603127 | O79: 1 | P79: 4.3652e-07 | Q79: 1 | R79: 4.3652e-07 | S79: 1.000033474 | T79: 0.00874492713 | U79: 52.2485701 | V79: -94.09042915 | W79: 85.90957085 | Y79: 1000000000 | Z79: 190549.7104 | AB79: 24.50144013 | AC79: -85.99126113 | AG79: 29.68533023 | AH79: -8.099168023 | AJ79: 0 | AK79: 0
A80: 478.63 | B80: 0.47863 | C80: 1.010655485 | D80: 0.1453390636 | E80: 1.000000006 | F80: 0.0001058576981 | G80: 1 | H80: 0 | I80: 40.61114699 | J80: 1.546170057 | K80: 1.001121108 | L80: 0.04732993213 | M80: 1.000000026 | N80: 0.0002262673788 | O80: 1 | P80: 4.7863e-07 | Q80: 1 | R80: 4.7863e-07 | S80: 1.000040244 | T80: 0.009588488332 | U80: 51.43541314 | V80: -94.76080722 | W80: 85.23919278 | Y80: 1000000000 | Z80: 229086.6769 | AB80: 23.70369287 | AC80: -85.89017756 | AG80: 29.66992053 | AH80: -8.870629665 | AJ80: 0 | AK80: 0
A81: 524.81 | B81: 0.52481 | C81: 1.012797209 | D81: 0.1591364748 | E81: 1.000000007 | F81: 0.0001160712419 | G81: 1 | H81: 0 | I81: 44.52718995 | J81: 1.548336251 | K81: 1.001347729 | L81: 0.05188866688 | M81: 1.000000031 | N81: 0.000248098495 | O81: 1 | P81: 5.2481e-07 | Q81: 1 | R81: 5.2481e-07 | S81: 1.000048384 | T81: 0.0105135683 | U81: 50.61932057 | V81: -95.46792699 | W81: 84.53207301 | Y81: 1000000000 | Z81: 275425.5361 | AB81: 22.90605815 | AC81: -85.7543459 | AG81: 29.65146268 | AH81: -9.713581085 | AJ81: 0 | AK81: 0
A82: 575.44 | B82: 0.57544 | C82: 1.015365874 | D82: 0.1741933488 | E82: 1.000000008 | F82: 0.0001272689838 | G82: 1 | H82: 0 | I82: 48.82079062 | J82: 1.550311818 | K82: 1.001620091 | L82: 0.05688420429 | M82: 1.000000037 | N82: 0.0002720333023 | O82: 1 | P82: 5.7544e-07 | Q82: 1 | R82: 5.7544e-07 | S82: 1.00005817 | T82: 0.01152777403 | U82: 49.80000599 | V82: -96.21643024 | W82: 83.78356976 | Y82: 1000000000 | Z82: 331131.1936 | AB82: 22.1088299 | AC82: -85.5826857 | AG82: 29.62937635 | AH82: -10.63374454 | AJ82: 0 | AK82: 0
A83: 630.96 | B83: 0.63096 | C83: 1.018445806 | D83: 0.1906130035 | E83: 1.00000001 | F83: 0.0001395482377 | G83: 1 | H83: 0 | I83: 53.52926256 | J83: 1.552113869 | K83: 1.001947475 | L83: 0.06235895149 | M83: 1.000000044 | N83: 0.000298279806 | O83: 1 | P83: 6.3096e-07 | Q83: 1 | R83: 6.3096e-07 | S83: 1.000069935 | T83: 0.0126399126 | U83: 48.97670604 | V83: -97.01129832 | W83: 82.98870168 | Y83: 1000000000 | Z83: 398110.5216 | AB83: 21.31193935 | AC83: -85.37375957 | AG83: 29.60296695 | AH83: -11.63753875 | AJ83: 0 | AK83: 0
A84: 691.83 | B84: 0.69183 | C84: 1.022136017 | D84: 0.2084957973 | E84: 1.000000012 | F84: 0.000153010741 | G84: 1 | H84: 0 | I84: 58.69161688 | J84: 1.553757294 | K84: 1.002340893 | L84: 0.06835694412 | M84: 1.000000053 | N84: 0.0003270554662 | O84: 1 | P84: 6.9183e-07 | Q84: 1 | R84: 6.9183e-07 | S84: 1.000084079 | T84: 0.01385918942 | U84: 48.14888139 | V84: -97.85714536 | W84: 82.14285464 | Y84: 1000000000 | Z84: 478628.7489 | AB84: 20.51565288 | AC84: -85.12590993 | AG84: 29.57142877 | AH84: -12.73123544 | AJ84: 0 | AK84: 0
A85: 758.58 | B85: 0.75858 | C85: 1.026555552 | D85: 0.2279513268 | E85: 1.000000014 | F85: 0.0001677737128 | G85: 1 | H85: 0 | I85: 64.35280265 | J85: 1.555256363 | K85: 1.002813734 | L85: 0.07492866486 | M85: 1.000000064 | N85: 0.0003586108346 | O85: 1 | P85: 7.5858e-07 | Q85: 1 | R85: 7.5858e-07 | S85: 1.000101086 | T85: 0.0151962089 | U85: 47.31552698 | V85: -98.75879125 | W85: 81.24120875 | Y85: 1000000000 | Z85: 575443.6164 | AB85: 19.71992143 | AC85: -84.83707636 | AG85: 29.5338058 | AH85: -13.92171488 | AJ85: 0 | AK85: 0
A86: 831.76 | B86: 0.83176 | C86: 1.031843217 | D86: 0.249080577 | E86: 1.000000017 | F86: 0.0001839587955 | G86: 1 | H86: 0 | I86: 70.55946635 | J86: 1.55662341 | K86: 1.003381841 | L86: 0.08212597256 | M86: 1.000000077 | N86: 0.0003932059179 | O86: 1 | P86: 8.3176e-07 | Q86: 1 | R86: 8.3176e-07 | S86: 1.000121529 | T86: 0.01666197201 | U86: 46.47588703 | V86: -99.72039563 | W86: 80.27960437 | Y86: 1000000000 | Z86: 691824.6976 | AB86: 18.92508416 | AC86: -84.50500918 | AG86: 29.48900313 | AH86: -15.21538645 | AJ86: 0 | AK86: 0
A87: 912.01 | B87: 0.91201 | C87: 1.038165489 | D87: 0.2719923276 | E87: 1.00000002 | F87: 0.0002017075367 | G87: 1 | H87: 0 | I87: 77.36588871 | J87: 1.557870374 | K87: 1.004064511 | L87: 0.09000880165 | M87: 1.000000093 | N87: 0.0004311432691 | O87: 1 | P87: 9.1201e-07 | Q87: 1 | R87: 9.1201e-07 | S87: 1.000146109 | T87: 0.01826927698 | U87: 45.62863896 | V87: -100.7461837 | W87: 79.2538163 | Y87: 1000000000 | Z87: 831762.2401 | AB87: 18.13110701 | AC87: -84.12697577 | AG87: 29.43573221 | AH87: -16.61920792 | AJ87: 0 | AK87: 0
A88: 1000 | B88: 1 | C88: 1.045715743 | D88: 0.2967809902 | E88: 1.000000024 | F88: 0.000221168119 | G88: 1 | H88: 0 | I88: 84.82889597 | J88: 1.559007618 | K88: 1.004884628 | L88: 0.09863901069 | M88: 1.000000112 | N88: 0.0004727396231 | O88: 1 | P88: 1e-06 | Q88: 1 | R88: 1e-06 | S88: 1.000175659 | T88: 0.0200315158 | U88: 44.77264681 | V88: -101.8393913 | W88: 78.16060868 | Y88: 1000000000 | Z88: 1000000 | AB88: 17.33831263 | AC88: -83.70004381 | AG88: 29.37253444 | AH88: -18.13934751 | AJ88: 0 | AK88: 0
A89: 1096.5 | B89: 1.0965 | C89: 1.054723634 | D89: 0.3235407591 | E89: 1.000000029 | F89: 0.0002425108416 | G89: 1 | H89: 0 | I89: 93.0137969 | J89: 1.560045026 | K89: 1.005869963 | L89: 0.1080869296 | M89: 1.000000134 | N89: 0.0005183589889 | O89: 1 | P89: 1.0965e-06 | Q89: 1 | R89: 1.0965e-06 | S89: 1.000211194 | T89: 0.02196407385 | U89: 43.90627902 | V89: -103.0028448 | W89: 76.99715524 | Y89: 1000000000 | Z89: 1202312.25 | AB89: 16.54675401 | AC89: -83.22077086 | AG89: 29.29772527 | AH89: -19.7820739 | AJ89: 0 | AK89: 0
A90: 1202.3 | B90: 1.2023 | C90: 1.065451815 | D90: 0.3523365315 | E90: 1.000000035 | F90: 0.0002659104275 | G90: 1 | H90: 0 | I90: 101.9875974 | J90: 1.560991056 | K90: 1.007053224 | L90: 0.1184230977 | M90: 1.000000162 | N90: 0.00056837483 | O90: 1 | P90: 1.2023e-06 | Q90: 1 | R90: 1.2023e-06 | S90: 1.00025391 | T90: 0.02408272468 | U90: 43.0282171 | V90: -104.2376204 | W90: 75.76237958 | Y90: 1000000000 | Z90: 1445525.29 | AB90: 15.7569657 | AC90: -82.68562124 | AG90: 29.20945166 | AH90: -21.55199919 | AJ90: 0 | AK90: =IF(AJ90>0,W90,0) -> 0
A91: 1318.3 | B91: 1.3183 | C91: 1.078207893 | D91: 0.3832214351 | E91: 1.000000043 | F91: 0.0002915659277 | G91: 1 | H91: 0 | I91: 111.8266342 | J91: 1.561853794 | K91: 1.008473897 | L91: 0.1297265363 | M91: 1.000000194 | N91: 0.0006232126109 | O91: 1 | P91: 1.3183e-06 | Q91: 1 | R91: 1.3183e-06 | S91: 1.000305262 | T91: 0.02640542846 | U91: 42.136684 | V91: -105.5437401 | W91: 74.45625987 | Y91: 1000000000 | Z91: 1737914.89 | AB91: 14.96925231 | AC91: -82.09055515 | AG91: 29.10563195 | AH91: -23.45318499 | AJ91: 0 | AK91: 0
A92: 1445.4 | B92: 1.4454 | C92: 1.093335803 | D92: 0.4161993908 | E92: 1.000000051 | F92: 0.0003196763935 | G92: 1 | H92: 0 | I92: 122.6072446 | J92: 1.562640111 | K92: 1.010178 | L92: 0.1420733371 | M92: 1.000000233 | N92: 0.0006832977958 | O92: 1 | P92: 1.4454e-06 | Q92: 1 | R92: 1.4454e-06 | S92: 1.00036695 | T92: 0.02895012424 | U92: 41.23037415 | V92: -106.9185032 | W92: 73.08149675 | Y92: 1000000000 | Z92: 2089181.16 | AB92: 14.18449929 | AC92: -81.43163086 | AG92: 28.98407512 | AH92: -25.48687239 | AJ92: 0 | AK92: 0
A93: 1584.9 | B93: 1.5849 | C93: 1.111268281 | D93: 0.4513187459 | E93: 1.000000061 | F93: 0.0003505293431 | G93: 1 | H93: 0 | I93: 134.4396943 | J93: 1.563357979 | K93: 1.012224977 | L93: 0.1555745527 | M93: 1.000000281 | N93: 0.0007492449443 | O93: 1 | P93: 1.5849e-06 | Q93: 1 | R93: 1.5849e-06 | S93: 1.000441183 | T93: 0.03174273109 | U93: 40.30577753 | V93: -108.3602775 | W93: 71.63972249 | Y93: 1000000000 | Z93: 2511908.01 | AB93: 13.40185407 | AC93: -80.70297745 | AG93: 28.84212373 | AH93: -27.65730006 | AJ93: 0 | AK93: 0
A94: 1737.8 | B94: 1.7378 | C94: 1.13244421 | D94: 0.4884831579 | E94: 1.000000074 | F94: 0.0003843459445 | G94: 1 | H94: 0 | I94: 147.4088041 | J94: 1.564012419 | K94: 1.014679608 | L94: 0.1703070931 | M94: 1.000000337 | N94: 0.0008215267934 | O94: 1 | P94: 1.7378e-06 | Q94: 1 | R94: 1.7378e-06 | S94: 1.00053039 | T94: 0.03480312459 | U94: 39.36216426 | V94: -109.8605773 | W94: 70.13942271 | Y94: 1000000000 | Z94: 3019948.84 | AB94: 12.6229731 | AC94: -79.90050319 | AG94: 28.67739142 | AH94: -29.96007409 | AJ94: 0 | AK94: 0
A95: 1905.5 | B95: 1.9055 | C95: 1.157397829 | D95: 0.5276212813 | E95: 1.000000089 | F95: 0.0004214358326 | G95: 1 | H95: 0 | I95: 161.6333229 | J95: 1.564609444 | K95: 1.01762376 | L95: 0.1863800588 | M95: 1.000000406 | N95: 0.0009008051753 | O95: 1 | P95: 1.9055e-06 | Q95: 1 | R95: 1.9055e-06 | S95: 1.000637663 | T95: 0.03815913848 | U95: 38.39693218 | V95: -111.4110231 | W95: 68.58897686 | Y95: 1000000000 | Z95: 3630930.25 | AB95: 11.84798906 | AC95: -79.01833942 | AG95: 28.48714338 | AH95: -32.39268373 | AJ95: 0 | AK95: 0
A96: 2089.3 | B96: 2.0893 | C96: 1.186691744 | D96: 0.5685569376 | E96: 1.000000107 | F96: 0.0004620865256 | G96: 1 | H96: 0 | I96: 177.2235185 | J96: 1.565153705 | K96: 1.021150653 | L96: 0.2038846129 | M96: 1.000000488 | N96: 0.0009876946469 | O96: 1 | P96: 2.0893e-06 | Q96: 1 | R96: 2.0893e-06 | S96: 1.000766562 | T96: 0.04183654065 | U96: 37.40895021 | V96: -112.9980592 | W96: 67.00194085 | Y96: 1000000000 | Z96: 4365174.49 | AB96: 11.0782309 | AC96: -78.05156457 | AG96: 28.26891957 | AH96: -34.94649458 | AJ96: 0 | AK96: 0
A97: 2290.9 | B97: 2.2909 | C97: 1.220991902 | D97: 0.6111193751 | E97: 1.000000128 | F97: 0.0005066740086 | G97: 1 | H97: 0 | I97: 194.3235873 | J97: 1.565650248 | K97: 1.025376248 | L97: 0.2229394028 | M97: 1.000000586 | N97: 0.00108299886 | O97: 1 | P97: 2.2909e-06 | Q97: 1 | R97: 2.2909e-06 | S97: 1.000921563 | T97: 0.04586901755 | U97: 36.39589248 | V97: -114.6073478 | W97: 65.39265224 | Y97: 1000000000 | Z97: 5248222.81 | AB97: 10.31401543 | AC97: -76.99371591 | AG97: 28.02007732 | AH97: -37.61363185 | AJ97: 0 | AK97: 0
A98: 2511.9 | B98: 2.5119 | C98: 1.260986365 | D98: 0.6550294526 | E98: 1.000000154 | F98: 0.0005555521499 | G98: 1 | H98: 0 | I98: 213.0692443 | J98: 1.566103 | K98: 1.030432456 | L98: 0.2436399075 | M98: 1.000000705 | N98: 0.00118747419 | O98: 1 | P98: 2.5119e-06 | Q98: 1 | R98: 2.5119e-06 | S98: 1.001107842 | T98: 0.05028814273 | U98: 35.35714378 | V98: -116.2194818 | W98: 63.78051823 | Y98: 1000000000 | Z98: 6309641.61 | AB98: 9.556834994 | AC98: -75.83959109 | AG98: 27.73850904 | AH98: -40.37989068 | AJ98: 0 | AK98: 0
A99: 2754.2 | B99: 2.7542 | C99: 1.307447015 | D99: 0.699988881 | E99: 1.000000186 | F99: 0.0006091411678 | G99: 1 | H99: 0 | I99: 233.6216511 | J99: 1.566515889 | K99: 1.036478087 | L99: 0.2660927162 | M99: 1.000000848 | N99: 0.001302018831 | O99: 1 | P99: 2.7542e-06 | Q99: 1 | R99: 2.7542e-06 | S99: 1.001331731 | T99: 0.055131343 | U99: 34.2918918 | V99: -117.8136603 | W99: 62.18633968 | Y99: 1000000000 | Z99: 7585617.64 | AB99: 8.8077992 | AC99: -74.58335962 | AG99: 27.42229287 | AH99: -43.23030069 | AJ99: 0 | AK99: 0
A100: 3020 | B100: 3.02 | C100: 1.361232058 | D100: 0.7456772178 | E100: 1.000000223 | F100: 0.0006679276308 | G100: 1 | H100: 0 | I100: 256.1674165 | J100: 1.56689262 | K100: 1.043703562 | L100: 0.2904103277 | M100: 1.000001019 | N100: 0.001427672798 | O100: 1 | P100: 3.02e-06 | Q100: 1 | R100: 3.02e-06 | S100: 1.001600966 | T100: 0.06044184595 | U100: 33.19951893 | V100: -119.3677984 | W100: 60.63220158 | Y100: 1000000000 | Z100: 9120400 | AB100: 8.067922536 | AC100: -73.21884767 | AG100: 27.06979666 | AH100: -46.14895076 | AJ100: 0 | AK100: 0
A101: 3311.3 | B101: 3.3113 | C101: 1.423177776 | D101: 0.7916772219 | E101: 1.000000268 | F101: 0.0007323538733 | G101: 1 | H101: 0 | I101: 280.8761852 | J101: 1.567236032 | K101: 1.052320599 | L101: 0.3166601006 | M101: 1.000001225 | N101: 0.001565381552 | O101: 1 | P101: 3.3113e-06 | Q101: 1 | R101: 3.3113e-06 | S101: 1.001924405 | T101: 0.06625862886 | U101: 32.08177095 | V101: -120.8565553 | W101: 59.14344474 | Y101: 1000000000 | Z101: 10964707.69 | AB101: 7.339518275 | AC101: -71.74241265 | AG101: 26.68045294 | AH101: -49.11414261 | AJ101: 0 | AK101: 0
A102: 3630.8 | B102: 3.6308 | C102: 1.494277608 | D102: 0.8376381582 | E102: 1.000000322 | F102: 0.0008030170468 | G102: 1 | H102: 0 | I102: 307.9769775 | J102: 1.567549325 | K102: 1.06259107 | L102: 0.3449398101 | M102: 1.000001473 | N102: 0.001716421466 | O102: 1 | P102: 3.6308e-06 | Q102: 1 | R102: 3.6308e-06 | S102: 1.002313244 | T102: 0.07263431523 | U102: 30.9392514 | V102: -122.2574705 | W102: 57.7425295 | Y102: 1000000000 | Z102: 13182708.64 | AB102: 6.623811229 | AC102: -70.14870899 | AG102: 26.25364043 | AH102: -52.10876151 | AJ102: 0 | AK102: 0
A103: 3981.1 | B103: 3.9811 | C103: 1.575511223 | D103: 0.8831571746 | E103: 1.000000388 | F103: 0.0008804921852 | G103: 1 | H103: 0 | I103: 337.6903321 | J103: 1.56783503 | K103: 1.074808177 | L103: 0.3752975998 | M103: 1.000001771 | N103: 0.001882021632 | O103: 1 | P103: 3.9811e-06 | Q103: 1 | R103: 3.9811e-06 | S103: 1.002780505 | T103: 0.07961908794 | U103: 29.77468538 | V103: -123.5477616 | W103: 56.45223836 | Y103: 1000000000 | Z103: 15849157.21 | AB103: 5.923097156 | AC103: -68.43519361 | AG103: 25.78978848 | AH103: -55.11256803 | AJ103: 0 | AK103: 0
A104: 4365.2 | B104: 4.3652 | C104: 1.667947199 | D104: 0.9278708909 | E104: 1.000000466 | F104: 0.0009654427886 | G104: 1 | H104: 0 | I104: 370.2707167 | J104: 1.568095597 | K104: 1.089315162 | L104: 0.4077686656 | M104: 1.000002129 | N104: 0.002063600227 | O104: 1 | P104: 4.3652e-06 | Q104: 1 | R104: 4.3652e-06 | S104: 1.003342001 | T104: 0.0872705312 | U104: 28.59104173 | V104: -124.708075 | W104: 55.29192496 | Y104: 1000000000 | Z104: 19054971.04 | AB104: 5.239530983 | AC104: -66.60007168 | AG104: 25.28971101 | AH104: -58.10800337 | AJ104: 0 | AK104: 0
A105: 4786.3 | B105: 4.7863 | C105: 1.772695976 | D105: 0.9714382885 | E105: 1.00000056 | F105: 0.00105857659 | G105: 1 | H105: 0 | I105: 405.9895639 | J105: 1.568333207 | K105: 1.106502244 | L105: 0.4423487761 | M105: 1.00000256 | N105: 0.002262669965 | O105: 1 | P105: 4.7863e-06 | Q105: 1 | R105: 4.7863e-06 | S105: 1.004016565 | T105: 0.09564945591 | U105: 27.39222683 | V105: -125.7227694 | W105: 54.27723059 | Y105: 1000000000 | Z105: 22908667.69 | AB105: 4.575592188 | AC105: -64.64379719 | AG105: 24.7548349 | AH105: -61.07897222 | AJ105: 0 | AK105: 0
A106: 5248.1 | B106: 5.2481 | C106: 1.890983499 | D106: 1.013580374 | E106: 1.000000674 | F106: 0.001160711903 | G106: 1 | H106: 0 | I106: 445.1607176 | J106: 1.568549945 | K106: 1.126821811 | L106: 0.4790097586 | M106: 1.000003078 | N106: 0.00248097991 | O106: 1 | P106: 5.2481e-06 | Q106: 1 | R106: 5.2481e-06 | S106: 1.00482711 | T106: 0.1048256268 | U106: 26.18216404 | V106: -126.5816438 | W106: 53.41835616 | Y106: 1000000000 | Z106: 27542553.61 | AB106: 3.933607326 | AC106: -62.56820405 | AG106: 24.18675698 | AH106: -64.01343979 | AJ106: 0 | AK106: 0
A107: 5370.3 | B107: 5.3703 | C107: 1.922802391 | D107: 1.023858454 | E107: 1.000000705 | F107: 0.00118773861 | G107: 1 | H107: 0 | I107: 455.5260629 | J107: 1.568601061 | K107: 1.132446304 | L107: 0.4884866361 | M107: 1.000003223 | N107: 0.002538748333 | O107: 1 | P107: 5.3703e-06 | Q107: 1 | R107: 5.3703e-06 | S107: 1.005053962 | T107: 0.1072514428 | U107: 25.8785836 | V107: -126.7712285 | W107: 53.22877153 | Y107: 1000000000 | Z107: 28840122.09 | AB107: 3.77692562 | AC107: -62.03145757 | AG107: 24.03985824 | AH107: -64.7397709 | AJ107: 0 | AK107: 0
A108: 5432.85 | B108: 5.43285 | C108: 1.939166036 | D108: 1.028988663 | E108: 1.000000722 | F108: 0.001201572656 | G108: 1 | H108: 0 | I108: 460.831729 | J108: 1.568626336 | K108: 1.135364347 | L108: 0.4933009738 | M108: 1.000003298 | N108: 0.002568318006 | O108: 1 | P108: 5.43285e-06 | Q108: 1 | R108: 5.43285e-06 | S108: 1.00517208 | T108: 0.1084927387 | U108: 25.72572531 | V108: -126.8627973 | W108: 53.13720267 | Y108: 1000000000 | Z108: 29515859.12 | AB108: 3.698694778 | AC108: -61.75875869 | AG108: 23.96523079 | AH108: -65.10403864 | AJ108: 0 | AK108: 0
A109: 5495.4 | B109: 5.4954 | C109: 1.955579864 | D109: 1.034032885 | E109: 1.000000739 | F109: 0.001215406702 | G109: 1 | H109: 0 | I109: 466.1373954 | J109: 1.568651035 | K109: 1.138308571 | L109: 0.4980905175 | M109: 1.000003375 | N109: 0.002597887674 | O109: 1 | P109: 5.4954e-06 | Q109: 1 | R109: 5.4954e-06 | S109: 1.005291552 | T109: 0.1097337624 | U109: 25.57454489 | V109: -126.9508115 | W109: 53.04918855 | Y109: 1000000000 | Z109: 30199421.16 | AB109: 3.621757748 | AC109: -61.48744743 | AG109: 23.8909874 | AH109: -65.46336402 | AJ109: 0 | AK109: 0
A110: 5559.4 | B110: 5.5594 | C110: 1.972424823 | D110: 1.039107012 | E110: 1.000000756 | F110: 0.001229561441 | G110: 1 | H110: 0 | I110: 471.5660551 | J110: 1.568675732 | K110: 1.141347932 | L110: 0.502965399 | M110: 1.000003454 | N110: 0.002628142805 | O110: 1 | P110: 5.5594e-06 | Q110: 1 | R110: 5.5594e-06 | S110: 1.005415194 | T110: 0.1110032698 | U110: 25.42156727 | V110: -127.0373023 | W110: 52.96269769 | Y110: 1000000000 | Z110: 30906928.36 | AB110: 3.544346259 | AC110: -61.2112858 | AG110: 23.81542127 | AH110: -65.82601651 | AJ110: 0 | AK110: 0
A111: 5623.4 | B111: 5.6234 | C111: 1.989319704 | D111: 1.044095079 | E111: 1.000000773 | F111: 0.001243716179 | G111: 1 | H111: 0 | I111: 476.9947151 | J111: 1.568699866 | K111: 1.144414272 | L111: 0.5078142716 | M111: 1.000003534 | N111: 0.002658397932 | O111: 1 | P111: 5.6234e-06 | Q111: 1 | R111: 5.6234e-06 | S111: 1.005540253 | T111: 0.1122724858 | U111: 25.27028745 | V111: -127.1203036 | W111: 52.87969644 | Y111: 1000000000 | Z111: 31622627.56 | AB111: 3.468229112 | AC111: -60.93658215 | AG111: 23.7402586 | AH111: -66.1837214 | AJ111: 0 | AK111: 0
A112: 5688.9 | B112: 5.6889 | C112: 2.006660934 | D112: 1.049112957 | E112: 1.000000792 | F112: 0.001258202668 | G112: 1 | H112: 0 | I112: 482.5506097 | J112: 1.568724004 | K112: 1.147580189 | L112: 0.5127498401 | M112: 1.000003616 | N112: 0.002689362158 | O112: 1 | P112: 5.6889e-06 | Q112: 1 | R112: 5.6889e-06 | S112: 1.00566971 | T112: 0.1135711439 | U112: 25.11718999 | V112: -127.2017543 | W112: 52.79824574 | Y112: 1000000000 | Z112: 32363583.21 | AB112: 3.391637905 | AC112: -60.65695203 | AG112: 23.66375235 | AH112: -66.54480224 | AJ112: 0 | AK112: 0
A113: 5754.4 | B113: 5.7544 | C113: 2.024051824 | D113: 1.054044728 | E113: 1.00000081 | F113: 0.001272689157 | G113: 1 | H113: 0 | I113: 488.1065045 | J113: 1.568747592 | K113: 1.150773907 | L113: 0.5176581325 | M113: 1.0000037 | N113: 0.00272032638 | O113: 1 | P113: 5.7544e-06 | Q113: 1 | R113: 5.7544e-06 | S113: 1.005800648 | T113: 0.11486949 | U113: 24.96581069 | V113: -127.2797849 | W113: 52.72021509 | Y113: 1000000000 | Z113: 33113119.36 | AB113: 3.31634192 | AC113: -60.37885322 | AG113: 23.58766903 | AH113: -66.90093168 | AJ113: 0 | AK113: 0
A114: 5821.4 | B114: 5.8214 | C114: 2.041891034 | D114: 1.059002402 | E114: 1.000000829 | F114: 0.001287507397 | G114: 1 | H114: 0 | I114: 493.7896338 | J114: 1.568771172 | K114: 1.154069285 | L114: 0.5226505988 | M114: 1.000003787 | N114: 0.002751999699 | O114: 1 | P114: 5.8214e-06 | Q114: 1 | R114: 5.8214e-06 | S114: 1.005936119 | T114: 0.1161972428 | U114: 24.81271167 | V114: -127.3561828 | W114: 52.64381722 | Y114: 1000000000 | Z114: 33888697.96 | AB114: 3.240631234 | AC114: -60.09597172 | AG114: 23.5102807 | AH114: -67.26021106 | AJ114: 0 | AK114: 0
A115: 5888.4 | B115: 5.8884 | C115: 2.05977956 | D115: 1.063874082 | E115: 1.000000848 | F115: 0.001302325637 | G115: 1 | H115: 0 | I115: 499.4727634 | J115: 1.568794214 | K115: 1.157393264 | L115: 0.527614512 | M115: 1.000003874 | N115: 0.002783673014 | O115: 1 | P115: 5.8884e-06 | Q115: 1 | R115: 5.8884e-06 | S115: 1.006073139 | T115: 0.1175246618 | U115: 24.6613489 | V115: -127.4292397 | W115: 52.57076031 | Y115: 1000000000 | Z115: 34673254.56 | AB115: 3.166214982 | AC115: -59.81469544 | AG115: 23.43333418 | AH115: -67.61454425 | AJ115: 0 | AK115: 0
A116: 5957 | B116: 5.957 | C116: 2.078145043 | D116: 1.068775083 | E116: 1.000000868 | F116: 0.001317497744 | G116: 1 | H116: 0 | I116: 505.2916098 | J116: 1.56881727 | K116: 1.160825998 | L116: 0.5326673842 | M116: 1.000003965 | N116: 0.0028161027 | O116: 1 | P116: 5.957e-06 | Q116: 1 | R116: 5.957e-06 | S116: 1.006215038 | T116: 0.1188834308 | U116: 24.50813906 | V116: -127.5006996 | W116: 52.49930036 | Y116: 1000000000 | Z116: 35485849 | AB116: 3.091332185 | AC116: -59.52836628 | AG116: 23.35500714 | AH116: -67.97233335 | AJ116: 0 | AK116: 0
A117: 6025.6 | B117: 6.0256 | C117: 2.096559567 | D117: 1.073590105 | E117: 1.000000888 | F117: 0.00133266985 | G117: 1 | H117: 0 | I117: 511.1104564 | J117: 1.568839801 | K117: 1.164288195 | L117: 0.5376903329 | M117: 1.000004057 | N117: 0.002848532381 | O117: 1 | P117: 6.0256e-06 | Q117: 1 | R117: 6.0256e-06 | S117: 1.006358559 | T117: 0.1202418421 | U117: 24.35668639 | V117: -127.5688973 | W117: 52.43110274 | Y117: 1000000000 | Z117: 36307855.36 | AB117: 3.017745166 | AC117: -59.24372154 | AG117: 23.27714148 | AH117: -68.32517572 | AJ117: 0 | AK117: 0
A118: 6095.8 | B118: 6.0958 | C118: 2.115453018 | D118: 1.078430533 | E118: 1.000000909 | F118: 0.001348195825 | G118: 1 | H118: 0 | I118: 517.0650198 | J118: 1.568862333 | K118: 1.16786137 | L118: 0.542799471 | M118: 1.000004152 | N118: 0.002881718432 | O118: 1 | P118: 6.0958e-06 | Q118: 1 | R118: 6.0958e-06 | S118: 1.006507108 | T118: 0.1216315622 | U118: 24.20348828 | V118: -127.6354292 | W118: 52.3645708 | Y118: 1000000000 | Z118: 37158777.64 | AB118: 2.943752484 | AC118: -58.95418187 | AG118: 23.19793605 | AH118: -68.68124733 | AJ118: 0 | AK118: 0
A119: 6166 | B119: 6.166 | C119: 2.134395156 | D119: 1.083185155 | E119: 1.00000093 | F119: 0.001363721798 | G119: 1 | H119: 0 | I119: 523.0195835 | J119: 1.568884351 | K119: 1.171464845 | L119: 0.5478773091 | M119: 1.000004248 | N119: 0.002914904478 | O119: 1 | P119: 6.166e-06 | Q119: 1 | R119: 6.166e-06 | S119: 1.006657357 | T119: 0.1230208995 | U119: 24.05206576 | V119: -127.6987869 | W119: 52.30121309 | Y119: 1000000000 | Z119: 38019556 | AB119: 2.871055132 | AC119: -58.66640616 | AG119: 23.11921089 | AH119: -69.03238075 | AJ119: 0 | AK119: 0
A120: 6237.8 | B120: 6.2378 | C120: 2.153818049 | D120: 1.087961524 | E120: 1.000000952 | F120: 0.00137960164 | G120: 1 | H120: 0 | I120: 529.1098641 | J120: 1.568906359 | K120: 1.175181501 | L120: 0.5530385317 | M120: 1.000004348 | N120: 0.002948846893 | O120: 1 | P120: 6.2378e-06 | Q120: 1 | R120: 6.2378e-06 | S120: 1.006812786 | T120: 0.1244415022 | U120: 23.89899595 | V120: -127.7604268 | W120: 52.23957323 | Y120: 1000000000 | Z120: 38910148.84 | AB120: 2.798009845 | AC120: -58.37389559 | AG120: 23.03918637 | AH120: -69.38653117 | AJ120: 0 | AK120: 0
A121: 6309.6 | B121: 6.3096 | C121: 2.173289198 | D121: 1.092652411 | E121: 1.000000974 | F121: 0.00139548148 | G121: 1 | H121: 0 | I121: 535.2001448 | J121: 1.568927866 | K121: 1.178929264 | L121: 0.5581670757 | M121: 1.000004449 | N121: 0.002982789302 | O121: 1 | P121: 6.3096e-06 | Q121: 1 | R121: 6.3096e-06 | S121: 1.00696999 | T121: 0.1258616956 | U121: 23.74771771 | V121: -127.8189892 | W121: 52.18101084 | Y121: 1000000000 | Z121: 39811052.16 | AB121: 2.726257722 | AC121: -58.08322868 | AG121: 22.95966025 | AH121: -69.73576049 | AJ121: 0 | AK121: 0
A122: 6383.05 | B122: 6.38305 | C122: 2.193256399 | D122: 1.09736481 | E122: 1.000000996 | F122: 0.001411726247 | G122: 1 | H122: 0 | I122: 541.4303835 | J122: 1.568949366 | K122: 1.182795032 | L122: 0.5633797063 | M122: 1.000004553 | N122: 0.003017511717 | O122: 1 | P122: 6.38305e-06 | Q122: 1 | R122: 6.38305e-06 | S122: 1.007132644 | T122: 0.1273140977 | U122: 23.59478328 | V122: -127.8758351 | W122: 52.12416494 | Y122: 1000000000 | Z122: 40743327.3 | AB122: 2.654163663 | AC122: -57.78778827 | AG122: 22.87881988 | AH122: -70.08804679 | AJ122: 0 | AK122: 0
A123: 6456.5 | B123: 6.4565 | C123: 2.213271425 | D123: 1.101992079 | E123: 1.00000102 | F123: 0.001427971013 | G123: 1 | H123: 0 | I123: 547.6606225 | J123: 1.568970377 | K123: 1.186692728 | L123: 0.5685582351 | M123: 1.000004658 | N123: 0.003052234126 | O123: 1 | P123: 6.4565e-06 | Q123: 1 | R123: 6.4565e-06 | S123: 1.007297153 | T123: 0.128766062 | U123: 23.4436564 | V123: -127.9297042 | W123: 52.07029579 | Y123: 1000000000 | Z123: 41686392.25 | AB123: 2.583360691 | AC123: -57.49427373 | AG123: 22.79849597 | AH123: -70.43543048 | AJ123: 0 | AK123: 0
A124: 6531.7 | B124: 6.5317 | C124: 2.233811529 | D124: 1.106643587 | E124: 1.000001043 | F124: 0.001444602821 | G124: 1 | H124: 0 | I124: 554.0393017 | J124: 1.5689914 | K124: 1.190716041 | L124: 0.573824877 | M124: 1.000004767 | N124: 0.003087783813 | O124: 1 | P124: 6.5317e-06 | Q124: 1 | R124: 6.5317e-06 | S124: 1.007467505 | T124: 0.130252162 | U124: 23.29076714 | V124: -127.9818953 | W124: 52.01810473 | Y124: 1000000000 | Z124: 42663104.89 | AB124: 2.512177058 | AC124: -57.19575871 | AG124: 22.71679034 | AH124: -70.78613656 | AJ124: 0 | AK124: 0
A125: 6606.9 | B125: 6.6069 | C125: 2.254399084 | D125: 1.111210235 | E125: 1.000001068 | F125: 0.001461234629 | G125: 1 | H125: 0 | I125: 560.4179811 | J125: 1.569011943 | K125: 1.194772158 | L125: 0.5790559038 | M125: 1.000004878 | N125: 0.003123333492 | O125: 1 | P125: 6.6069e-06 | Q125: 1 | R125: 6.6069e-06 | S125: 1.0076398 | T125: 0.1317377931 | U125: 23.13970367 | V125: -128.0312106 | W125: 51.96878945 | Y125: 1000000000 | Z125: 43651127.61 | AB125: 2.442284125 | AC125: -56.89925686 | AG125: 22.6356198 | AH125: -71.13195369 | AJ125: 0 | AK125: 0
A126: 6683.85 | B126: 6.68385 | C126: 2.275513514 | D126: 1.115797518 | E126: 1.000001093 | F126: 0.001478253479 | G126: 1 | H126: 0 | I126: 566.9451008 | J126: 1.569032487 | K126: 1.198956278 | L126: 0.5843718755 | M126: 1.000004992 | N126: 0.00315971045 | O126: 1 | P126: 6.68385e-06 | Q126: 1 | R126: 6.68385e-06 | S126: 1.007818117 | T126: 0.1332575061 | U126: 22.98697968 | V126: -128.078819 | W126: 51.92118096 | Y126: 1000000000 | Z126: 44673850.82 | AB126: 2.372069269 | AC126: -56.59793541 | AG126: 22.55311067 | AH126: -71.48088363 | AJ126: 0 | AK126: 0
A127: 6760.8 | B127: 6.7608 | C127: 2.296674947 | D127: 1.120300359 | E127: 1.000001118 | F127: 0.001495272329 | G127: 1 | H127: 0 | I127: 573.4722208 | J127: 1.569052562 | K127: 1.203174043 | L127: 0.5896507248 | M127: 1.000005108 | N127: 0.003196087399 | O127: 1 | P127: 6.7608e-06 | Q127: 1 | R127: 6.7608e-06 | S127: 1.007998467 | T127: 0.1347767173 | U127: 22.836097 | V127: -128.1236609 | W127: 51.87633915 | Y127: 1000000000 | Z127: 45708416.64 | AB127: 2.303142854 | AC127: -56.29871412 | AG127: 22.4711544 | AH127: -71.82494674 | AJ127: 0 | AK127: 0
A128: 6839.55 | B128: 6.83955 | C128: 2.318378706 | D128: 1.124823329 | E128: 1.000001144 | F128: 0.001512689279 | G128: 1 | H128: 0 | I128: 580.1520221 | J128: 1.56907264 | K128: 1.207524937 | L128: 0.5950147216 | M128: 1.000005227 | N128: 0.003233315263 | O128: 1 | P128: 6.83955e-06 | Q128: 1 | R128: 6.83955e-06 | S128: 1.008185139 | T128: 0.1363309405 | U128: 22.68355544 | V128: -128.1668094 | W128: 51.83319059 | Y128: 1000000000 | Z128: 46779444.2 | AB128: 2.233906402 | AC128: -55.9946631 | AG128: 22.3878493 | AH128: -72.17214632 | AJ128: 0 | AK128: 0
A129: 6918.3 | B129: 6.9183 | C129: 2.340129013 | D129: 1.12926231 | E129: 1.000001171 | F129: 0.001530106228 | G129: 1 | H129: 0 | I129: 586.8318237 | J129: 1.56909226 | K129: 1.211910325 | L129: 0.6003400507 | M129: 1.000005348 | N129: 0.003270543117 | O129: 1 | P129: 6.9183e-06 | Q129: 1 | R129: 6.9183e-06 | S129: 1.008373939 | T129: 0.1378846267 | U129: 22.53287036 | V129: -128.2073044 | W129: 51.79269564 | Y129: 1000000000 | Z129: 47862874.89 | AB129: 2.165955949 | AC129: -55.69280138 | AG129: 22.30511467 | AH129: -72.51450298 | AJ129: 0 | AK129: 0
A130: 6998.9 | B130: 6.9989 | C130: 2.362437138 | D130: 1.133720843 | E130: 1.000001198 | F130: 0.001547932337 | G130: 1 | H130: 0 | I130: 593.6685478 | J130: 1.569111884 | K130: 1.216434063 | L130: 0.6057505647 | M130: 1.000005474 | N130: 0.003308645521 | O130: 1 | P130: 6.9989e-06 | Q130: 1 | R130: 6.9989e-06 | S130: 1.008569376 | T130: 0.1394742503 | U130: 22.3805311 | V130: -128.2461247 | W130: 51.75387531 | Y130: 1000000000 | Z130: 48984601.21 | AB130: 2.097708943 | AC130: -55.38610925 | AG130: 22.22102242 | AH130: -72.86001544 | AJ130: 0 | AK130: 0
A131: 7079.5 | B131: 7.0795 | C131: 2.384791345 | D131: 1.138095876 | E131: 1.000001226 | F131: 0.001565758444 | G131: 1 | H131: 0 | I131: 600.5052721 | J131: 1.569131062 | K131: 1.220993147 | L131: 0.6111208302 | M131: 1.0000056 | N131: 0.003346747916 | O131: 1 | P131: 7.0795e-06 | Q131: 1 | R131: 7.0795e-06 | S131: 1.008767039 | T131: 0.1410632991 | U131: 22.23006299 | V131: -128.2824084 | W131: 51.71759162 | Y131: 1000000000 | Z131: 50119320.25 | AB131: 2.030745232 | AC131: -55.08169759 | AG131: 22.13751802 | AH131: -73.20071079 | AJ131: 0 | AK131: 0
A132: 7161.95 | B132: 7.16195 | C132: 2.407704989 | D132: 1.142487184 | E132: 1.000001255 | F132: 0.001583993711 | G132: 1 | H132: 0 | I132: 607.498919 | J132: 1.569150233 | K132: 1.225693034 | L132: 0.6165728609 | M132: 1.000005732 | N132: 0.003385724859 | O132: 1 | P132: 7.16195e-06 | Q132: 1 | R132: 7.16195e-06 | S132: 1.008971541 | T132: 0.1426882201 | U132: 22.07803986 | V132: -128.3170214 | W132: 51.6829786 | Y132: 1000000000 | Z132: 51293527.8 | AB132: 1.963540227 | AC132: -54.77265087 | AG132: 22.05269989 | AH132: -73.54437053 | AJ132: 0 | AK132: 0
A133: 7244.4 | B133: 7.2444 | C133: 2.430664185 | D133: 1.146795617 | E133: 1.000001284 | F133: 0.001602228976 | G133: 1 | H133: 0 | I133: 614.4925661 | J133: 1.569168967 | K133: 1.230429076 | L133: 0.6219830806 | M133: 1.000005864 | N133: 0.003424701792 | O133: 1 | P133: 7.2444e-06 | Q133: 1 | R133: 7.2444e-06 | S133: 1.009178369 | T133: 0.1443125268 | U133: 21.92789971 | V133: -128.3492214 | W133: 51.65077862 | Y133: 1000000000 | Z133: 52481331.36 | AB133: 1.897613944 | AC133: -54.46597473 | AG133: 21.96848603 | AH133: -73.88324665 | AJ133: 0 | AK133: 0
A134: 7328.75 | B134: 7.32875 | C134: 2.454198267 | D134: 1.151119833 | E134: 1.000001314 | F134: 0.001620884459 | G134: 1 | H134: 0 | I134: 621.6473769 | J134: 1.569187697 | K134: 1.235311236 | L134: 0.6274748807 | M134: 1.000006002 | N134: 0.003464576909 | O134: 1 | P134: 7.32875e-06 | Q134: 1 | R134: 7.32875e-06 | S134: 1.00939237 | T134: 0.1459736217 | U134: 21.77621012 | V134: -128.3797864 | W134: 51.62021359 | Y134: 1000000000 | Z134: 53710576.56 | AB134: 1.831459438 | AC134: -54.15467559 | AG134: 21.88295094 | AH134: -74.22511082 | AJ134: 0 | AK134: 0
A135: 7413.1 | B135: 7.4131 | C135: 2.477777367 | D135: 1.155361826 | E135: 1.000001344 | F135: 0.00163953994 | G135: 1 | H135: 0 | I135: 628.802188 | J135: 1.569206001 | K135: 1.240230359 | L135: 0.6329232798 | M135: 1.000006141 | N135: 0.003504452015 | O135: 1 | P135: 7.4131e-06 | Q135: 1 | R135: 7.4131e-06 | S135: 1.009608803 | T135: 0.1476340596 | U135: 21.62641478 | V135: -128.4080651 | W135: 51.59193493 | Y135: 1000000000 | Z135: 54954051.61 | AB135: 1.766578785 | AC135: -53.84583872 | AG135: 21.79803625 | AH135: -74.56222635 | AJ135: 0 | AK135: 0
A136: 7499.45 | B136: 7.49945 | C136: 2.501960848 | D136: 1.159621501 | E136: 1.000001376 | F136: 0.001658637756 | G136: 1 | H136: 0 | I136: 636.126645 | J136: 1.569224312 | K136: 1.245303949 | L136: 0.6384561089 | M136: 1.000006285 | N136: 0.003545272577 | O136: 1 | P136: 7.49945e-06 | Q136: 1 | R136: 7.49945e-06 | S136: 1.009832885 | T136: 0.14933318 | U136: 21.47499092 | V136: -128.4347649 | W136: 51.56523512 | Y136: 1000000000 | Z136: 56241750.3 | AB136: 1.701446824 | AC136: -53.53221897 | AG136: 21.71174436 | AH136: -74.90254591 | AJ136: 0 | AK136: 0
A137: 7585.8 | B137: 7.5858 | C137: 2.526188857 | D137: 1.163799543 | E137: 1.000001407 | F137: 0.00167773557 | G137: 1 | H137: 0 | I137: 643.4511022 | J137: 1.569242207 | K137: 1.25041535 | L137: 0.6439438711 | M137: 1.00000643 | N137: 0.003586093128 | O137: 1 | P137: 7.5858e-06 | Q137: 1 | R137: 7.5858e-06 | S137: 1.010059513 | T137: 0.1510315971 | U137: 21.32547412 | V137: -128.4593055 | W137: 51.54069453 | Y137: 1000000000 | Z137: 57544361.64 | AB137: 1.637584939 | AC137: -53.22115747 | AG137: 21.62608944 | AH137: -75.238148 | AJ137: 0 | AK137: 0
A138: 7674.15 | B138: 7.67415 | C138: 2.551022787 | D138: 1.167992141 | E138: 1.00000144 | F138: 0.001697275718 | G138: 1 | H138: 0 | I138: 650.9452055 | J138: 1.569260099 | K138: 1.255683793 | L138: 0.6495123252 | M138: 1.000006581 | N138: 0.003627859133 | O138: 1 | P138: 7.67415e-06 | Q138: 1 | R138: 7.67415e-06 | S138: 1.010294022 | T138: 0.1527686166 | U138: 21.17442841 | V138: -128.4822972 | W138: 51.51770281 | Y138: 1000000000 | Z138: 58892578.22 | AB138: 1.57352581 | AC138: -52.90552671 | AG138: 21.53910286 | AH138: -75.57677048 | AJ138: 0 | AK138: 0
A139: 7762.5 | B139: 7.7625 | C139: 2.575900695 | D139: 1.172103826 | E139: 1.000001474 | F139: 0.001716815865 | G139: 1 | H139: 0 | I139: 658.4393089 | J139: 1.569277583 | K139: 1.260990846 | L139: 0.655034078 | M139: 1.000006733 | N139: 0.003669625126 | O139: 1 | P139: 7.7625e-06 | Q139: 1 | R139: 7.7625e-06 | S139: 1.010531193 | T139: 0.154504884 | U139: 21.02529954 | V139: -128.5032623 | W139: 51.49673769 | Y139: 1000000000 | Z139: 60256406.25 | AB139: 1.510731026 | AC139: -52.59254839 | AG139: 21.45276878 | AH139: -75.91071392 | AJ139: 0 | AK139: 0
A140: 7852.9 | B140: 7.8529 | C140: 2.601400051 | D140: 1.176229443 | E140: 1.000001508 | F140: 0.001736809403 | G140: 1 | H140: 0 | I140: 666.1072995 | J140: 1.569295067 | K140: 1.266460496 | L140: 0.6606358773 | M140: 1.000006891 | N140: 0.003712360209 | O140: 1 | P140: 7.8529e-06 | Q140: 1 | R140: 7.8529e-06 | S140: 1.01077662 | T140: 0.1562806516 | U140: 20.87465406 | V140: -128.522732 | W140: 51.47726799 | Y140: 1000000000 | Z140: 61668038.41 | AB140: 1.447755087 | AC140: -52.27503919 | AG140: 21.36509923 | AH140: -76.24769282 | AJ140: 0 | AK140: 0
A141: 7943.3 | B141: 7.9433 | C141: =SQRT(1+(A141/p_dom)^2) -> 2.626942825 | D141: =ATAN(A141/p_dom) -> 1.180274898 | E141: =SQRT(1+(A141/z_ESR)^2) -> 1.000001543 | F141: =ATAN(A141/z_ESR) -> 0.001756802941 | G141: =IF(VIN_nom>Vout, 1, SQRT(1+(A141/z_RHP)^2)) -> 1 | H141: =IF(VIN_nom>Vout, 0, -ATAN(A141/z_RHP)) -> 0 | I141: =SQRT(1+(A141/EA_p1)^2) -> 673.7752903 | J141: =ATAN(A141/EA_p1) -> 1.569312152 | K141: =SQRT(1+(A141/EA_z1)^2) -> 1.271969546 | L141: =ATAN(A141/EA_z1) -> 0.6661893256 | M141: =SQRT(1+(A141/EA_hf_p)^2) -> 1.00000705 | N141: =ATAN(A141/EA_hf_p) -> 0.003755095278 | O141: =SQRT(1+(A141/Zero3)^2) -> 1 | P141: =ATAN(A141/Zero3) -> 7.9433e-06 | Q141: =SQRT(1+(A141/pole5)^2) -> 1 | R141: =ATAN(A141/pole5) -> 7.9433e-06 | S141: =SQRT((1-(Z141/pterm2))^2+(A141/pterm1)^2) -> 1.011024829 | T141: =IF((ATAN((A141/pterm1)/(1-A141^2/pterm2))>0),ATAN((A141/pterm1)/(1-A141^2/pterm2)),PI()+ATAN((A141/pterm1)/(1-A141^2/pterm2))) -> 0.1580556151 | U141: =20*LOG10(((E141*K141*G141*O141)/(C141*I141*S141*M141*Q141))*Adc) -> 20.72593436 | V141: =((F141+L141+H141+P141)-(D141+J141+T141+N141+R141))*radconv -> -128.5403102 | W141: =IF(V141>0,V141,V141+180) -> 51.4596898 | Y141: =IF(U141<0,A141,1000000000) -> 1000000000 | Z141: =A141^2 -> 63096014.89 | AB141: =20*LOG10((K141/(I141*M141))*Aea_stability*Afb*0.8) -> 1.386037276 | AC141: =(L141-(J141+N141))*radconv -> -51.9602775 | AG141: =20*LOG10((E141*G141/(C141*S141))*Am_stability) -> 21.27809735 | AH141: =(F141+H141-(D141+T141))*radconv -> -76.5800327 | AJ141: =SUM((U142<0)*(U141>0))*A141 -> 0 | AK141: 0
A142: 8035.8 | B142: =A142/1000 -> 8.0358 | C142: 2.653122595 | D142: 1.184333632 | E142: 1.000001579 | F142: 0.001777260928 | G142: 1 | H142: 0 | I142: 681.6214094 | J142: 1.569329236 | K142: 1.277646823 | L142: 0.6718220295 | M142: 1.000007216 | N142: 0.003798823073 | O142: 1 | P142: 8.0358e-06 | Q142: 1 | R142: 8.0358e-06 | S142: 1.011281682 | T142: 0.15987097 | U142: 20.57571216 | V142: -128.5564526 | W142: 51.44354738 | Y142: 1000000000 | Z142: 64574081.64 | AB142: 1.324155097 | AC142: -51.64103162 | AG142: 21.18975732 | AH142: -76.91542101 | AJ142: 0 | AK142: 0
A143: 8128.3 | B143: 8.1283 | C143: 2.679345215 | D143: 1.188312984 | E143: 1.000001616 | F143: 0.001797718914 | G143: 1 | H143: 0 | I143: 689.4675287 | J143: 1.569345932 | K143: 1.283364277 | L143: 0.6774047212 | M143: 1.000007383 | N143: 0.003842550853 | O143: 1 | P143: 8.1283e-06 | Q143: 1 | R143: 8.1283e-06 | S143: 1.011541443 | T143: 0.1616854651 | U143: 20.42742377 | V143: -128.5708408 | W143: 51.42915919 | Y143: 1000000000 | Z143: 66069260.89 | AB143: 1.263524294 | AC143: -51.32462894 | AG143: 21.10209974 | AH143: -77.24621187 | AJ143: 0 | AK143: 0
A144: 8222.95 | B144: 8.22295 | C144: 2.706220392 | D144: 1.192304938 | E144: 1.000001654 | F144: 0.001818652408 | G144: 1 | H144: 0 | I144: 697.4960174 | J144: 1.569362626 | K144: 1.289255653 | L144: 0.6830657371 | M144: 1.000007556 | N144: 0.003887294993 | O144: 1 | P144: 8.22295e-06 | Q144: 1 | R144: 8.22295e-06 | S144: 1.011810251 | T144: 0.1635412355 | U144: 20.2776486 | V144: -128.5838592 | W144: 51.41614082 | Y144: 1000000000 | Z144: 67616906.7 | AB144: 1.20274646 | AC144: -51.0037968 | AG144: 21.0131024 | AH144: -77.58006237 | AJ144: 0 | AK144: 0
A145: 8270.275 | B145: 8.270275 | C145: 2.719673912 | D145: 1.194271313 | E145: 1.000001673 | F145: 0.001829119155 | G145: 1 | H145: 0 | I145: 701.5102619 | J145: 1.56937083 | K145: 1.292216729 | L145: 0.6858768431 | M145: 1.000007643 | N145: 0.003909667057 | O145: 1 | P145: 8.270275e-06 | Q145: 1 | R145: 8.270275e-06 | S145: 1.011945796 | T145: 0.1644687766 | U145: 20.20349141 | V145: -128.5897561 | W145: 51.41024395 | Y145: 1000000000 | Z145: 68397448.58 | AB145: 1.172826076 | AC145: -50.84448418 | AG145: 20.96886559 | AH145: -77.74527187 | AJ145: 0 | AK145: 0
A146: 8317.6 | B146: 8.3176 | C146: 2.733137845 | D146: 1.196218322 | E146: 1.000001692 | F146: 0.001839585901 | G146: 1 | H146: 0 | I146: 705.5245064 | J146: 1.569378941 | K146: 1.29518797 | L146: 0.6886750734 | M146: 1.000007731 | N146: 0.003932039118 | O146: 1 | P146: 8.3176e-06 | Q146: 1 | R146: 8.3176e-06 | S146: 1.0120821 | T146: 0.1653960867 | U146: 20.12981429 | V146: -128.5952625 | W146: 51.40473752 | Y146: 1000000000 | Z146: 69182469.76 | AB146: 1.143212667 | AC146: -50.68590393 | AG146: 20.92480188 | AH146: -77.90935855 | AJ146: 0 | AK146: 0
A147: 8366.05 | B147: 8.36605 | C147: 2.746932467 | D147: 1.198191836 | E147: 1.000001712 | F147: 0.00185030146 | G147: 1 | H147: 0 | I147: 709.6341767 | J147: 1.56938715 | K147: 1.2982403 | L147: 0.6915265309 | M147: 1.000007821 | N147: 0.003954942998 | O147: 1 | P147: 8.36605e-06 | Q147: 1 | R147: 8.36605e-06 | S147: 1.012222432 | T147: 0.1663451999 | U147: 20.05487776 | V147: -128.6005088 | W147: 51.39949118 | Y147: 1000000000 | Z147: 69990792.6 | AB147: 1.113209173 | AC147: -50.52431005 | AG147: 20.87986885 | AH147: -78.07619877 | AJ147: 0 | AK147: 0
A148: 8414.5 | B148: 8.4145 | C148: 2.76073768 | D148: 1.20014562 | E148: 1.000001732 | F148: 0.001861017019 | G148: 1 | H148: 0 | I148: 713.7438471 | J148: 1.569395263 | K148: 1.301303136 | L148: 0.6943645886 | M148: 1.000007912 | N148: 0.003977846874 | O148: 1 | P148: 8.4145e-06 | Q148: 1 | R148: 8.4145e-06 | S148: 1.012363559 | T148: 0.1672940686 | U148: 19.98043373 | V148: -128.605373 | W148: 51.39462696 | Y148: 1000000000 | Z148: 70803810.25 | AB148: 1.083519105 | AC148: -50.36347851 | AG148: 20.83511489 | AH148: -78.24189453 | AJ148: 0 | AK148: 0
A149: 8462.95 | B149: 8.46295 | C149: 2.774553327 | D149: 1.202079953 | E149: 1.000001752 | F149: 0.001871732577 | G149: 1 | H149: 0 | I149: 717.8535175 | J149: 1.569403284 | K149: 1.304376404 | L149: 0.6971892954 | M149: 1.000008003 | N149: 0.004000750746 | O149: 1 | P149: 8.46295e-06 | Q149: 1 | R149: 8.46295e-06 | S149: 1.012505482 | T149: 0.1682426912 | U149: 19.9064769 | V149: -128.6098684 | W149: 51.3901316 | Y149: 1000000000 | Z149: 71621522.7 | AB149: 1.054138354 | AC149: -50.20340659 | AG149: 20.7905388 | AH149: -78.4064618 | AJ149: 0 | AK149: 0
A150: 8511.4 | B150: 8.5114 | C150: 2.788379252 | D150: 1.203995111 | E150: 1.000001772 | F150: 0.001882448135 | G150: 1 | H150: 0 | I150: 721.9631879 | J150: 1.569411214 | K150: 1.307460031 | L150: 0.7000007005 | M150: 1.000008095 | N150: 0.004023654614 | O150: 1 | P150: 8.5114e-06 | Q150: 1 | R150: 8.5114e-06 | S150: 1.0126482 | T150: 0.1691910666 | U150: 19.83300204 | V150: -128.6140078 | W150: 51.38599218 | Y150: 1000000000 | Z150: 72443929.96 | AB150: 1.025062881 | AC150: -50.04409158 | AG150: 20.74613942 | AH150: -78.56991624 | AJ150: 0 | AK150: 0
A151: 8560.95 | B151: 8.56095 | C151: 2.802529552 | D151: 1.205934199 | E151: 1.000001792 | F151: 0.001893406976 | G151: 1 | H151: 0 | I151: 726.1661637 | J151: 1.569419231 | K151: 1.310624306 | L151: 0.7028622288 | M151: 1.000008189 | N151: 0.004047078482 | O151: 1 | P151: 8.56095e-06 | Q151: 1 | R151: 8.56095e-06 | S151: 1.01279498 | T151: 0.1701607167 | U151: 19.75835216 | V151: -128.6178863 | W151: 51.38211375 | Y151: 1000000000 | Z151: 73289864.9 | AB151: 0.9956388921 | AC151: -49.88193951 | AG151: 20.70091353 | AH151: -78.73594674 | AJ151: 0 | AK151: 0
A152: 8610.5 | B152: 8.6105 | C152: 2.816690283 | D152: 1.207853796 | E152: 1.000001813 | F152: 0.001904365817 | G152: 1 | H152: 0 | I152: 730.3691394 | J152: 1.569427156 | K152: 1.313799261 | L152: 0.7057099498 | M152: 1.000008285 | N152: 0.004070502346 | O152: 1 | P152: 8.6105e-06 | Q152: 1 | R152: 8.6105e-06 | S152: 1.012942592 | T152: 0.1711301056 | U152: 19.68419557 | V152: -128.6214188 | W152: 51.37858118 | Y152: 1000000000 | Z152: 74140710.25 | AB152: 0.9665258577 | AC152: -49.72057325 | AG152: 20.65586997 | AH152: -78.90084556 | AJ152: 0 | AK152: 0
A153: 8660.05 | B153: 8.66005 | C153: 2.830861289 | D153: 1.209754182 | E153: 1.000001834 | F153: 0.001915324658 | G153: 1 | H153: 0 | I153: 734.5721152 | J153: 1.56943499 | K153: 1.316984818 | L153: 0.7085439174 | M153: 1.00000838 | N153: 0.004093926206 | O153: 1 | P153: 8.66005e-06 | Q153: 1 | R153: 8.66005e-06 | S153: 1.013091034 | T153: 0.1720992317 | U153: 19.61052689 | V153: -128.6246184 | W153: 51.3753816 | Y153: 1000000000 | Z153: 74996466 | AB153: 0.9377196617 | AC153: -49.55998981 | AG153: 20.61100748 | AH153: -79.06462859 | AJ153: 0 | AK153: 0
A154: 8709.6 | B154: 8.7096 | C154: 2.845042417 | D154: 1.21163563 | E154: 1.000001855 | F154: 0.001926283498 | G154: 1 | H154: 0 | I154: 738.7750911 | J154: 1.569442734 | K154: 1.320180902 | L154: 0.7113641858 | M154: 1.000008476 | N154: 0.004117350061 | O154: 1 | P154: 8.7096e-06 | Q154: 1 | R154: 8.7096e-06 | S154: 1.013240306 | T154: 0.1730680939 | U154: 19.53734083 | V154: -128.6274976 | W154: 51.37250242 | Y154: 1000000000 | Z154: 75857132.16 | AB154: 0.909216255 | AC154: -49.40018616 | AG154: 20.56632483 | AH154: -79.22731141 | AJ154: 0 | AK154: =IF(AJ154>0,W154,0) -> 0
A155: 8760.325 | B155: 8.760325 | C155: 2.859570156 | D155: 1.213542356 | E155: 1.000001877 | F155: 0.001937502209 | G155: 1 | H155: 0 | I155: 743.0777339 | J155: 1.569450572 | K155: 1.3234636 | L155: 0.7142371991 | M155: 1.000008575 | N155: 0.004141329372 | O155: 1 | P155: 8.760325e-06 | Q155: 1 | R155: 8.760325e-06 | S155: 1.013393978 | T155: 0.1740596562 | U155: 19.46291374 | V155: -128.6301259 | W155: 51.36987406 | Y155: 1000000000 | Z155: 76743294.11 | AB155: 0.8803464208 | AC155: -49.23739761 | AG155: 20.52076758 | AH155: -79.39272833 | AJ155: 0 | AK155: 0
A156: 8811.05 | B156: 8.81105 | C156: 2.874108185 | D156: 1.2154298 | E156: 1.000001899 | F156: 0.00194872092 | G156: 1 | H156: 0 | I156: 747.3803768 | J156: 1.56945832 | K156: 1.326757168 | L156: 0.7170959718 | M156: 1.000008675 | N156: 0.004165308677 | O156: 1 | P156: 8.81105e-06 | Q156: 1 | R156: 8.81105e-06 | S156: 1.013548519 | T156: 0.175050939 | U156: 19.38898144 | V156: -128.6324442 | W156: 51.36755577 | Y156: 1000000000 | Z156: 77634602.1 | AB156: 0.8517855277 | AC156: -49.07541981 | AG156: 20.47539617 | AH156: -79.55702442 | AJ156: 0 | AK156: 0
A157: 8861.775 | B157: 8.861775 | C157: 2.88865635 | D157: 1.217298238 | E157: 1.000001921 | F157: 0.00195993963 | G157: 1 | H157: 0 | I157: 751.6830197 | J157: 1.569465978 | K157: 1.330061525 | L157: 0.7199405632 | M157: 1.000008775 | N157: 0.004189287978 | O157: 1 | P157: 8.861775e-06 | Q157: 1 | R157: 8.861775e-06 | S157: 1.013703929 | T157: 0.1760419408 | U157: 19.31553846 | V157: -128.634465 | W157: 51.36553504 | Y157: 1000000000 | Z157: 78531056.15 | AB157: 0.82352944 | AC157: -48.91424945 | AG157: 20.43020928 | AH157: -79.72021551 | AJ157: 0 | AK157: 0
A158: 8912.5 | B158: 8.9125 | C158: 2.903214499 | D158: 1.219147945 | E158: 1.000001943 | F158: 0.001971158339 | G158: 1 | H158: 0 | I158: 755.9856627 | J158: 1.56947355 | K158: 1.333376591 | L158: 0.7227710329 | M158: 1.000008876 | N158: 0.004213267274 | O158: 1 | P158: 8.9125e-06 | Q158: 1 | R158: 8.9125e-06 | S158: 1.013860208 | T158: 0.1770326601 | U158: 19.24257944 | V158: -128.6362004 | W158: 51.36379964 | Y158: 1000000000 | Z158: 79432656.25 | AB158: 0.7955740901 | AC158: -48.75388322 | AG158: 20.38520561 | AH158: -79.88231714 | AJ158: 0 | AK158: 0
A159: 8964.4 | B159: 8.9644 | C159: 2.918120052 | D159: 1.221021389 | E159: 1.000001965 | F159: 0.00198263692 | G159: 1 | H159: 0 | I159: 760.3879727 | J159: 1.569481208 | K159: 1.336779448 | L159: 0.7256525142 | M159: 1.00000898 | N159: 0.004237802024 | O159: 1 | P159: 8.9644e-06 | Q159: 1 | R159: 8.9644e-06 | S159: 1.014021006 | T159: 0.1780460348 | U159: 19.16842574 | V159: -128.6376931 | W159: 51.36230694 | Y159: 1000000000 | Z159: 80360467.36 | AB159: 0.7672782736 | AC159: -48.59063103 | AG159: 20.33934772 | AH159: -80.04706203 | AJ159: 0 | AK159: 0
A160: 9016.3 | B160: 9.0163 | C160: 2.933035742 | D160: 1.222875786 | E160: 1.000001988 | F160: 0.0019941155 | G160: 1 | H160: 0 | I160: 764.7902826 | J160: 1.569488778 | K160: 1.340193349 | L160: 0.728519339 | M160: 1.000009084 | N160: 0.004262336769 | O160: 1 | P160: 9.0163e-06 | Q160: 1 | R160: 9.0163e-06 | S160: 1.014182711 | T160: 0.1790591107 | U160: 19.09476751 | V160: -128.638912 | W160: 51.36108803 | Y160: 1000000000 | Z160: 81293665.69 | AB160: 0.7392888839 | AC160: -48.42821354 | AG160: 20.29367888 | AH160: -80.21069843 | AJ160: 0 | AK160: 0
A161: 9068.2 | B161: 9.0682 | C161: 2.947961417 | D161: 1.224711411 | E161: 1.000002011 | F161: 0.00200559408 | G161: 1 | H161: 0 | I161: 769.1925927 | J161: 1.569496262 | K161: 1.343618208 | L161: 0.7313715722 | M161: 1.000009189 | N161: 0.004286871509 | O161: 1 | P161: 9.0682e-06 | Q161: 1 | R161: 9.0682e-06 | S161: 1.014345325 | T161: 0.1800718864 | U161: 19.02159922 | V161: -128.6398692 | W161: 51.36013078 | Y161: 1000000000 | Z161: 82232251.24 | AB161: 0.7116017744 | AC161: -48.26662712 | AG161: 20.24819771 | AH161: -80.3732421 | AJ161: 0 | AK161: 0
A162: 9120.1 | B162: 9.1201 | C162: 2.962896924 | D162: 1.226528536 | E162: 1.000002034 | F162: 0.002017072659 | G162: 1 | H162: 0 | I162: 773.5949028 | J162: 1.56950366 | K162: 1.347053942 | L162: 0.7342092789 | M162: 1.000009294 | N162: 0.004311406244 | O162: 1 | P162: 9.1201e-06 | Q162: 1 | R162: 9.1201e-06 | S162: 1.014508847 | T162: 0.1810843603 | U162: 18.94891542 | V162: -128.6405766 | W162: 51.35942337 | Y162: 1000000000 | Z162: 83176224.01 | AB162: 0.6842128671 | AC162: -48.10586814 | AG162: 20.20290281 | AH162: -80.53470849 | AJ162: 0 | AK162: 0
A163: 9173.2 | B163: 9.1732 | C163: 2.978187784 | D163: 1.228368807 | E163: 1.000002058 | F163: 0.002028816638 | G163: 1 | H163: 0 | I163: 778.0990004 | J163: 1.569511143 | K163: 1.350580283 | L163: 0.7370976312 | M163: 1.000009403 | N163: 0.00433650825 | O163: 1 | P163: 9.1732e-06 | Q163: 1 | R163: 9.1732e-06 | S163: 1.014677088 | T163: 0.18211993 | U163: 18.87504689 | V163: -128.6410538 | W163: 51.35894617 | Y163: 1000000000 | Z163: 84147598.24 | AB163: 0.6564951309 | AC163: -47.94224471 | AG163: 20.15675202 | AH163: -80.69880912 | AJ163: 0 | AK163: 0
A164: 9226.3 | B164: 9.2263 | C164: 2.993488626 | D164: 1.230190271 | E164: 1.000002082 | F164: 0.002040560617 | G164: 1 | H164: 0 | I164: 782.6030981 | J164: 1.56951854 | K164: 1.354117833 | L164: 0.739970916 | M164: 1.000009512 | N164: 0.004361610251 | O164: 1 | P164: 9.2263e-06 | Q164: 1 | R164: 9.2263e-06 | S164: 1.014846279 | T164: 0.1831551805 | U164: 18.80167421 | V164: -128.6412936 | W164: 51.35870642 | Y164: 1000000000 | Z164: 85124611.69 | AB164: 0.6290811218 | AC164: -47.77947965 | AG164: 20.11079334 | AH164: -80.86181393 | AJ164: 0 | AK164: 0
A165: 9279.4 | B165: 9.2794 | C165: 3.0087993 | D165: 1.231993203 | E165: 1.000002106 | F165: 0.002052304595 | G165: 1 | H165: 0 | I165: 787.1071958 | J165: 1.569525851 | K165: 1.357666505 | L165: 0.7428292039 | M165: 1.000009622 | N165: 0.004386712247 | O165: 1 | P165: 9.2794e-06 | Q165: 1 | R165: 9.2794e-06 | S165: 1.015016418 | T165: 0.1841901103 | U165: 18.72879177 | V165: -128.6413076 | W165: 51.35869242 | Y165: 1000000000 | Z165: 86107264.36 | AB165: 0.6019666845 | AC165: -47.61756899 | AG165: 20.06502535 | AH165: -81.02373858 | AJ165: 0 | AK165: 0
A166: 9332.5 | B166: 9.3325 | C166: 3.024119654 | D166: 1.233777874 | E166: 1.00000213 | F166: 0.002064048573 | G166: 1 | H166: 0 | I166: 791.6112936 | J166: 1.56953308 | K166: 1.36122621 | L166: 0.7456725657 | M166: 1.000009732 | N166: 0.004411814237 | O166: 1 | P166: 9.3325e-06 | Q166: 1 | R166: 9.3325e-06 | S166: 1.015187505 | T166: 0.1852247176 | U166: 18.65639406 | V166: -128.6411072 | W166: 51.35889279 | Y166: 1000000000 | Z166: 87095556.25 | AB166: 0.5751477329 | AC166: -47.45650878 | AG166: 20.01944659 | AH166: -81.18459844 | AJ166: 0 | AK166: 0
A167: 9386.85 | B167: 9.38685 | C167: 3.03981053 | D167: 1.235585921 | E167: 1.000002155 | F167: 0.002076069009 | G167: 1 | H167: 0 | I167: 796.2214201 | J167: 1.569540394 | K167: 1.364881048 | L167: 0.7485674785 | M167: 1.000009846 | N167: 0.004437507134 | O167: 1 | P167: 9.38685e-06 | Q167: 1 | R167: 9.38685e-06 | S167: 1.015363602 | T167: 0.1862833445 | U167: 18.58278838 | V167: -128.6406917 | W167: 51.35930828 | Y167: 1000000000 | Z167: 88112952.92 | AB167: 0.5479992572 | AC167: -47.29253366 | AG167: 19.97298938 | AH167: -81.34815806 | AJ167: 0 | AK167: 0
A168: 9441.2 | B168: 9.4412 | C168: 3.055511241 | D168: 1.237375393 | E168: 1.00000218 | F168: 0.002088089444 | G168: 1 | H168: 0 | I168: 800.8315466 | J168: 1.569547624 | K168: 1.368547264 | L168: 0.7514469048 | M168: 1.00000996 | N168: 0.004463200026 | O168: 1 | P168: 9.4412e-06 | Q168: 1 | R168: 9.4412e-06 | S168: 1.01554069 | T168: 0.1873416301 | U168: 18.50967905 | V168: -128.6400749 | W168: 51.35992514 | Y168: 1000000000 | Z168: 89136257.44 | AB168: 0.5211518948 | AC168: -47.12944103 | AG168: 19.92672741 | AH168: -81.51063383 | AJ168: 0 | AK168: 0
A169: 9495.55 | B169: 9.49555 | C169: 3.071221637 | D169: 1.239146564 | E169: 1.000002205 | F169: 0.002100109879 | G169: 1 | H169: 0 | I169: 805.4416731 | J169: 1.569554772 | K169: 1.372224767 | L169: 0.7543109213 | M169: 1.000010075 | N169: 0.004488892912 | O169: 1 | P169: 9.49555e-06 | Q169: 1 | R169: 9.49555e-06 | S169: 1.015718771 | T169: 0.1883995728 | U169: 18.43706041 | V169: -128.6392679 | W169: 51.36073209 | Y169: 1000000000 | Z169: 90165469.8 | AB169: 0.4946014789 | AC169: -46.96722657 | AG169: 19.88065919 | AH169: -81.67204134 | AJ169: 0 | AK169: 0
A170: 9549.9 | B170: 9.5499 | C170: 3.086941569 | D170: 1.2408997 | E170: 1.000002231 | F170: 0.002112130313 | G170: 1 | H170: 0 | I170: 810.0517997 | J170: 1.569561838 | K170: 1.375913464 | L170: 0.7571596047 | M170: 1.000010191 | N170: 0.004514585791 | O170: 1 | P170: 9.5499e-06 | Q170: 1 | R170: 9.5499e-06 | S170: 1.015897843 | T170: 0.1894571708 | U170: 18.36492686 | V170: -128.6382818 | W170: 51.36171819 | Y170: 1000000000 | Z170: 91200590.01 | AB170: 0.4683439124 | AC170: -46.80588597 | AG170: 19.83478321 | AH170: -81.83239584 | AJ170: 0 | AK170: 0
A171: 9605.525 | B171: 9.605525 | C171: 3.103039999 | D171: 1.242675565 | E171: 1.000002257 | F171: 0.002124432734 | G171: 1 | H171: 0 | I171: 814.7700756 | J171: 1.569568986 | K171: 1.379700194 | L171: 0.760059319 | M171: 1.00001031 | N171: 0.004540881396 | O171: 1 | P171: 9.605525e-06 | Q171: 1 | R171: 9.605525e-06 | S171: 1.016082142 | T171: 0.1905392203 | U171: 18.29159767 | V171: -128.6370982 | W171: 51.36290178 | Y171: 1000000000 | Z171: 92266110.53 | AB171: 0.4417693988 | AC171: -46.64166081 | AG171: 19.78802854 | AH171: -81.99543742 | AJ171: 0 | AK171: 0
A172: 9661.15 | B172: 9.66115 | C172: 3.119148114 | D172: 1.244433094 | E172: 1.000002283 | F172: 0.002136735155 | G172: 1 | H172: 0 | I172: 819.4883516 | J172: 1.569576053 | K172: 1.383498462 | L172: 0.7629431357 | M172: 1.00001043 | N172: 0.004567176994 | O172: 1 | P172: 9.66115e-06 | Q172: 1 | R172: 9.66115e-06 | S172: 1.016267478 | T172: 0.1916209051 | U172: 18.218765 | V172: -128.6357493 | W172: 51.36425072 | Y172: 1000000000 | Z172: 93337819.32 | AB172: 0.4154931686 | AC172: -46.47834179 | AG172: 19.74147209 | AH172: -82.15740748 | AJ172: 0 | AK172: 0
A173: 9716.775 | B173: 9.716775 | C173: 3.135265765 | D173: 1.246172558 | E173: 1.000002309 | F173: 0.002149037576 | G173: 1 | H173: 0 | I173: 824.2066275 | J173: 1.569583039 | K173: 1.387308172 | L173: 0.7658111375 | M173: 1.00001055 | N173: 0.004593472586 | O173: 1 | P173: 9.716775e-06 | Q173: 1 | R173: 9.716775e-06 | S173: 1.016453851 | T173: 0.1927022232 | U173: 18.1464231 | V173: -128.6342458 | W173: 51.36575422 | Y173: 1000000000 | Z173: 94415716.4 | AB173: 0.3895110468 | AC173: -46.31592427 | AG173: 19.69511232 | AH173: -82.31832152 | AJ173: 0 | AK173: 0
A174: 9772.4 | B174: 9.7724 | C174: 3.151392806 | D174: 1.247894224 | E174: 1.000002336 | F174: 0.002161339995 | G174: 1 | H174: 0 | I174: 828.9249035 | J174: 1.569589945 | K174: 1.39112923 | L174: 0.7686634074 | M174: 1.000010671 | N174: 0.004619768171 | O174: 1 | P174: 9.7724e-06 | Q174: 1 | R174: 9.7724e-06 | S174: 1.01664126 | T174: 0.193783173 | U174: 18.07456632 | V174: -128.6325982 | W174: 51.36740176 | Y174: 1000000000 | Z174: 95499801.76 | AB174: 0.3638189284 | AC174: -46.15440355 | AG174: 19.64894765 | AH174: -82.47819469 | AJ174: 0 | AK174: 0
A175: 9829.3 | B175: 9.8293 | C175: 3.167899065 | D175: 1.249637211 | E175: 1.000002363 | F175: 0.002173924402 | G175: 1 | H175: 0 | I175: 833.7513288 | J175: 1.569596928 | K175: 1.395049518 | L175: 0.7715648648 | M175: 1.000010796 | N175: 0.00464666648 | O175: 1 | P175: 9.8293e-06 | Q175: 1 | R175: 9.8293e-06 | S175: 1.016834037 | T175: 0.1948885165 | U175: 18.00155858 | V175: -128.6307745 | W175: 51.36922545 | Y175: 1000000000 | Z175: 96615138.49 | AB175: 0.3378337552 | AC175: -45.99010358 | AG175: 19.60192509 | AH175: -82.64067097 | AJ175: 0 | AK175: 0
A176: 9886.2 | B176: 9.8862 | C176: 3.184414848 | D176: 1.251362123 | E176: 1.00000239 | F176: 0.002186508809 | G176: 1 | H176: 0 | I176: 838.5777542 | J176: 1.569603831 | K176: 1.398981483 | L176: 0.7744500368 | M176: 1.000010921 | N176: 0.004673564783 | O176: 1 | P176: 9.8862e-06 | Q176: 1 | R176: 9.8862e-06 | S176: 1.017027897 | T176: 0.1959934706 | U176: 17.92904673 | V176: -128.6288214 | W176: 51.37117858 | Y176: 1000000000 | Z176: 97736950.44 | AB176: 0.3121435625 | AC176: -45.82673208 | AG176: 19.55510343 | AH176: -82.80208934 | AJ176: 0 | AK176: 0
A177: 9943.1 | B177: 9.9431 | C177: 3.200940009 | D177: 1.25306923 | E177: 1.000002418 | F177: 0.002199093214 | G177: 1 | H177: 0 | I177: 843.4041795 | J177: 1.569610655 | K177: 1.402925029 | L177: 0.7773190124 | M177: 1.000011047 | N177: 0.004700463078 | O177: 1 | P177: 9.9431e-06 | Q177: 1 | R177: 9.9431e-06 | S177: 1.017222839 | T177: 0.1970980334 | U177: 17.85702496 | V177: -128.6267492 | W177: 51.37325082 | Y177: 1000000000 | Z177: 98865237.61 | AB177: 0.2867441756 | AC177: -45.66428403 | AG177: 19.50848104 | AH177: -82.96246514 | AJ177: 0 | AK177: 0
A178: 10000 | B178: 10 | C178: 3.217474401 | D178: 1.254758797 | E178: 1.000002446 | F178: 0.002211677619 | G178: 1 | H178: 0 | I178: 848.230605 | J178: 1.569617402 | K178: 1.406880057 | L178: 0.7801718808 | M178: 1.000011174 | N178: 0.004727361367 | O178: 1 | P178: 1e-05 | Q178: 1 | R178: 1e-05 | S178: 1.017418863 | T178: 0.1982022029 | U178: 17.78548755 | V178: -128.6245678 | W178: 51.37543218 | Y178: 1000000000 | Z178: 100000000 | AB178: 0.2616314909 | AC178: -45.50275441 | AG178: 19.46205632 | AH178: -83.12181341 | AJ178: 0 | AK178: 0
A179: 10058.25 | B179: 10.05825 | C179: 3.234410502 | D179: 1.256470552 | E179: 1.000002474 | F179: 0.002224560599 | G179: 1 | H179: 0 | I179: 853.1715414 | J179: 1.569624229 | K179: 1.410940715 | L179: 0.7830758442 | M179: 1.000011305 | N179: 0.004754897833 | O179: 1 | P179: 1.005825e-05 | Q179: 1 | R179: 1.005825e-05 | S179: 1.017620658 | T179: 0.1993321603 | U179: 17.71274871 | V179: -128.6222318 | W179: 51.37776816 | Y179: 1000000000 | Z179: 101168393.1 | AB179: 0.2362157613 | AC179: -45.33833848 | AG179: 19.41473321 | AH179: -83.28389336 | AJ179: 0 | AK179: 0
A180: 10116.5 | B180: 10.1165 | C180: 3.251355981 | D180: 1.258164468 | E180: 1.000002503 | F180: 0.002237443578 | G180: 1 | H180: 0 | I180: 858.1124779 | J180: 1.569630978 | K180: 1.415013204 | L180: 0.7859631162 | M180: 1.000011436 | N180: 0.004782434292 | O180: 1 | P180: 1.01165e-05 | Q180: 1 | R180: 1.01165e-05 | S180: 1.017823585 | T180: 0.2004617013 | U180: 17.64050564 | V180: -128.6198018 | W180: 51.38019819 | Y180: 1000000000 | Z180: 102343572.2 | AB180: 0.2110920173 | AC180: -45.17487438 | AG180: 19.36761389 | AH180: -83.44492742 | AJ180: 0 | AK180: 0
A181: 10174.75 | B181: 10.17475 | C181: 3.268310693 | D181: 1.259840815 | E181: 1.000002532 | F181: 0.002250326556 | G181: 1 | H181: 0 | I181: 863.0534144 | J181: 1.56963765 | K181: 1.419097421 | L181: 0.7888337926 | M181: 1.000011568 | N181: 0.004809970744 | O181: 1 | P181: 1.017475e-05 | Q181: 1 | R181: 1.017475e-05 | S181: 1.018027644 | T181: 0.201590824 | U181: 17.56875247 | V181: -128.6172875 | W181: 51.38271246 | Y181: 1000000000 | Z181: 103525537.6 | AB181: 0.1862560775 | AC181: -45.01235671 | AG181: 19.32069665 | AH181: -83.60493083 | AJ181: 0 | AK181: 0
A182: 10233 | B182: 10.233 | C182: 3.285274494 | D182: 1.261499854 | E182: 1.000002561 | F182: 0.002263209534 | G182: 1 | H182: 0 | I182: 867.9943509 | J182: 1.569644245 | K182: 1.423193265 | L182: 0.7916879693 | M182: 1.000011701 | N182: 0.004837507188 | O182: 1 | P182: 1.0233e-05 | Q182: 1 | R182: 1.0233e-05 | S182: 1.018232835 | T182: 0.2027195263 | U182: 17.49748341 | V182: -128.6146986 | W182: 51.38530143 | Y182: 1000000000 | Z182: 104714289 | AB182: 0.1617038322 | AC182: -44.85078006 | AG182: 19.27397984 | AH182: -83.76391851 | AJ182: 0 | AK182: 0
A183: 10292.5 | B183: 10.2925 | C183: 3.302611564 | D183: 1.263176895 | E183: 1.000002591 | F183: 0.00227636897 | G183: 1 | H183: 0 | I183: 873.0413162 | J183: 1.569650905 | K183: 1.427388903 | L183: 0.7945864593 | M183: 1.000011837 | N183: 0.004865634536 | O183: 1 | P183: 1.02925e-05 | Q183: 1 | R183: 1.02925e-05 | S183: 1.018443596 | T183: 0.2038720133 | U183: 17.42517886 | V183: -128.6119865 | W183: 51.38801349 | Y183: 1000000000 | Z183: 105935556.2 | AB183: 0.1369134063 | AC183: -44.68670198 | AG183: 19.22646571 | AH183: -83.92528452 | AJ183: 0 | AK183: 0
A184: 10352 | B184: 10.352 | C184: 3.319957826 | D184: 1.264836415 | E184: 1.000002621 | F184: 0.002289528404 | G184: 1 | H184: 0 | I184: 878.0882815 | J184: 1.569657489 | K184: 1.431596462 | L184: 0.7974679357 | M184: 1.000011975 | N184: 0.004893761876 | O184: 1 | P184: 1.0352e-05 | Q184: 1 | R184: 1.0352e-05 | S184: 1.018655535 | T184: 0.2050240573 | U184: 17.3533675 | V184: -128.6092157 | W184: 51.39078434 | Y184: 1000000000 | Z184: 107163904 | AB184: 0.1124105354 | AC184: -44.52359434 | AG184: 19.17915722 | AH184: -84.08562133 | AJ184: 0 | AK184: 0
A185: 10411.5 | B185: 10.4115 | C185: 3.337313135 | D185: 1.26647868 | E185: 1.000002651 | F185: 0.002302687838 | G185: 1 | H185: 0 | I185: 883.1352468 | J185: 1.569663997 | K185: 1.435815838 | L185: 0.8003325003 | M185: 1.000012113 | N185: 0.004921889208 | O185: 1 | P185: 1.04115e-05 | Q185: 1 | R185: 1.04115e-05 | S185: 1.018868653 | T185: 0.2061756561 | U185: 17.28204344 | V185: -128.6063953 | W185: 51.39360472 | Y185: 1000000000 | Z185: 108399332.2 | AB185: 0.08819106157 | AC185: -44.36145134 | AG185: 19.13205264 | AH185: -84.24494393 | AJ185: 0 | AK185: 0
A186: 10471 | B186: 10.471 | C186: 3.354677352 | D186: 1.268103948 | E186: 1.000002682 | F186: 0.002315847271 | G186: 1 | H186: 0 | I186: 888.1822122 | J186: 1.569670431 | K186: 1.440046927 | L186: 0.8031802551 | M186: 1.000012251 | N186: 0.004950016532 | O186: 1 | P186: 1.0471e-05 | Q186: 1 | R186: 1.0471e-05 | S186: 1.019082949 | T186: 0.2073268075 | U186: 17.21120088 | V186: -128.6035343 | W186: 51.39646569 | Y186: 1000000000 | Z186: 109641841 | AB186: 0.06425089862 | AC186: -44.20026725 | AG186: 19.08515024 | AH186: -84.40326706 | AJ186: 0 | AK186: 0
A187: 10532 | B187: 10.532 | C187: 3.372488426 | D187: 1.26975281 | E187: 1.000002713 | F187: 0.002329338454 | G187: 1 | H187: 0 | I187: 893.356412 | J187: 1.569676952 | K187: 1.444396734 | L187: 0.8060824578 | M187: 1.000012395 | N187: 0.004978852941 | O187: 1 | P187: 1.0532e-05 | Q187: 1 | R187: 1.0532e-05 | S187: 1.019303868 | T187: 0.2085065126 | U187: 17.13906624 | V187: -128.6005682 | W187: 51.39943184 | Y187: 1000000000 | Z187: 110923024 | AB187: 0.0399929604 | AC187: -44.03600912 | AG187: 19.03727354 | AH187: -84.56455904 | AJ187: 0 | AK187: 0
A188: 10593 | B188: 10.593 | C188: 3.390308573 | D188: 1.271384343 | E188: 1.000002744 | F188: 0.002342829636 | G188: 1 | H188: 0 | I188: 898.5306119 | J188: 1.569683398 | K188: 1.448758633 | L188: 0.8089672087 | M188: 1.000012539 | N188: 0.005007689341 | O188: 1 | P188: 1.0593e-05 | Q188: 1 | R188: 1.0593e-05 | S188: 1.019526023 | T188: 0.2096857429 | U188: 17.06742561 | V188: -128.5975775 | W188: 51.40242248 | Y188: 1000000000 | Z188: 112211649 | AB188: 0.01602012072 | AC188: -43.87274659 | AG188: 18.98960575 | AH188: -84.72483093 | AJ188: 0 | AK188: 0
A189: 10654 | B189: 10.654 | C189: 3.40813765 | D189: 1.27299881 | E189: 1.000002776 | F189: 0.002356320817 | G189: 1 | H189: 0 | I189: 903.7048118 | J189: 1.569689771 | K189: 1.453132516 | L189: 0.8118346174 | M189: 1.000012683 | N189: 0.005036525733 | O189: 1 | P189: 1.0654e-05 | Q189: 1 | R189: 1.0654e-05 | S189: 1.019749413 | T189: 0.2108644959 | U189: 16.99627301 | V189: -128.5945711 | W189: 51.40542886 | Y189: 1000000000 | Z189: 113507716 | AB189: -0.00767179812 | AC189: -43.71047347 | AG189: 18.94214507 | AH189: -84.88409767 | AJ189: 0 | AK189: 0
A190: 10715 | B190: 10.715 | C190: 3.425975518 | D190: 1.274596469 | E190: 1.000002808 | F190: 0.002369811997 | G190: 1 | H190: 0 | I190: 908.8790117 | J190: 1.56969607 | K190: 1.457518275 | L190: 0.814684793 | M190: 1.000012829 | N190: 0.005065362116 | O190: 1 | P190: 1.0715e-05 | Q190: 1 | R190: 1.0715e-05 | S190: 1.019974038 | T190: 0.2120427694 | U190: 16.92560255 | V190: -128.5915575 | W190: 51.40844251 | Y190: 1000000000 | Z190: 114811225 | AB190: -0.03108690084 | AC190: -43.54918358 | AG190: 18.89488972 | AH190: -85.04237391 | AJ190: 0 | AK190: 0
A191: 10777.5 | B191: 10.7775 | C191: 3.444260996 | D191: 1.276216247 | E191: 1.000002841 | F191: 0.002383634927 | G191: 1 | H191: 0 | I191: 914.1804461 | J191: 1.569702451 | K191: 1.462024087 | L191: 0.817587295 | M191: 1.000012979 | N191: 0.005094907582 | O191: 1 | P191: 1.07775e-05 | Q191: 1 | R191: 1.07775e-05 | S191: 1.020205466 | T191: 0.2132495169 | U191: 16.85368831 | V191: -128.5884708 | W191: 51.41152923 | Y191: 1000000000 | Z191: 116154506.2 | AB191: -0.05479489165 | AC191: -43.38494088 | AG191: 18.84668346 | AH191: -85.20352989 | AJ191: 0 | AK191: 0
A192: 10840 | B192: 10.84 | C192: 3.462555416 | D192: 1.277818913 | E192: 1.000002874 | F192: 0.002397457855 | G192: 1 | H192: 0 | I192: 919.4818806 | J192: 1.569708758 | K192: 1.46654214 | L192: 0.8204719373 | M192: 1.00001313 | N192: 0.00512445304 | O192: 1 | P192: 1.084e-05 | Q192: 1 | R192: 1.084e-05 | S192: 1.020438188 | T192: 0.2144557561 | U192: 16.78226799 | V192: -128.5853935 | W192: 51.41460648 | Y192: 1000000000 | Z192: 117505600 | AB192: -0.07822078087 | AC192: -43.22171724 | AG192: 18.79868903 | AH192: -85.36367629 | AJ192: 0 | AK192: 0
A193: 10902.5 | B193: 10.9025 | C193: 3.480858636 | D193: 1.279404728 | E193: 1.000002907 | F193: 0.002411280783 | G193: 1 | H193: 0 | I193: 924.7833151 | J193: 1.569714992 | K193: 1.471072321 | L193: 0.8233388368 | M193: 1.000013282 | N193: 0.005153998488 | O193: 1 | P193: 1.09025e-05 | Q193: 1 | R193: 1.09025e-05 | S193: 1.020672203 | T193: 0.2156614843 | U193: 16.71133554 | V193: -128.582334 | W193: 51.417666 | Y193: 1000000000 | Z193: 118864506.2 | AB193: -0.101368755 | AC193: -43.05950604 | AG193: 18.75090456 | AH193: -85.52282796 | AJ193: 0 | AK193: 0
A194: 10965 | B194: 10.965 | C194: 3.499170518 | D194: 1.28097395 | E194: 1.000002941 | F194: 0.00242510371 | G194: 1 | H194: 0 | I194: 930.0847496 | J194: 1.569721156 | K194: 1.475614518 | L194: 0.8261881099 | M194: 1.000013435 | N194: 0.005183543927 | O194: 1 | P194: 1.0965e-05 | Q194: 1 | R194: 1.0965e-05 | S194: 1.020907511 | T194: 0.2168666993 | U194: 16.64088502 | V194: -128.5793002 | W194: 51.42069985 | Y194: 1000000000 | Z194: 120231225 | AB194: -0.1242429267 | AC194: -42.89830069 | AG194: 18.70332821 | AH194: -85.68099946 | AJ194: 0 | AK194: 0
A195: 11028.75 | B195: 11.02875 | C195: 3.517857422 | D195: 1.282557721 | E195: 1.000002975 | F195: 0.002439203094 | G195: 1 | H195: 0 | I195: 935.4922128 | J195: 1.569727371 | K195: 1.480259825 | L195: 0.8290763304 | M195: 1.000013591 | N195: 0.005213680266 | O195: 1 | P195: 1.102875e-05 | Q195: 1 | R195: 1.102875e-05 | S195: 1.021148855 | T195: 0.2180954871 | U195: 16.56951589 | V195: -128.57624 | W195: 51.42375997 | Y195: 1000000000 | Z195: 121633326.6 | AB195: -0.1472967001 | AC195: -42.73490062 | AG195: 18.65501285 | AH195: -85.84133941 | AJ195: 0 | AK195: 0
A196: 11092.5 | B196: 11.0925 | C196: 3.536553056 | D196: 1.284124752 | E196: 1.000003009 | F196: 0.002453302478 | G196: 1 | H196: 0 | I196: 940.8996761 | J196: 1.569733514 | K196: 1.484917402 | L196: 0.8319464564 | M196: 1.000013749 | N196: 0.005243816595 | O196: 1 | P196: 1.10925e-05 | Q196: 1 | R196: 1.10925e-05 | S196: 1.021391543 | T196: 0.2193237356 | U196: 16.49863593 | V196: -128.5732225 | W196: 51.42677754 | Y196: 1000000000 | Z196: 123043556.2 | AB196: -0.1700740242 | AC196: -42.57253319 | AG196: 18.60691021 | AH196: -86.00068928 | AJ196: 0 | AK196: 0
A197: 11156.25 | B197: 11.15625 | C197: 3.555257283 | D197: 1.285675298 | E197: 1.000003044 | F197: 0.00246740186 | G197: 1 | H197: 0 | I197: 946.3071394 | J197: 1.569739587 | K197: 1.489587134 | L197: 0.8347986106 | M197: 1.000013907 | N197: 0.005273952915 | O197: 1 | P197: 1.115625e-05 | Q197: 1 | R197: 1.115625e-05 | S197: 1.021635572 | T197: 0.2205514423 | U197: 16.42823911 | V197: -128.570255 | W197: 51.42974495 | Y197: 1000000000 | Z197: 124461914.1 | AB197: -0.1925790354 | AC197: -42.41119144 | AG197: 18.55901841 | AH197: -86.1590636 | AJ197: 0 | AK197: 0
A198: 11220 | B198: 11.22 | C198: 3.573969968 | D198: 1.287209611 | E198: 1.000003079 | F198: 0.002481501242 | G198: 1 | H198: 0 | I198: 951.7146028 | J198: 1.569745591 | K198: 1.494268909 | L198: 0.8376329152 | M198: 1.000014067 | N198: 0.005304089225 | O198: 1 | P198: 1.122e-05 | Q198: 1 | R198: 1.122e-05 | S198: 1.021880941 | T198: 0.2217786045 | U198: 16.3583195 | V198: -128.5673451 | W198: 51.43265491 | Y198: 1000000000 | Z198: 125888400 | AB198: -0.2148157965 | AC198: -42.25086845 | AG198: 18.51133556 | AH198: -86.31647664 | AJ198: 0 | AK198: 0
A199: 11285.5 | B199: 11.2855 | C199: 3.593205005 | D199: 1.288769394 | E199: 1.000003115 | F199: 0.002495987664 | G199: 1 | H199: 0 | I199: 957.2705063 | J199: 1.56975169 | K199: 1.499091626 | L199: 0.8405265612 | M199: 1.000014232 | N199: 0.005335052797 | O199: 1 | P199: 1.12855e-05 | Q199: 1 | R199: 1.12855e-05 | S199: 1.022134443 | T199: 0.2230388837 | U199: 16.28697142 | V199: -128.5644225 | W199: 51.43557748 | Y199: 1000000000 | Z199: 127362510.2 | AB199: -0.2373877761 | AC199: -42.08719824 | AG199: 18.46255946 | AH199: -86.47722428 | AJ199: 0 | AK199: 0
A200: 11351 | B200: 11.351 | C200: 3.612448691 | D200: 1.290312562 | E200: 1.000003151 | F200: 0.002510474085 | G200: 1 | H200: 0 | I200: 962.8264099 | J200: 1.569757718 | K200: 1.503926815 | L200: 0.8434016247 | M200: 1.000014397 | N200: 0.005366016358 | O200: 1 | P200: 1.1351e-05 | Q200: 1 | R200: 1.1351e-05 | S200: 1.022389357 | T200: 0.2242985826 | U200: 16.2161147 | V200: -128.5615754 | W200: 51.43842457 | Y200: 1000000000 | Z200: 128845201 | AB200: -0.2596850398 | AC200: -41.9245887 | AG200: 18.414 | AH200: -86.63698673 | AJ200: 0 | AK200: 0
A201: 11416.5 | B201: 11.4165 | C201: 3.631700888 | D201: 1.291839373 | E201: 1.000003188 | F201: 0.002524960505 | G201: 1 | H201: 0 | I201: 968.3823135 | J201: 1.569763677 | K201: 1.508774355 | L201: 0.8462582371 | M201: 1.000014564 | N201: 0.005396979909 | O201: 1 | P201: 1.14165e-05 | Q201: 1 | R201: 1.14165e-05 | S201: 1.022645685 | T201: 0.2255576984 | U201: 16.1457432 | V201: -128.5588109 | W201: 51.44118908 | Y201: 1000000000 | Z201: 130336472.2 | AB201: -0.2817117618 | AC201: -41.76303236 | AG201: 18.36565522 | AH201: -86.79577856 | AJ201: 0 | AK201: 0
... 434 more rows

Sheet Bode Plot Management (hidden)
J1: Single or dual output (MODE) | N1: 3.3V or 5V fixed (FB1/2)
A2: =CHOOSE(BODE_PLOT_TYPE, "BODE_PLOT_Ch1", "BODE_PLOT_Ch2") -> BODE_PLOT_Ch1 | J2: With/without dither (DITH) | N2: With/without VOUT connected to VCCX
J3: FPWM or DEM (DEMB)
J4: Shunt or inductor DCR current sensing
F6: =INDIRECT(A2) -> 0

Sheet Efficiency Calculations (hidden)
A1: BUCK CONTROLLER POWER DESIGN TOOL | G1: *Assuming CCM conditions | AO1: =Ext_VCC -> 2
H2: =AV19 -> 0.8965017563 | I2: 10% load
H3: =AV59 -> 0.9165248859 | I3: 50% load | P3: =Ext_VCC -> 2 | AN3: =IF(MODE=1, (Qg_Q1+Qg_Q2)*Fsw*Vin, (Qg_Q1+Qg_Q2+Qg_Q3+Qg_Q4)*Fsw*Vin) -> 0.0394992
H4: =AV109 -> 0.860065468 | I4: 100% load | U4: 3 | AG4: 1 | AK4: 2 | AM4: I_VCC | AN4: =(Qg_Q1+Qg_Q2)*Fsw*1000 -> 3.2916 | AO4: mA | AP4: =AN4*5/1000 -> 0.016458
AP5: =VCC -> 3.15
A6: Enter the values of your design and MOSFET datasheet specifications below. Note that thermal resistance (θJA) will change when components are placed on the PCB
G7: Operating Point Condtions | R7: Filter Inductor | V7: Cout | Y7: Cin | AB7: High-side BUCK "Control" MOSFET Losses | AH7: Low-side BUCK "Sync" MOSFET Losses | AL7: Diode/FET | AM7: "Controller" Losses | AT7: RESULTS | AZ7: Consolidated Buck Efficiency & Losses
A8: Input Parameters | G8: Step | H8: Vin | I8: Mode | J8: Iout | K8: Iout/ phase | L8: Iin | M8: Duty Cycle BUCK Leg | N8: Ripple Current pk-pk | O8: Peak Inductor Current | P8: Valley Inductor Current | Q8: SW node voltage at Q1 turn-on | R8: Irms Lf | S8: DCR Loss | T8: Core Loss | U8: Total Inductor Loss | V8: Irms Cout | W8: Cout ESR Loss | X8: Total Cout Loss | Y8: Irms Cin | Z8: Cin ESR Loss | AA8: Total Cin Loss | AB8: Irms | AC8: RDS(on) Loss | AD8: Transition Loss (not including capacitive loss) | AE8: MOSFET Output Capacitance Loss | AF8: Dead Time Loss | AG8: Total Control MOSFET Loss | AH8: Irms | AI8: RDS(on) Loss | AJ8: Deadtime Loss | AK8: Total Sync MOSFET Loss | AL8: Reverse Recovery Loss | AM8: IQ Loss | AN8: Switching Current Loss | AO8: Switching Current Diss from VCC | AP8: LDO Loss Saved from Gate Drive Current (ext VCC = Vout) | AQ8: Total "Control" Loss | AR8: Total Loss (not considering total loss) | AS8: Total Loss (considering total loss) | AT8: Total Loss | AU8: Pout | AV8: EFF, h | AW8: =IF(Vin>Vout, "Buck ''CONTROL'' MOSFET Temp Rise", "Boost ''CONTROL'' MOSFET Temp Rise") -> Buck ''CONTROL'' MOSFET Temp Rise | AX8: =IF(Vin>Vout, "Buck ''SYNC'' MOSFET Temp Rise", "Boost ''SYNC'' MOSFET Temp Rise") -> Buck ''SYNC'' MOSFET Temp Rise | AZ8: h | BA8: Inductor Cu & Core Loss | BB8: Total MOSFET Loss | BC8: Control MOSFET Loss | BD8: SYNC MOSFET Loss | BE8: IC Power Loss
A9: Design | B9: Input Value | C9: Units | D9: Description | G9: 0 | H9: =Vin -> 12 | I9: =MODE -> 1 | J9: 0 | K9: =Iout*G9/100/Number_of_Phases -> 0 | L9: =Vout*K9/(Vin*Efficiency) -> 0 | M9: =(Vout+(Rdson2+Rs+Rdcr)*K9)/(Vin+(Rs+Rdson2-Rdson1)*K9) -> 0.5 | N9: =(Vin-(Rdson1+Rdcr)*K9-Vout)*M9/(Fsw*Lf) -> 1.339285714 | O9: =K9+N9/2 -> 0.6696428571 | P9: =K9-N9/2 -> -0.6696428571 | Q9: =IF(MIN(Vin, -P9/(Coss_Q1+Coss_Q2)*0.00000002)<0, 0, MIN(Vin, -P9/(Coss_Q1+Coss_Q2)*0.00000002)) -> 12 | R9: =SQRT(K9^2+(N9^2)/12) -> 0.3866184838 | S9: =R9^2*Rdcr -> 0.02989477041 | T9: =Core_Loss -> 0.1 | U9: =(T9+S9*(1+Ltc*(Ta-25)))/(1-S9*Ltc*ThetaCa) -> 0.1302313797 | V9: =N9/SQRT(12) -> 0.3866184838 | W9: =RCoutEsr*V9^2 -> 0.000149473852 | X9: =W9 -> 0.000149473852 | Y9: =SQRT(M9*(1-M9))*SQRT(K9^2+(N9^2)/12) -> 0.1933092419 | Z9: =RCinEsr*Y9^2 -> 7.473692602e-05 | AA9: =Z9 -> 7.473692602e-05 | AB9: =SQRT(M9)*SQRT(K9^2+(N9^2)/12) -> 0.2733805516 | AC9: =Rdson1*AB9^2 -> 0.004857900191 | AD9: =(Vin*K9/2)*Fsw*(Tr_buck+Tf_buck) -> 0 | AE9: =(0.5*Coss_Q1*(Vin-Q9)^2-0.5*Coss_Q2*(Vin-Q9)^2+(Qoss_Q2*(Vin-Q9)/Vin)*Vin)*Fsw -> 0 | AF9: =IF(K9>N9/2,0,ABS(K9-N9/2)*Vsd_Q1*Deadtime*Fsw) -> 0.001040625 | AG9: =(AF9+AE9+AD9+AC9*(1+RdsonTC*(Ta-25))/(1-AC9*RdsonTC*ThetaJA_Q1)) -> 0.005900697288 | AH9: =SQRT((1-M9))*SQRT(K9^2+(N9^2)/12) -> 0.2733805516 | AI9: =Rdson2*AH9^2 -> 0.002989477041 | AJ9: =IF(K9<N9/2,Deadtime*Fsw*Vsd_Q2*(K9+N9/2),2*Deadtime*Fsw*Vsd_Q2*K9) -> 0.001040625 | AK9: =(AJ9+AI9*(1+RdsonTC*(Ta-25)))/(1-AI9*RdsonTC*ThetaJA_Q2) -> 0.004031210752 | AL9: =Qrr_Q2*K9/Iout*Fsw*Vin -> 0 | AM9: =Iq*Vin -> 0.00042 | AN9: =IF(Ext_VCC=1, (Qg_Q1+Qg_Q2)*Fsw*Vout, (Qg_Q1+Qg_Q2)*Fsw*Vin) -> 0.0394992 | AO9: =(Vin-VCC)*Fsw*(Qg_Q1+Qg_Q2) -> 0.02913066 | AP9: =(Qg_Q1+Qg_Q2)*Fsw*(Vin-Vout) -> 0.0197496 | AQ9: =SUM(AM9:AN9) -> 0.0399192 | AR9: =SUM(S9,T9,AC9,AD9,AE9,AF9,AI9,AJ9,AQ9, AL9) -> 0.1797425976 | AS9: =U9 + ((AF9+AE9+AD9+AC9*(1+RdsonTC*(Ta-25))) + (AJ9+AI9*(1+RdsonTC*(Ta-25))) + AQ9 + AL9) / (1-AC9*RdsonTC*ThetaJA_Q1 -AI9*RdsonTC*ThetaJA_Q2) -> 0.180115221 | AT9: =AS9 -> 0.180115221 | AU9: =Vout*K9 -> 0 | AV9: =AU9/(AU9+AT9) -> 0 | AW9: =ThetaJA_Q1*BC9 -> 0.1357160376 | AX9: =ThetaJA_Q2*BD9 -> 0.0927178473 | AZ9: =AV9*100 -> 0 | BA9: =U9 -> 0.1302313797 | BB9: =AG9+AK9+AL9 -> 0.00993190804 | BC9: =AG9+AL9*0.66 -> 0.005900697288 | BD9: =AK9+AL9*0.33 -> 0.004031210752 | BE9: =AS9-BA9 -> 0.04988384131
G10: 1 | H10: 12 | I10: 1 | J10: =Iout*G10/100 -> 0.03 | K10: 0.03 | L10: 0.01666666667 | M10: 0.5007124288 | N10: 1.339416924 | O10: =K10+N10/2 -> 0.6997084618 | P10: =K10-N10/2 -> -0.6397084618 | Q10: 12 | R10: =SQRT(K10^2+(N10^2)/12) -> 0.3878184385 | S10: 0.03008062825 | T10: 0.1 | U10: 0.1304198204 | V10: =N10/SQRT(12) -> 0.3866563607 | W10: 0.0001495031413 | X10: =W10 -> 0.0001495031413 | Y10: =SQRT(M10*(1-M10))*SQRT(K10^2+(N10^2)/12) -> 0.1939090224 | Z10: 7.520141795e-05 | AA10: =Z10 -> 7.520141795e-05 | AB10: =SQRT(M10)*SQRT(K10^2+(N10^2)/12) -> 0.2744243469 | AC10: 0.00489506694 | AD10: 0.000118748366 | AE10: 0 | AF10: 0.0009941069496 | AG10: =(AF10+AE10+AD10+AC10*(1+RdsonTopTc*Ta-RdsonTopTc*25))/(1-AC10*RdsonTopTc*ThetaJA_Q1) -> 0.006010629119 | AH10: 0.2740336094 | AI10: 0.003003776764 | AJ10: 0.00108734695 | AK10: =(AJ10+AI10*(1+RdsonBotTc*Ta-RdsonBotTc*25))/(1-AI10*RdsonBotTc*ThetaJA_Q2) -> 0.004092254598 | AL10: 0.000336 | AM10: 0.00042 | AN10: 0.0394992 | AO10: 0.02913066 | AP10: 0.0197496 | AQ10: 0.0399192 | AR10: =SUM(S10,T10,AC10,AD10,AE10,AF10,AI10,AJ10,AQ10, AL10) -> 0.1804348742 | AS10: 0.180810685 | AT10: =AS10 -> 0.180810685 | AU10: 0.18 | AV10: =AU10/(AU10+AT10) -> 0.4988765784 | AW10: 0.1433449497 | AX10: 0.09667209575 | AZ10: =AV10*100 -> 49.88765784 | BA10: 0.1304198204 | BB10: 0.01043888372 | BC10: 0.006232389119 | BD10: 0.004203134598 | BE10: =AS10-BA10 -> 0.05039086469
A11: Vin | B11: =Vin -> 12 | C11: V | D11: Vin | G11: 2 | H11: 12 | I11: 1 | J11: 0.06 | K11: 0.06 | L11: 0.03333333333 | M11: 0.5014247151 | N11: 1.339542695 | O11: 0.7297713476 | P11: -0.6097713476 | Q11: 12 | R11: 0.3913198428 | S11: 0.03062624387 | T11: 0.1 | U11: 0.1309730533 | V11: 0.3866926678 | W11: 0.0001495312194 | X11: 0.0001495312194 | Y11: 0.1956591271 | Z11: 7.656498803e-05 | AA11: 7.656498803e-05 | AB11: 0.2770988597 | AC11: 0.004990945572 | AD11: 0.000237496732 | AE11: 0 | AF11: 0.0009475846742 | AG11: 0.006178864109 | AH11: 0.2763104076 | AI11: 0.003053897653 | AJ11: 0.001134064674 | AK11: 0.004189139302 | AL11: 0.000672 | AM11: 0.00042 | AN11: 0.0394992 | AO11: 0.02913066 | AP11: 0.0197496 | AQ11: 0.0399192 | AR11: 0.1815814332 | AS11: 0.1819659838 | AT11: 0.1819659838 | AU11: 0.36 | AV11: 0.6642483306 | AW11: 0.1523148345 | AX11: 0.1014506839 | AZ11: 66.42483306 | BA11: 0.1309730533 | BB11: 0.01104000341 | BC11: 0.006622384109 | BD11: 0.004410899302 | BE11: 0.05099293048
A12: Vout | B12: =Vout -> 6 | C12: V | D12: Vout | G12: 3 | H12: 12 | I12: 1 | J12: 0.09 | K12: 0.09 | L12: 0.05 | M12: 0.5021368589 | N12: 1.339663031 | O12: 0.7598315155 | P12: -0.5798315155 | Q12: 12 | R12: 0.3970618168 | S12: 0.03153161728 | T12: 0.1 | U12: 0.1318911821 | V12: 0.3867274058 | W12: 0.0001495580864 | X12: 0.0001495580864 | Y12: 0.1985290954 | Z12: 7.882760341e-05 | AA12: 7.882760341e-05 | AB12: 0.281364419 | AC12: 0.005145785859 | AD12: 0.000356245098 | AE12: 0 | AF12: 0.0009010581751 | AG12: 0.006406121869 | AH12: 0.2801645054 | AI12: 0.003139686004 | AJ12: 0.001180778175 | AK12: 0.004321712511 | AL12: 0.001008 | AM12: 0.00042 | AN12: 0.0394992 | AO12: 0.02913066 | AP12: 0.0197496 | AQ12: 0.0399192 | AR12: 0.1831823706 | AS12: 0.183581337 | AT12: 0.183581337 | AU12: 0.54 | AV12: 0.7462879049 | AW12: 0.162642243 | AX12: 0.1070501078 | AZ12: 74.62879049 | BA12: 0.1318911821 | BB12: 0.01173583438 | BC12: 0.007071401869 | BD12: 0.004654352511 | BE12: 0.05169015483
A13: Fsw | B13: =Fsw/1000 -> 400 | C13: kHz | D13: Switching Frequency | G13: 4 | H13: 12 | I13: 1 | J13: 0.12 | K13: 0.12 | L13: 0.06666666667 | M13: 0.5028488605 | N13: 1.339777933 | O13: 0.7898889663 | P13: -0.5498889663 | Q13: 12 | R13: 0.4049490615 | S13: 0.03279674848 | T13: 0.1 | U13: 0.1331743787 | V13: 0.386760575 | W13: 0.0001495837424 | X13: 0.0001495837424 | Y13: 0.2024712441 | Z13: 8.198920941e-05 | AA13: 8.198920941e-05 | AB13: 0.2871568178 | AC13: 0.005359837469 | AD13: 0.0004749934641 | AE13: 0 | AF13: 0.0008545274536 | AG13: 0.006692658571 | AH13: 0.2855253131 | AI13: 0.003260988176 | AJ13: 0.001227487454 | AK13: 0.004489822625 | AL13: 0.001344 | AM13: 0.00042 | AN13: 0.0394992 | AO13: 0.02913066 | AP13: 0.0197496 | AQ13: 0.0399192 | AR13: 0.1852377825 | AS13: 0.1856570375 | AT13: 0.1856570375 | AU13: 0.72 | AV13: 0.7950029318 | AW13: 0.1743330671 | AX13: 0.1134668804 | AZ13: 79.50029318 | BA13: 0.1331743787 | BB13: 0.0125264812 | BC13: 0.007579698571 | BD13: 0.004933342625 | BE13: 0.05248265885
A14: Iout | B14: =Iout -> 3 | C14: A | D14: Max Output Current | G14: 5 | H14: 12 | I14: 1 | J14: 0.15 | K14: 0.15 | L14: 0.08333333333 | M14: 0.5035607196 | N14: 1.339887401 | O14: 0.8199437007 | P14: -0.5199437007 | Q14: 12 | R14: 0.414859238 | S14: 0.03442163748 | T14: 0.1 | U14: 0.1348228832 | V14: 0.386792176 | W14: 0.0001496081874 | X14: 0.0001496081874 | Y14: 0.2074243591 | Z14: 8.604972947e-05 | AA14: 8.604972947e-05 | AB14: 0.2943924637 | AC14: 0.005633349975 | AD14: 0.0005937418301 | AE14: 0 | AF14: 0.0008079925109 | AG14: 0.007038732267 | AH14: 0.2923033778 | AI14: 0.003417650587 | AJ14: 0.001274192511 | AK14: 0.00469331879 | AL14: 0.00168 | AM14: 0.00042 | AN14: 0.0394992 | AO14: 0.02913066 | AP14: 0.0197496 | AQ14: 0.0399192 | AR14: 0.1877477649 | AS14: 0.1881934518 | AT14: 0.1881934518 | AU14: 0.9 | AV14: 0.8270588272 | AW14: 0.1873932421 | AX14: 0.1206975322 | AZ14: 82.70588272 | BA14: 0.1348228832 | BB14: 0.01341205106 | BC14: 0.008147532267 | BD14: 0.00524771879 | BE14: 0.05337056866
A15: Ta | B15: =Ta -> 25 | C15: °C | D15: Ambient Temperature | G15: 6 | H15: 12 | I15: 1 | J15: 0.18 | K15: 0.18 | L15: 0.1 | M15: 0.5042724365 | N15: 1.339991439 | O15: 0.8499957196 | P15: -0.4899957196 | Q15: 12 | R15: 0.4266514051 | S15: 0.03640628429 | T15: 0.1 | U15: 0.1368370044 | V15: 0.3868222091 | W15: 0.0001496314214 | X15: 0.0001496314214 | Y15: 0.2133179144 | Z15: 9.100906522e-05 | AA15: 9.100906522e-05 | AB15: 0.3029743032 | AC15: 0.005966572847 | AD15: 0.0007124901961 | AE15: 0 | AF15: 0.0007614533483 | AG15: 0.007444602918 | AH15: 0.3003963932 | AI15: 0.003609519721 | AJ15: 0.001320893348 | AK15: 0.004932050884 | AL15: 0.002016 | AM15: 0.00042 | AN15: 0.0394992 | AO15: 0.02913066 | AP15: 0.0197496 | AQ15: 0.0399192 | AR15: 0.1907124138 | AS15: 0.1911910198 | AT15: 0.1911910198 | AU15: 1.08 | AV15: 0.8495969396 | AW15: 0.2018287471 | AX15: 0.1287386103 | AZ15: 84.95969396 | BA15: 0.1368370044 | BB15: 0.0143926538 | BC15: 0.008775162918 | BD15: 0.005597330884 | BE15: 0.05435401538
A16: Vcc | B16: =VCC -> 3.15 | C16: V | D16: Subregulated VCC Voltage | G16: 7 | H16: 12 | I16: 1 | J16: 0.21 | K16: 0.21 | L16: 0.1166666667 | M16: 0.5049840112 | N16: 1.340090048 | O16: 0.8800450239 | P16: -0.4600450239 | Q16: 12 | R16: 0.4401743344 | S16: 0.03875068893 | T16: 0.1 | U16: 0.1392171198 | V16: 0.3868506749 | W16: 0.0001496534447 | X16: 0.0001496534447 | Y16: 0.2200762328 | Z16: 9.686709652e-05 | AA16: 9.686709652e-05 | AB16: 0.3127976849 | AC16: 0.006359755459 | AD16: 0.0008312385621 | AE16: 0 | AF16: 0.0007149099671 | AG16: 0.007910532421 | AH16: 0.3096950968 | AI16: 0.00383644212 | AJ16: 0.001367589967 | AK16: 0.005205869513 | AL16: 0.002352 | AM16: 0.00042 | AN16: 0.0394992 | AO16: 0.02913066 | AP16: 0.0197496 | AQ16: 0.0399192 | AR16: 0.194131825 | AS16: 0.194650255 | AT16: 0.194650255 | AU16: 1.26 | AV16: 0.8661875909 | AW16: 0.2176456057 | AX16: 0.1375866788 | AZ16: 86.61875909 | BA16: 0.1392171198 | BB16: 0.01546840193 | BC16: 0.009462852421 | BD16: 0.005982029513 | BE16: 0.05543313514
A17: Components | B17: Input Value | C17: Units | D17: Description | G17: 8 | H17: 12 | I17: 1 | J17: 0.24 | K17: 0.24 | L17: 0.1333333333 | M17: 0.5056954436 | N17: 1.340183228 | O17: 0.9100916142 | P17: -0.4300916142 | Q17: 12 | R17: 0.4552738266 | S17: 0.04145485143 | T17: 0.1 | U17: 0.1419636757 | V17: 0.3868775738 | W17: 0.0001496742571 | X17: 0.0001496742571 | Y17: 0.2276221446 | Z17: 0.0001036236814 | AA17: 0.0001036236814 | AB17: 0.3237555365 | AC17: 0.006813147082 | AD17: 0.0009499869281 | AE17: 0 | AF17: 0.0006683623685 | AG17: 0.008436784636 | AH17: 0.3200884405 | AI17: 0.004098264389 | AJ17: 0.001414282368 | AK17: 0.005514625994 | AL17: 0.002688 | AM17: 0.00042 | AN17: 0.0394992 | AO17: 0.02913066 | AP17: 0.0197496 | AQ17: 0.0399192 | AR17: 0.1980060946 | AS17: 0.1985717449 | AT17: 0.1985717449 | AU17: 1.44 | AV17: 0.8788141285 | AW17: 0.2348498866 | AX17: 0.1472383179 | AZ17: 87.88141285 | BA17: 0.1419636757 | BB17: 0.01663941063 | BC17: 0.01021086464 | BD17: 0.006401665994 | BE17: 0.05660806914
A18: L | B18: =Lf*1000000 -> 5.6 | C18: uH | D18: Filter Inductance | G18: 9 | H18: 12 | I18: 1 | J18: 0.27 | K18: 0.27 | L18: 0.15 | M18: 0.5064067339 | N18: 1.340270983 | O18: 0.9401354915 | P18: -0.4001354915 | Q18: 12 | R18: 0.4717985364 | S18: 0.0445187718 | T18: 0.1 | U18: 0.1450771874 | V18: 0.3869029064 | W18: 0.000149693859 | X18: 0.000149693859 | Y18: 0.2358799019 | Z18: 0.0001112786562 | AA18: 0.0001112786562 | AB18: 0.3357425042 | AC18: 0.007326996893 | AD18: 0.001068735294 | AE18: 0 | AF18: 0.0006218105538 | AG18: 0.00902362542 | AH18: 0.3314676905 | AI18: 0.004394833194 | AJ18: 0.001460970554 | AK18: 0.005858172352 | AL18: 0.003024 | AM18: 0.00042 | AN18: 0.0394992 | AO18: 0.02913066 | AP18: 0.0197496 | AQ18: 0.0399192 | AR18: 0.2023353183 | AS18: 0.202956151 | AT18: 0.202956151 | AU18: 1.62 | AV18: 0.8886664658 | AW18: 0.2534477047 | AX18: 0.1576901241 | AZ18: 88.86664658 | BA18: 0.1450771874 | BB18: 0.01790579777 | BC18: 0.01101946542 | BD18: 0.006856092352 | BE18: 0.05787896365
A19: Rdcr | B19: =Rdcr*1000 -> 200 | C19: mW | D19: Inductor DCR at 25°C | G19: 10 | H19: 12 | I19: 1 | J19: 0.3 | K19: 0.3 | L19: 0.1666666667 | M19: 0.5071178821 | N19: 1.340353313 | O19: 0.9701766565 | P19: -0.3701766565 | Q19: 12 | R19: 0.4896041772 | S19: 0.04794245006 | T19: 0.1 | U19: 0.1485582394 | V19: 0.386926673 | W19: 0.0001497122503 | X19: 0.0001497122503 | Y19: 0.2447772819 | Z19: 0.0001198318355 | AA19: 0.0001198318355 | AB19: 0.3486579537 | AC19: 0.007901553965 | AD19: 0.00118748366 | AE19: 0 | AF19: 0.0005752545242 | AG19: 0.009671322649 | AH19: 0.3437293726 | AI19: 0.004725995264 | AJ19: 0.001507654524 | AK19: 0.006236361306 | AL19: 0.00336 | AM19: 0.00042 | AN19: 0.0394992 | AO19: 0.02913066 | AP19: 0.0197496 | AQ19: 0.0399192 | AR19: 0.207119592 | AS19: 0.2078042095 | AT19: 0.2078042095 | AU19: 1.8 | AV19: 0.8965017563 | AW19: 0.2734452209 | AX19: 0.16893871 | AZ19: 89.65017563 | BA19: 0.1485582394 | BB19: 0.01926768396 | BC19: 0.01188892265 | BD19: 0.007345161306 | BE19: 0.05924597003
A20: LTc | B20: 3930 | C20: ppm | D20: Inductor Series Resistance Temp Co | G20: 11 | H20: 12 | I20: 1 | J20: 0.33 | K20: 0.33 | L20: 0.1833333333 | M20: 0.5078288882 | N20: 1.34043022 | O20: 1.00021511 | P20: -0.3402151101 | Q20: 12 | R20: 0.5085562223 | S20: 0.05172588625 | T20: 0.1 | U20: 0.1524074861 | V20: 0.3869488742 | W20: 0.0001497294313 | X20: 0.0001497294313 | Y20: 0.2542469391 | Z20: 0.0001292830121 | AA20: 0.0001292830121 | AB20: 0.3624079146 | AC20: 0.008537067275 | AD20: 0.001306232026 | AE20: 0 | AF20: 0.000528694281 | AG20: 0.01038014625 | AH20: 0.3567771499 | AI20: 0.005091597389 | AJ20: 0.001554334281 | AK20: 0.006649046262 | AL20: 0.003696 | AM20: 0.00042 | AN20: 0.0394992 | AO20: 0.02913066 | AP20: 0.0197496 | AQ20: 0.0399192 | AR20: 0.2123590115 | AS20: 0.2131167308 | AT20: 0.2131167308 | AU20: 1.98 | AV20: 0.9028247207 | AW20: 0.2948486439 | AX20: 0.180980704 | AZ20: 90.28247207 | BA20: 0.1524074861 | BB20: 0.02072519252 | BC20: 0.01281950625 | BD20: 0.007868726262 | BE20: 0.06070924476
A21: ThetaCa | B21: =ThetaCa -> 22 | C21: °C/W | D21: Core to Ambient Thermal Resistance | G21: 12 | H21: 12 | I21: 1 | J21: 0.36 | K21: 0.36 | L21: 0.2 | M21: 0.5085397523 | N21: 1.340501706 | O21: 1.030250853 | P21: -0.310250853 | Q21: 12 | R21: 0.5285313633 | S21: 0.0558690804 | T21: 0.1 | U21: 0.1566256513 | V21: 0.3869695104 | W21: 0.000149745402 | X21: 0.000149745402 | Y21: 0.2642271344 | Z21: 0.0001396319571 | AA21: 0.0001396319571 | AB21: 0.3769061442 | AC21: 0.009233785699 | AD21: 0.001424980392 | AE21: 0 | AF21: 0.0004821298256 | AG21: 0.01115036825 | AH21: 0.3705228204 | AI21: 0.005491486418 | AJ21: 0.001601009826 | AK21: 0.007096081303 | AL21: 0.004032 | AM21: 0.00042 | AN21: 0.0394992 | AO21: 0.02913066 | AP21: 0.0197496 | AQ21: 0.0399192 | AR21: 0.2180536726 | AS21: 0.2188946008 | AT21: 0.2188946008 | AU21: 2.16 | AV21: 0.9079847419 | AW21: 0.3176642297 | AX21: 0.19381275 | AZ21: 90.79847419 | BA21: 0.1566256513 | BB21: 0.02227844955 | BC21: 0.01381148825 | BD21: 0.008426641303 | BE21: 0.06226894947
A22: Cin | B22: =Cin*1000000 -> 20 | C22: μF | D22: Input Capacitance | G22: 13 | H22: 12 | I22: 1 | J22: 0.39 | K22: 0.39 | L22: 0.2166666667 | M22: 0.5092504744 | N22: 1.340567772 | O22: 1.060283886 | P22: -0.2802838861 | Q22: 12 | R22: 0.5494180218 | S22: 0.06037203253 | T22: 0.1 | U22: 0.1612135294 | V22: 0.3869885821 | W22: 0.0001497601627 | X22: 0.0001497601627 | Y22: 0.2746619925 | Z22: 0.0001508784202 | AA22: 0.0001508784202 | AB22: 0.3920745223 | AC22: 0.009991958017 | AD22: 0.001543728758 | AE22: 0 | AF22: 0.000435561159 | AG22: 0.01198226275 | AH22: 0.3848866478 | AI22: 0.005925509265 | AJ22: 0.001647681159 | AK22: 0.007577321177 | AL22: 0.004368 | AM22: 0.00042 | AN22: 0.0394992 | AO22: 0.02913066 | AP22: 0.0197496 | AQ22: 0.0399192 | AR22: 0.2242036709 | AS22: 0.2251387804 | AT22: 0.2251387804 | AU22: 2.34 | AV22: 0.9122313451 | AW22: 0.3418982833 | AX22: 0.2074315071 | AZ22: 91.22313451 | BA22: 0.1612135294 | BB22: 0.02392758393 | BC22: 0.01486514275 | BD22: 0.009018761177 | BE22: 0.06392525094
A23: RCinEsr | B23: =RCinEsr*1000 -> 2 | C23: mW | D23: Input Capacitor ESR | G23: 14 | H23: 12 | I23: 1 | J23: 0.42 | K23: 0.42 | L23: 0.2333333333 | M23: 0.5099610545 | N23: 1.34062842 | O23: 1.09031421 | P23: -0.2503142102 | Q23: 12 | R23: 0.5711161996 | S23: 0.06523474269 | T23: 0.1 | U23: 0.1661719852 | V23: 0.3870060897 | W23: 0.0001497737135 | X23: 0.0001497737135 | Y23: 0.2855014265 | Z23: 0.0001630221291 | AA23: 0.0001630221291 | AB23: 0.4078429733 | AC23: 0.01081183291 | AD23: 0.001662477124 | AE23: 0 | AF23: 0.0003889882827 | AG23: 0.01287610603 | AH23: 0.3997972268 | AI23: 0.006393512904 | AJ23: 0.001694348283 | AK23: 0.008092621292 | AL23: 0.004704 | AM23: 0.00042 | AN23: 0.0394992 | AO23: 0.02913066 | AP23: 0.0197496 | AQ23: 0.0399192 | AR23: 0.2308091022 | AS23: 0.2318503064 | AT23: 0.2318503064 | AU23: 2.52 | AV23: 0.915747486 | AW23: 0.3675571587 | AX23: 0.2218336497 | AZ23: 91.5747486 | BA23: 0.1661719852 | BB23: 0.02567272732 | BC23: 0.01598074603 | BD23: 0.009644941292 | BE23: 0.06567832118
A24: Cout | B24: =Cout*1000000 -> 35.2 | C24: μF | D24: Output Capcitance | G24: 15 | H24: 12 | I24: 1 | J24: 0.45 | K24: 0.45 | L24: 0.25 | M24: 0.5106714928 | N24: 1.340683652 | O24: 1.120341826 | P24: -0.2203418261 | Q24: 12 | R24: 0.5935369025 | S24: 0.07045721092 | T24: 0.1 | U24: 0.1715019546 | V24: 0.3870220338 | W24: 0.0001497860546 | X24: 0.0001497860546 | Y24: 0.2967008511 | Z24: 0.0001760627901 | AA24: 0.0001760627901 | AB24: 0.4241490839 | AC24: 0.01169365895 | AD24: 0.00178122549 | AE24: 0 | AF24: 0.0003424111978 | AG24: 0.01383217652 | AH24: 0.4151910515 | AI24: 0.006895344369 | AJ24: 0.001741011198 | AK24: 0.008641837704 | AL24: 0.00504 | AM24: 0.00042 | AN24: 0.0394992 | AO24: 0.02913066 | AP24: 0.0197496 | AQ24: 0.0399192 | AR24: 0.2378700621 | AS24: 0.239030292 | AT24: 0.239030292 | AU24: 2.7 | AV24: 0.9186703544 | AW24: 0.39464726 | AX24: 0.2370158672 | AZ24: 91.86703544 | BA24: 0.1715019546 | BB24: 0.02751401423 | BC24: 0.01715857652 | BD24: 0.0103050377 | BE24: 0.06752833738
A25: RCoutEsr | B25: =Cout_ESR*1000 -> 1 | C25: mW | D25: Output Capacitor ESR | G25: 16 | H25: 12 | I25: 1 | J25: 0.48 | K25: 0.48 | L25: 0.2666666667 | M25: 0.5113817891 | N25: 1.340733469 | O25: 1.150366735 | P25: -0.1903667347 | Q25: 12 | R25: 0.6166013188 | S25: 0.07603943726 | T25: 0.1 | U25: 0.1772044448 | V25: 0.3870364147 | W25: 0.0001497971863 | X25: 0.0001497971863 | Y25: 0.3082207713 | Z25: 0.0001900000878 | AA25: 0.0001900000878 | AB25: 0.4409375436 | AC25: 0.01263768463 | AD25: 0.001899973856 | AE25: 0 | AF25: 0.0002958299057 | AG25: 0.01485075487 | AH25: 0.4310119128 | AI25: 0.007430850758 | AJ25: 0.001787669906 | AK25: 0.009224827108 | AL25: 0.005376 | AM25: 0.00042 | AN25: 0.0394992 | AO25: 0.02913066 | AP25: 0.0197496 | AQ25: 0.0399192 | AR25: 0.2453866463 | AS25: 0.2466799268 | AT25: 0.2466799268 | AU25: 2.88 | AV25: 0.9211048356 | AW25: 0.4231750421 | AX25: 0.2529748635 | AZ25: 92.11048356 | BA25: 0.1772044448 | BB25: 0.02945158198 | BC25: 0.01839891487 | BD25: 0.01099890711 | BE25: 0.069475482
A26: Top Driver | B26: Input Value | C26: Units | D26: Description | G26: 17 | H26: 12 | I26: 1 | J26: 0.51 | K26: 0.51 | L26: 0.2833333333 | M26: 0.5120919437 | N26: 1.340777873 | O26: 1.180388937 | P26: -0.1603889366 | Q26: 12 | R26: 0.6402398838 | S26: 0.08198142175 | T26: 0.1 | U26: 0.183280535 | V26: 0.387049233 | W26: 0.0001498071088 | X26: 0.0001498071088 | Y26: 0.3200263155 | Z26: 0.0002048336852 | AA26: 0.0002048336852 | AB26: 0.4581595007 | AC26: 0.01364415832 | AD26: 0.002018722222 | AE26: 0 | AF26: 0.0002492444075 | AG26: 0.01593212395 | AH26: 0.4472102198 | AI26: 0.007999879228 | AJ26: 0.001834324407 | AK26: 0.009841446831 | AL26: 0.005712 | AM26: 0.00042 | AN26: 0.0394992 | AO26: 0.02913066 | AP26: 0.0197496 | AQ26: 0.0399192 | AR26: 0.2533589503 | AS26: 0.2548004778 | AT26: 0.2548004778 | AU26: 3.06 | AV26: 0.9231324843 | AW26: 0.4531470109 | AX26: 0.2697073571 | AZ26: 92.31324843 | BA26: 0.183280535 | BB26: 0.03148557078 | BC26: 0.01970204395 | BD26: 0.01172640683 | BE26: 0.07151994278
A27: RdsonDRT | B27: 1 | C27: W | D27: Drain to Source Resistance of pullup Top FET Driver | G27: 18 | H27: 12 | I27: 1 | J27: 0.54 | K27: 0.54 | L27: 0.3 | M27: 0.5128019565 | N27: 1.340816866 | O27: 1.210408433 | P27: -0.1304084328 | Q27: 11.41980234 | R27: 0.6643913171 | S27: 0.08828316445 | T27: 0.1 | U27: 0.1897313769 | V27: 0.3870604891 | W27: 0.0001498158223 | X27: 0.0001498158223 | Y27: 0.3320867536 | Z27: 0.0002205632238 | AA27: 0.0002205632238 | AB27: 0.4757718963 | AC27: 0.01471332832 | AD27: 0.002137470588 | AE27: 0.0007419502731 | AF27: 0.0002026547046 | AG27: 0.01781952486 | AH27: 0.4637423045 | AI27: 0.008602276999 | AJ27: 0.001880974705 | AK27: 0.01049155482 | AL27: 0.006048 | AM27: 0.00042 | AN27: 0.0394992 | AO27: 0.02913066 | AP27: 0.0197496 | AQ27: 0.0399192 | AR27: 0.26252902 | AS27: 0.2641368349 | AT27: 0.2641368349 | AU27: 3.24 | AV27: 0.9246214268 | AW27: 0.5016577119 | AX27: 0.2872100809 | AZ27: 92.46214268 | BA27: 0.1897313769 | BB27: 0.03435907968 | BC27: 0.02181120486 | BD27: 0.01248739482 | BE27: 0.07440545796
A28: RdsonDRT2 | B28: 1 | C28: W | D28: Drain to Source Resistance of pulldown Top FET Driver | G28: 19 | H28: 12 | I28: 1 | J28: 0.57 | K28: 0.57 | L28: 0.3166666667 | M28: 0.5135118275 | N28: 1.340850448 | O28: 1.240425224 | P28: -0.100425224 | Q28: 8.794187488 | R28: 0.6890016887 | S28: 0.0949446654 | T28: 0.1 | U28: 0.1965581951 | V28: 0.3870701836 | W28: 0.000149823327 | X28: 0.000149823327 | Y28: 0.3443750307 | Z28: 0.0002371883235 | AA28: 0.0002371883235 | AB28: 0.4937368157 | AC28: 0.01584544281 | AD28: 0.002256218954 | AE28: 0.004186439773 | AF28: 0.0001560607981 | AG28: 0.02247692877 | AH28: 0.4805697491 | AI28: 0.009237891351 | AJ28: 0.001927620798 | AK28: 0.01117500963 | AL28: 0.006384 | AM28: 0.00042 | AN28: 0.0394992 | AO28: 0.02913066 | AP28: 0.0197496 | AQ28: 0.0399192 | AR28: 0.2748575399 | AS28: 0.2766559084 | AT28: 0.2766559084 | AU28: 3.42 | AV28: 0.9251604923 | AW28: 0.6138784817 | AX28: 0.3054797816 | AZ28: 92.51604923 | BA28: 0.1965581951 | BB28: 0.0400359384 | BC28: 0.02669036877 | BD28: 0.01328172963 | BE28: 0.08009771331
A29: Bottom Driver | B29: Input Value | C29: Units | D29: Description | G29: 20 | H29: 12 | I29: 1 | J29: 0.6 | K29: 0.6 | L29: 0.3333333333 | M29: 0.5142215569 | N29: 1.340878622 | O29: 1.270439311 | P29: -0.07043931111 | Q29: 6.168335839 | R29: 0.7140235453 | S29: 0.1019659247 | T29: 0.1 | U29: 0.2037622877 | V29: 0.3870783167 | W29: 0.0001498296233 | X29: 0.0001498296233 | Y29: 0.3568673303 | Z29: 0.0002547085828 | AA29: 0.0002547085828 | AB29: 0.5120208811 | AC29: 0.01704074987 | AD29: 0.00237496732 | AE29: 0.007773575888 | AF29: 0.0001094626895 | AG29: 0.02734162057 | AH29: 0.4976587592 | AI29: 0.009906569626 | AJ29: 0.001974262689 | AK29: 0.01189167044 | AL29: 0.00672 | AM29: 0.00042 | AN29: 0.0394992 | AO29: 0.02913066 | AP29: 0.0197496 | AQ29: 0.0399192 | AR29: 0.2877847127 | AS29: 0.2897943625 | AT29: 0.2897943625 | AU29: 3.6 | AV29: 0.9254987962 | AW29: 0.730866873 | AX29: 0.32451322 | AZ29: 92.54987962 | BA29: 0.2037622877 | BB29: 0.045953291 | BC29: 0.03177682057 | BD29: 0.01410927044 | BE29: 0.0860320748
A30: RdsonDRB | B30: 1 | C30: W | D30: Drain to Source Resistance of pullup Bottom FET Driver | G30: 21 | H30: 12 | I30: 1 | J30: 0.63 | K30: 0.63 | L30: 0.35 | M30: 0.5149311446 | N30: 1.34090139 | O30: 1.300450695 | P30: -0.04045069486 | Q30: 3.542247459 | R30: 0.7394151144 | S30: 0.1093469423 | T30: 0.1 | U30: 0.211345027 | V30: 0.3870848892 | W30: 0.0001498347114 | X30: 0.0001498347114 | Y30: 0.3695426759 | Z30: 0.0002731235786 | AA30: 0.0002731235786 | AB30: 0.5305946954 | AC30: 0.0182994975 | AD30: 0.002493715686 | AE30: 0.01150339703 | AF30: 6.286037982e-05 | AG30: 0.03241404137 | AH30: 0.5149795925 | AI30: 0.01060815923 | AJ30: 0.00202090038 | AK30: 0.01264139699 | AL30: 0.007056 | AM30: 0.00042 | AN30: 0.0394992 | AO30: 0.02913066 | AP30: 0.0197496 | AQ30: 0.0399192 | AR30: 0.3013106725 | AS30: 0.3035539874 | AT30: 0.3035539874 | AU30: 3.78 | AV30: 0.9256642649 | AW30: 0.8526330316 | AX30: 0.3443071707 | AZ30: 92.56642649 | BA30: 0.211345027 | BB30: 0.05211143836 | BC30: 0.03707100137 | BD30: 0.01496987699 | BE30: 0.09220896033
A31: RdsonDRB2 | B31: 1 | C31: W | D31: Drain to Source Resistance of pulldown Bottom FET Driver | G31: 22 | H31: 12 | I31: 1 | J31: 0.66 | K31: 0.66 | L31: 0.3666666667 | M31: 0.5156405907 | N31: 1.340918752 | O31: 1.330459376 | P31: -0.01045937609 | Q31: 0.9159224214 | R31: 0.7651395897 | S31: 0.1170877183 | T31: 0.1 | U31: 0.2193078604 | V31: 0.3870899013 | W31: 0.0001498385917 | X31: 0.0001498385917 | Y31: 0.3823825744 | Z31: 0.0002924328664 | AA31: 0.0002924328664 | AB31: 0.5494323445 | AC31: 0.01962193358 | AD31: 0.002612464052 | AE31: 0.01537594158 | AF31: 1.625387045e-05 | AG31: 0.03769464012 | AH31: 0.5325060473 | AI31: 0.01134250762 | AJ31: 0.00206753387 | AK31: 0.01342404963 | AL31: 0.007392 | AM31: 0.00042 | AN31: 0.0394992 | AO31: 0.02913066 | AP31: 0.0197496 | AQ31: 0.0399192 | AR31: 0.3154355529 | AS31: 0.3179366617 | AT31: 0.3179366617 | AU31: 3.96 | AV31: 0.9256799044 | AW31: 0.9791872828 | AX31: 0.3648584214 | AZ31: 92.56799044 | BA31: 0.2193078604 | BB31: 0.05851068975 | BC31: 0.04257336012 | BD31: 0.01586340963 | BE31: 0.09862880126
A32: Deadtime | B32: Input Value | C32: Units | D32: Description | G32: 23 | H32: 12 | I32: 1 | J32: 0.69 | K32: 0.69 | L32: 0.3833333333 | M32: 0.5163498952 | N32: 1.340930711 | O32: 1.360465356 | P32: 0.0195346444 | Q32: 0 | R32: 0.7911644989 | S32: 0.1251882529 | T32: 0.1 | U32: 0.2276523106 | V32: 0.3870933535 | W32: 0.0001498412644 | X32: 0.0001498412644 | Y32: 0.3953706995 | Z32: 0.0003126359801 | AA32: 0.0003126359801 | AB32: 0.5685109553 | AC32: 0.02100830591 | AD32: 0.002731212418 | AE32: 0.016759968 | AF32: 0 | AG32: 0.04057791386 | AH32: 0.5502150108 | AI32: 0.01210946232 | AJ32: 0.00214452 | AK32: 0.01426987998 | AL32: 0.007728 | AM32: 0.00042 | AN32: 0.0394992 | AO32: 0.02913066 | AP32: 0.0197496 | AQ32: 0.0399192 | AR32: 0.3275889215 | AS32: 0.3303659306 | AT32: 0.3303659306 | AU32: 4.14 | AV32: 0.9260986828 | AW32: 1.050603059 | AX32: 0.3868627594 | AZ32: 92.60986828 | BA32: 0.2276523106 | BB32: 0.06257579384 | BC32: 0.04567839386 | BD32: 0.01682011998 | BE32: 0.1027136201
A33: Deadtime | B33: 15 | C33: ns | D33: Total Deadtime | G33: 24 | H33: 12 | I33: 1 | J33: 0.72 | K33: 0.72 | L33: 0.4 | M33: 0.5170590583 | N33: 1.340937268 | O33: 1.390468634 | P33: 0.04953136579 | Q33: 0 | R33: 0.8174611488 | S33: 0.133648546 | T33: 0.1 | U33: 0.2363799765 | V33: 0.3870952464 | W33: 0.0001498427298 | X33: 0.0001498427298 | Y33: 0.4084926146 | Z33: 0.0003337324323 | AA33: 0.0003337324323 | AB33: 0.5878103066 | AC33: 0.02245886218 | AD33: 0.002849960784 | AE33: 0.016759968 | AF33: 0 | AG33: 0.04215589412 | AH33: 0.5680860615 | AI33: 0.01290887093 | AJ33: 0.00223776 | AK33: 0.0151646407 | AL33: 0.008064 | AM33: 0.00042 | AN33: 0.0394992 | AO33: 0.02913066 | AP33: 0.0197496 | AQ33: 0.0399192 | AR33: 0.3388471679 | AS33: 0.3419220144 | AT33: 0.3419220144 | AU33: 4.32 | AV33: 0.9266564277 | AW33: 1.091997085 | AX33: 0.4099924961 | AZ33: 92.66564277 | BA33: 0.2363799765 | BB33: 0.06538453482 | BC33: 0.04747813412 | BD33: 0.0178257607 | BE33: 0.1055420379
A34: IQ | B34: Input Value | C34: Units | D34: Description | G34: 25 | H34: 12 | I34: 1 | J34: 0.75 | K34: 0.75 | L34: 0.4166666667 | M34: 0.5177680798 | N34: 1.340938425 | O34: 1.420469213 | P34: 0.07953078729 | Q34: 0 | R34: 0.84400414 | S34: 0.1424685977 | T34: 0.1 | U34: 0.2454925342 | V34: 0.3870955804 | W34: 0.0001498429884 | X34: 0.0001498429884 | Y34: 0.4217355298 | Z34: 0.0003557217142 | AA34: 0.0003557217142 | AB34: 0.6073124906 | AC34: 0.02397384998 | AD34: 0.00296870915 | AE34: 0.016759968 | AF34: 0 | AG34: 0.04379913024 | AH34: 0.5861011236 | AI34: 0.01374058109 | AJ34: 0.002331 | AK34: 0.01609192342 | AL34: 0.0084 | AM34: 0.00042 | AN34: 0.0394992 | AO34: 0.02913066 | AP34: 0.0197496 | AQ34: 0.0399192 | AR34: 0.3505619059 | AS34: 0.3539622026 | AT34: 0.3539622026 | AU34: 4.5 | AV34: 0.9270776764 | AW34: 1.134891996 | AX34: 0.4338702388 | AZ34: 92.70776764 | BA34: 0.2454925342 | BB34: 0.06829105366 | BC34: 0.04934313024 | BD34: 0.01886392342 | BE34: 0.1084696684
A35: IQ | B35: =Iq*1000 -> 0.035 | C35: mA | D35: Quiescent Current Of Controller (Not Switching!) | G35: 26 | H35: 12 | I35: 1 | J35: 0.78 | K35: 0.78 | L35: 0.4333333333 | M35: 0.5184769599 | N35: 1.340934184 | O35: 1.450467092 | P35: 0.1095329081 | Q35: 0 | R35: 0.870770946 | S35: 0.1516484081 | T35: 0.1 | U35: 0.2549917377 | V35: 0.387094356 | W35: 0.0001498420405 | X35: 0.0001498420405 | Y35: 0.435088092 | Z35: 0.0003786032955 | AA35: 0.0003786032955 | AB35: 0.6270016172 | AC35: 0.02555351682 | AD35: 0.003087457516 | AE35: 0.016759968 | AF35: 0 | AG35: 0.045507928 | AH35: 0.6042441662 | AI35: 0.0146044405 | AJ35: 0.00242424 | AK35: 0.01705159116 | AL35: 0.008736 | AM35: 0.00042 | AN35: 0.0394992 | AO35: 0.02913066 | AP35: 0.0197496 | AQ35: 0.0399192 | AR35: 0.3627332309 | AS35: 0.3664884889 | AT35: 0.3664884889 | AU35: 4.68 | AV35: 0.9273775241 | AW35: 1.179294824 | AX35: 0.4584928367 | AZ35: 92.73775241 | BA35: 0.2549917377 | BB35: 0.07129551916 | BC35: 0.051273688 | BD35: 0.01993447116 | BE35: 0.1114967512
A36: High-side FET | B36: Input Value | C36: Units | D36: Description | G36: 27 | H36: 12 | I36: 1 | J36: 0.81 | K36: 0.81 | L36: 0.45 | M36: 0.5191856986 | N36: 1.340924545 | O36: 1.480462273 | P36: 0.1395377273 | Q36: 0 | R36: 0.8977415476 | S36: 0.1611879773 | T36: 0.1 | U36: 0.2648794196 | V36: 0.3870915736 | W36: 0.0001498398863 | X36: 0.0001498398863 | Y36: 0.4485402015 | Z36: 0.0004023766247 | AA36: 0.0004023766247 | AB36: 0.6468635582 | AC36: 0.02719811009 | AD36: 0.003206205882 | AE36: 0.016759968 | AF36: 0 | AG36: 0.04728259572 | AH36: 0.6225009425 | AI36: 0.01550029694 | AJ36: 0.00251748 | AK36: 0.01804350747 | AL36: 0.009072 | AM36: 0.00042 | AN36: 0.0394992 | AO36: 0.02913066 | AP36: 0.0197496 | AQ36: 0.0399192 | AR36: 0.3753612382 | AS36: 0.3795029508 | AT36: 0.3795029508 | AU36: 4.86 | AV36: 0.9275689022 | AW36: 1.225212662 | AX36: 0.4838571518 | AZ36: 92.75689022 | BA36: 0.2648794196 | BB36: 0.07439810319 | BC36: 0.05327011572 | BD36: 0.02103726747 | BE36: 0.1146235312
A37: RdsonTop | B37: =Rdson1*1000 -> 65 | C37: mW | D37: Drain-Source Resistance of Top FET | G37: 28 | H37: 12 | I37: 1 | J37: 0.84 | K37: 0.84 | L37: 0.4666666667 | M37: 0.519894296 | N37: 1.340909511 | O37: 1.510454756 | P37: 0.1695452443 | Q37: 0 | R37: 0.9248981168 | S37: 0.1710873053 | T37: 0.1 | U37: 0.2751574923 | V37: 0.3870872337 | W37: 0.0001498365265 | X37: 0.0001498365265 | Y37: 0.4620828544 | Z37: 0.0004270411288 | AA37: 0.0004270411288 | AB37: 0.6668857254 | AC37: 0.02890787709 | AD37: 0.003324954248 | AE37: 0.016759968 | AF37: 0 | AG37: 0.04912344436 | AH37: 0.6408587643 | AI37: 0.01642799823 | AJ37: 0.00261072 | AK37: 0.01906753645 | AL37: 0.009408 | AM37: 0.00042 | AN37: 0.0394992 | AO37: 0.02913066 | AP37: 0.0197496 | AQ37: 0.0399192 | AR37: 0.3884460229 | AS37: 0.3930077516 | AT37: 0.3930077516 | AU37: 5.04 | AV37: 0.9276629503 | AW37: 1.27265266 | AX37: 0.5099600583 | AZ37: 92.76629503 | BA37: 0.2751574923 | BB37: 0.0775989808 | BC37: 0.05533272436 | BD37: 0.02217217645 | BE37: 0.1178502593
A38: RdsonTopTc | B38: =RdsonTopTc*1000000 -> 4000 | C38: ppm | D38: Drain to Source Resistance Temp Co | G38: 29 | H38: 12 | I38: 1 | J38: 0.87 | K38: 0.87 | L38: 0.4833333333 | M38: 0.520602752 | N38: 1.340889084 | O38: 1.540444542 | P38: 0.1995554581 | Q38: 0 | R38: 0.952224743 | S38: 0.1813463922 | T38: 0.1 | U38: 0.2858279484 | V38: 0.3870813367 | W38: 0.0001498319612 | X38: 0.0001498319612 | Y38: 0.4757080057 | Z38: 0.0004525962134 | AA38: 0.0004525962134 | AB38: 0.6870568786 | AC38: 0.03068306503 | AD38: 0.003443702614 | AE38: 0.016759968 | AF38: 0 | AG38: 0.0510307875 | AH38: 0.6593063073 | AI38: 0.01738739228 | AJ38: 0.00270396 | AK38: 0.0201235427 | AL38: 0.009744 | AM38: 0.00042 | AN38: 0.0394992 | AO38: 0.02913066 | AP38: 0.0197496 | AQ38: 0.0399192 | AR38: 0.4019876802 | AS38: 0.4070051403 | AT38: 0.4070051403 | AU38: 5.22 | AV38: 0.9276693143 | AW38: 1.321622032 | AX38: 0.5367984421 | AZ38: 92.76693143 | BA38: 0.2858279484 | BB38: 0.0808983302 | BC38: 0.0574618275 | BD38: 0.0233390627 | BE38: 0.1211771919
A39: QgTop | B39: =Qg_Q1*1000000000 -> 3.182 | C39: nC | D39: Gate Charge Of Top FET | G39: 30 | H39: 12 | I39: 1 | J39: 0.9 | K39: 0.9 | L39: 0.5 | M39: 0.5213110668 | N39: 1.340863264 | O39: 1.570431632 | P39: 0.229568368 | Q39: 0 | R39: 0.9797071966 | S39: 0.1919652382 | T39: 0.1 | U39: 0.2968928624 | V39: 0.3870738832 | W39: 0.0001498261911 | X39: 0.0001498261911 | Y39: 0.4894084507 | Z39: 0.0004790412632 | AA39: 0.0004790412632 | AB39: 0.7073669597 | AC39: 0.03252392101 | AD39: 0.00356245098 | AE39: 0.016759968 | AF39: 0 | AG39: 0.05300494142 | AH39: 0.6778334423 | AI39: 0.01837832702 | AJ39: 0.0027972 | AK39: 0.02121139137 | AL39: 0.01008 | AM39: 0.00042 | AN39: 0.0394992 | AO39: 0.02913066 | AP39: 0.0197496 | AQ39: 0.0399192 | AR39: 0.4159863052 | AS39: 0.4214974536 | AT39: 0.4214974536 | AU39: 5.4 | AV39: 0.9275963862 | AW39: 1.372128053 | AX39: 0.5643692015 | AZ39: 92.75963862 | BA39: 0.2968928624 | BB39: 0.08429633279 | BC39: 0.05965774142 | BD39: 0.02453779137 | BE39: 0.1246045912
A40: QgdTop | B40: =Qgd_Q1*1000000000 -> 2.008 | C40: nC | D40: Gate to Drain Charge | G40: 31 | H40: 12 | I40: 1 | J40: 0.93 | K40: 0.93 | L40: 0.5166666667 | M40: 0.5220192404 | N40: 1.340832054 | O40: 1.600416027 | P40: 0.2595839731 | Q40: 0 | R40: 1.007332724 | S40: 0.2029438433 | T40: 0.1 | U40: 0.3083543912 | V40: 0.3870648736 | W40: 0.0001498192164 | X40: 0.0001498192164 | Y40: 0.5031777227 | Z40: 0.0005063756412 | AA40: 0.0005063756412 | AB40: 0.7278069486 | AC40: 0.03443069204 | AD40: 0.003681199346 | AE40: 0.016759968 | AF40: 0 | AG40: 0.05504622511 | AH40: 0.6964310891 | AI40: 0.01940065047 | AJ40: 0.00289044 | AK40: 0.02233094809 | AL40: 0.010416 | AM40: 0.00042 | AN40: 0.0394992 | AO40: 0.02913066 | AP40: 0.0197496 | AQ40: 0.0399192 | AR40: 0.4304419931 | AS40: 0.4364871163 | AT40: 0.4364871163 | AU40: 5.58 | AV40: 0.9274514999 | AW40: 1.424178058 | AX40: 0.592669246 | AZ40: 92.74514999 | BA40: 0.3083543912 | BB40: 0.0877931732 | BC40: 0.06192078511 | BD40: 0.02576822809 | BE40: 0.1281327251
A41: QgsTop | B41: =Qgs_Q1*1000000000 -> 1.175 | C41: nC | G41: 32 | H41: =Vin -> 12 | I41: =MODE -> 1 | J41: 0.96 | K41: =Iout*G41/100/Number_of_Phases -> 0.96 | L41: =Vout*K41/(Vin*Efficiency) -> 0.5333333333 | M41: =(Vout+(Rdson2+Rs+Rdcr)*K41)/(Vin+(Rs+Rdson2-Rdson1)*K41) -> 0.5227272727 | N41: =(Vin-(Rdson1+Rdcr)*K41-Vout)*M41/(Fsw*Lf) -> 1.340795455 | O41: 1.630397727 | P41: 0.2896022727 | Q41: =IF(MIN(Vin, -P41/(Coss_Q1+Coss_Q2)*0.00000002)<0, 0, MIN(Vin, -P41/(Coss_Q1+Coss_Q2)*0.00000002)) -> 0 | R41: 1.035089869 | S41: =R41^2*Rdcr -> 0.2142822075 | T41: =Core_Loss -> 0.1 | U41: =(T41+S41*(1+Ltc*(Ta-25)))/(1-S41*Ltc*ThetaCa) -> 0.3202147753 | V41: 0.3870543083 | W41: 0.0001498110376 | X41: 0.0001498110376 | Y41: 0.5170100044 | Z41: 0.0005345986892 | AA41: 0.0005345986892 | AB41: 0.7483687391 | AC41: =Rdson1*AB41^2 -> 0.03640362503 | AD41: =(Vin*K41/2)*Fsw*(Tr_buck+Tf_buck) -> 0.003799947712 | AE41: =(0.5*Coss_Q1*(Vin-Q41)^2-0.5*Coss_Q2*(Vin-Q41)^2+(Qoss_Q2*(Vin-Q41)/Vin)*Vin)*Fsw -> 0.016759968 | AF41: =IF(K41>N41/2,0,ABS(K41-N41/2)*Vsd_Q1*Deadtime*Fsw) -> 0 | AG41: =(AF41+AE41+AD41+AC41*(1+RdsonTopTc*Ta-RdsonTopTc*25))/(1-AC41*RdsonTopTc*ThetaJA_Q1) -> 0.05715496033 | AH41: =SQRT((1-M41))*SQRT(K41^2+(N41^2)/12) -> 0.7150910907 | AI41: =Rdson2*AH41^2 -> 0.02045421072 | AJ41: =IF(K41<N41/2,Deadtime*Fsw*Vsd_Q2*(K41+N41/2),2*Deadtime*Fsw*Vsd_Q2*K41) -> 0.00298368 | AK41: =(AJ41+AI41*(1+RdsonBotTc*Ta-RdsonBotTc*25))/(1-AI41*RdsonBotTc*ThetaJA_Q2) -> 0.023482079 | AL41: =Qrr_Q2*K41/Iout*Fsw*Vin -> 0.010752 | AM41: =Iq*Vin -> 0.00042 | AN41: =IF(Ext_VCC=1, (Qg_Q1+Qg_Q2)*Fsw*Vout, (Qg_Q1+Qg_Q2)*Fsw*Vin) -> 0.0394992 | AO41: =(Vin-VCC)*Fsw*(Qg_Q1+Qg_Q2) -> 0.02913066 | AP41: =(Qg_Q1+Qg_Q2)*Fsw*(Vin-Vout) -> 0.0197496 | AQ41: =SUM(AM41:AN41) -> 0.0399192 | AR41: 0.445354839 | AS41: =U41 + ((AF41+AE41+AD41+AC41*(1+RdsonTC*(Ta-25))) + (AJ41+AI41*(1+RdsonTC*(Ta-25))) + AQ41 + AL41) / (1-AC41*RdsonTC*ThetaJA_Q1 -AI41*RdsonTC*ThetaJA_Q2) -> 0.4519766427 | AT41: 0.4519766427 | AU41: =Vout*K41 -> 5.76 | AV41: 0.9272410911 | AW41: =ThetaJA_Q1*BC41 -> 1.477779448 | AX41: =ThetaJA_Q2*BD41 -> 0.6216954969 | AZ41: 92.72410911 | BA41: =U41 -> 0.3202147753 | BB41: =AG41+AK41+AL41 -> 0.09138903933 | BC41: =AG41+AL41*0.66 -> 0.06425128033 | BD41: =AK41+AL41*0.33 -> 0.027030239 | BE41: 0.1317618674
A42: RGateTop | B42: =Rgate1 -> 0 | C42: W | D42: Gate Resistance | G42: 33 | H42: 12 | I42: 1 | J42: =Iout*G42/100 -> 0.99 | K42: 0.99 | L42: 0.55 | M42: 0.523435164 | N42: 1.340753468 | O42: 1.660376734 | P42: 0.319623266 | Q42: 0 | R42: 1.062968323 | S42: 0.225980331 | T42: 0.1 | U42: 0.33247634 | V42: 0.3870421879 | W42: 0.0001498016552 | X42: 0.0001498016552 | Y42: 0.5309000509 | Z42: 0.000563709728 | AA42: 0.000563709728 | AB42: 0.76904503 | AC42: 0.03844296678 | AD42: 0.003918696078 | AE42: 0.016759968 | AF42: 0 | AG42: 0.05933147161 | AH42: 0.7338061032 | AI42: 0.02153885588 | AJ42: 0.00307692 | AK42: 0.02466465073 | AL42: 0.011088 | AM42: 0.00042 | AN42: 0.0394992 | AO42: 0.02913066 | AP42: 0.0197496 | AQ42: 0.0399192 | AR42: 0.4607249378 | AS42: 0.4679686377 | AT42: 0.4679686377 | AU42: 5.94 | AV42: 0.926970829 | AW42: 1.532939687 | AX42: 0.6514448868 | AZ42: 92.6970829 | BA42: 0.33247634 | BB42: 0.09508412234 | BC42: 0.06664955161 | BD42: 0.02832369073 | BE42: 0.1354922976
A43: GfsTop | B43: =Gfs_Q1 -> 100 | C43: S | D43: Transconductance of Top FET | G43: 34 | H43: 12 | I43: 1 | J43: 1.02 | K43: 1.02 | L43: 0.5666666667 | M43: 0.5241429141 | N43: 1.340706096 | O43: 1.690353048 | P43: 0.349646952 | Q43: 0 | R43: 1.090958785 | S43: 0.2380382139 | T43: 0.1 | U43: 0.3451414965 | V43: 0.3870285127 | W43: 0.0001497910696 | X43: 0.0001497910696 | Y43: 0.5448431228 | Z43: 0.000593708057 | AA43: 0.000593708057 | AB43: 0.7898292319 | AC43: 0.04054896401 | AD43: 0.004037444444 | AE43: 0.016759968 | AF43: 0 | AG43: 0.06157608634 | AH43: 0.7525695012 | AI43: 0.02265443416 | AJ43: 0.00317016 | AK43: 0.0258785304 | AL43: 0.011424 | AM43: 0.00042 | AN43: 0.0394992 | AO43: 0.02913066 | AP43: 0.0197496 | AQ43: 0.0399192 | AR43: 0.4765523845 | AS43: 0.4844657979 | AT43: 0.4844657979 | AU43: 6.12 | AV43: 0.9266457254 | AW43: 1.589666306 | AX43: 0.6819143592 | AZ43: 92.66457254 | BA43: 0.3451414965 | BB43: 0.09887861674 | BC43: 0.06911592634 | BD43: 0.0296484504 | BE43: 0.1393243014
A44: VthTop | B44: =Vth_Q1 -> 1.5 | C44: V | D44: Threshold Voltage of Top FET | G44: 35 | H44: 12 | I44: 1 | J44: 1.05 | K44: 1.05 | L44: 0.5833333333 | M44: 0.5248505232 | N44: 1.34065334 | O44: 1.72032667 | P44: 0.3796733301 | Q44: 0 | R44: 1.11905285 | S44: 0.2504558563 | T44: 0.1 | U44: 0.3582127431 | V44: 0.3870132833 | W44: 0.0001497792814 | X44: 0.0001497792814 | Y44: 0.5588349284 | Z44: 0.0006245929543 | AA44: 0.0006245929543 | AB44: 0.8107153853 | AC44: 0.04272186334 | AD44: 0.00415619281 | AE44: 0.016759968 | AF44: 0 | AG44: 0.06388913474 | AH44: 0.7713752948 | AI44: 0.02380079382 | AJ44: 0.0032634 | AK44: 0.0271235856 | AL44: 0.01176 | AM44: 0.00042 | AN44: 0.0394992 | AO44: 0.02913066 | AP44: 0.0197496 | AQ44: 0.0399192 | AR44: 0.4928372743 | AS44: 0.5014709132 | AT44: 0.5014709132 | AU44: 6.3 | AV44: 0.926270226 | AW44: 1.647966899 | AX44: 0.7131008688 | AZ44: 92.6270226 | BA44: 0.3582127431 | BB44: 0.1027727203 | BC44: 0.07165073474 | BD44: 0.0310043856 | BE44: 0.1432581701
A45: VspTop | B45: =Vsp_Q1 -> 1.53 | C45: V | G45: 36 | H45: 12 | I45: 1 | J45: 1.08 | K45: 1.08 | L45: 0.6 | M45: 0.5255579912 | N45: 1.340595201 | O45: 1.750297601 | P45: 0.4097023995 | Q45: 0 | R45: 1.147242908 | S45: 0.2632332582 | T45: 0.1 | U45: 0.3716926664 | V45: 0.3869965001 | W45: 0.0001497662911 | X45: 0.0001497662911 | Y45: 0.5728715725 | Z45: 0.0006563636772 | AA45: 0.0006563636772 | AB45: 0.8316980895 | AC45: 0.04496191128 | AD45: 0.004274941176 | AE45: 0.016759968 | AF45: 0 | AG45: 0.06627094997 | AH45: 0.7902180579 | AI45: 0.02497778316 | AJ45: 0.00335664 | AK45: 0.02839968439 | AL45: 0.012096 | AM45: 0.00042 | AN45: 0.0394992 | AO45: 0.02913066 | AP45: 0.0197496 | AQ45: 0.0399192 | AR45: 0.5095797018 | AS45: 0.5189868675 | AT45: 0.5189868675 | AU45: 6.48 | AV45: 0.9258482867 | AW45: 1.707849129 | AX45: 0.7450013809 | AZ45: 92.58482867 | BA45: 0.3716926664 | BB45: 0.1067666344 | BC45: 0.07425430997 | BD45: 0.03239136439 | BE45: 0.1472942011
A46: VsdTop | B46: =Vsd_Q1 -> 0.7 | C46: V | G46: 37 | H46: 12 | I46: 1 | J46: 1.11 | K46: 1.11 | L46: 0.6166666667 | M46: 0.5262653183 | N46: 1.340531681 | O46: 1.780265841 | P46: 0.4397341593 | Q46: 0 | R46: 1.175522054 | S46: 0.2763704198 | T46: 0.1 | U46: 0.3855839429 | V46: 0.3869781636 | W46: 0.0001497520991 | X46: 0.0001497520991 | Y46: 0.5869495129 | Z46: 0.0006890194614 | AA46: 0.0006890194614 | AB46: 0.8527724402 | AC46: 0.04726935426 | AD46: 0.004393689542 | AE46: 0.016759968 | AF46: 0 | AG46: 0.06872186813 | AH46: 0.8090928651 | AI46: 0.02618525057 | AJ46: 0.00344988 | AK46: 0.02970669528 | AL46: 0.012432 | AM46: 0.00042 | AN46: 0.0394992 | AO46: 0.02913066 | AP46: 0.0197496 | AQ46: 0.0399192 | AR46: 0.5267797622 | AS46: 0.5370166408 | AT46: 0.5370166408 | AU46: 6.66 | AV46: 0.9253834377 | AW46: 1.769320727 | AX46: 0.7776128714 | AZ46: 92.53834377 | BA46: 0.3855839429 | BB46: 0.1108605634 | BC46: 0.07692698813 | BD46: 0.03380925528 | BE46: 0.1514326978
A47: θJATop | B47: =ThetaJA_Q1 -> 23 | C47: °C/W | D47: Junction to Ambient Resistance | G47: 38 | H47: 12 | I47: 1 | J47: 1.14 | K47: 1.14 | L47: 0.6333333333 | M47: 0.5269725045 | N47: 1.340462783 | O47: 1.810231391 | P47: 0.4697686086 | Q47: 0 | R47: 1.203884009 | S47: 0.2898673412 | T47: 0.1 | U47: 0.39988934 | V47: 0.3869582742 | W47: 0.000149736706 | X47: 0.000149736706 | Y47: 0.6010655213 | Z47: 0.0007225595217 | AA47: 0.0007225595217 | AB47: 0.8739339756 | AC47: 0.0496444386 | AD47: 0.004512437908 | AE47: 0.016759968 | AF47: 0 | AG47: 0.0712422283 | AH47: 0.8279952368 | AI47: 0.02742304449 | AJ47: 0.00354312 | AK47: 0.03104448725 | AL47: 0.012768 | AM47: 0.00042 | AN47: 0.0394992 | AO47: 0.02913066 | AP47: 0.0197496 | AQ47: 0.0399192 | AR47: 0.5444375502 | AS47: 0.5555633099 | AT47: 0.5555633099 | AU47: 6.84 | AV47: 0.9248788379 | AW47: 1.832389491 | AX47: 0.8109323267 | AZ47: 92.48788379 | BA47: 0.39988934 | BB47: 0.1150547156 | BC47: 0.0796691083 | BD47: 0.03525792725 | BE47: 0.1556739699
A48: Low-side FET | B48: Input Value | C48: Units | D48: Description | G48: 39 | H48: 12 | I48: 1 | J48: 1.17 | K48: 1.17 | L48: 0.65 | M48: 0.5276795498 | N48: 1.340388506 | O48: 1.840194253 | P48: 0.4998057468 | Q48: 0 | R48: 1.232323055 | S48: 0.3037240225 | T48: 0.1 | U48: 0.4146117175 | V48: 0.3869368325 | W48: 0.0001497201123 | X48: 0.0001497201123 | Y48: 0.6152166496 | Z48: 0.0007569830519 | AA48: 0.0007569830519 | AB48: 0.8951786286 | AC48: 0.05208741051 | AD48: 0.004631186275 | AE48: 0.016759968 | AF48: 0 | AG48: 0.0738323726 | AH48: 0.8469210915 | AI48: 0.02869101341 | AJ48: 0.00363636 | AK48: 0.03241292971 | AL48: 0.013104 | AM48: 0.00042 | AN48: 0.0394992 | AO48: 0.02913066 | AP48: 0.0197496 | AQ48: 0.0399192 | AR48: 0.5625531607 | AS48: 0.5746300503 | AT48: 0.5746300503 | AU48: 7.02 | AV48: 0.9243373217 | AW48: 1.89706329 | AX48: 0.8449567433 | AZ48: 92.43373217 | BA48: 0.4146117175 | BB48: 0.1193493023 | BC48: 0.0824810126 | BD48: 0.03673724971 | BE48: 0.1600183328
A49: RdsonBot | B49: =Rdson2*1000 -> 40 | C49: mW | D49: Drain-Source Resistance of Low-side FET | G49: 40 | H49: 12 | I49: 1 | J49: 1.2 | K49: 1.2 | L49: 0.6666666667 | M49: 0.5283864542 | N49: 1.340308854 | O49: 1.870154427 | P49: 0.5298455731 | Q49: 0 | R49: 1.260833977 | S49: 0.3179404637 | T49: 0.1 | U49: 0.4297540292 | V49: 0.3869138388 | W49: 0.0001497023186 | X49: 0.0001497023186 | Y49: 0.6294002003 | Z49: 0.0007922892244 | AA49: 0.0007922892244 | AB49: 0.9165026849 | AC49: 0.05459851614 | AD49: 0.004749934641 | AE49: 0.016759968 | AF49: 0 | AG49: 0.0764926462 | AH49: 0.865866703 | AI49: 0.02998900589 | AJ49: 0.0037296 | AK49: 0.03381189252 | AL49: 0.01344 | AM49: 0.00042 | AN49: 0.0394992 | AO49: 0.02913066 | AP49: 0.0197496 | AQ49: 0.0399192 | AR49: 0.5811266884 | AS49: 0.5942201377 | AT49: 0.5942201377 | AU49: 7.2 | AV49: 0.9237614377 | AW49: 1.963350063 | AX49: 0.8796831279 | AZ49: 92.37614377 | BA49: 0.4297540292 | BB49: 0.1237445387 | BC49: 0.0853630462 | BD49: 0.03824709252 | BE49: 0.1644661085
A50: RdsonBotTc | B50: =RdsonBotTc*1000000 -> 4000 | C50: ppm | D50: Drain To Source Resitance Temp Co | G50: 41 | H50: 12 | I50: 1 | J50: 1.23 | K50: 1.23 | L50: 0.6833333333 | M50: 0.5290932178 | N50: 1.340223827 | O50: 1.900111914 | P50: 0.5598880865 | Q50: 0 | R50: 1.289412008 | S50: 0.3325166651 | T50: 0.1 | U50: 0.4453193244 | V50: 0.3868892936 | W50: 0.0001496833255 | X50: 0.0001496833255 | Y50: 0.6436137004 | Z50: 0.0008284771908 | AA50: 0.0008284771908 | AB50: 0.9379027463 | AC50: 0.0571780015 | AD50: 0.004868683007 | AE50: 0.016759968 | AF50: 0 | AG50: 0.07922339738 | AH50: 0.8848286636 | AI50: 0.03131687056 | AJ50: 0.00382284 | AK50: 0.03524124595 | AL50: 0.013776 | AM50: 0.00042 | AN50: 0.0394992 | AO50: 0.02913066 | AP50: 0.0197496 | AQ50: 0.0399192 | AR50: 0.6001582282 | AS50: 0.6143369493 | AT50: 0.6143369493 | AU50: 7.38 | AV50: 0.9231534831 | AW50: 2.03125782 | AX50: 0.9151084968 | AZ50: 92.31534831 | BA50: 0.4453193244 | BB50: 0.1282406433 | BC50: 0.08831555738 | BD50: 0.03978732595 | BE50: 0.1690176248
A51: QgBot | B51: =Qg_Q2*1000000000 -> 5.047 | C51: nC | D51: Gate Charge Of Top FET | G51: 42 | H51: 12 | I51: 1 | J51: 1.26 | K51: 1.26 | L51: 0.7 | M51: 0.5297998407 | N51: 1.340133427 | O51: 1.930066714 | P51: 0.5899332863 | Q51: 0 | R51: 1.318052781 | S51: 0.3474526267 | T51: 0.1 | U51: 0.4613107495 | V51: 0.3868631975 | W51: 0.0001496631336 | X51: 0.0001496631336 | Y51: 0.6578548782 | Z51: 0.0008655460815 | AA51: 0.0008655460815 | AB51: 0.9593756988 | AC51: 0.05982611254 | AD51: 0.004987431373 | AE51: 0.016759968 | AF51: 0 | AG51: 0.08202497758 | AH51: 0.9038038516 | AI51: 0.03267445609 | AJ51: 0.00391608 | AK51: 0.03670086071 | AL51: 0.014112 | AM51: 0.00042 | AN51: 0.0394992 | AO51: 0.02913066 | AP51: 0.0197496 | AQ51: 0.0399192 | AR51: 0.6196478747 | AS51: 0.6349839657 | AT51: 0.6349839657 | AU51: 7.56 | AV51: 0.9225155329 | AW51: 2.100794644 | AX51: 0.9512298763 | AZ51: 92.25155329 | BA51: 0.4613107495 | BB51: 0.1328378383 | BC51: 0.09133889758 | BD51: 0.04135782071 | BE51: 0.1736732162
A52: RGateBot | B52: =Rgate2 -> 0 | C52: W | D52: Gate Resistance | G52: 43 | H52: 12 | I52: 1 | J52: 1.29 | K52: 1.29 | L52: 0.7166666667 | M52: 0.5305063228 | N52: 1.340037656 | O52: 1.960018828 | P52: 0.6199811718 | Q52: 0 | R52: 1.346752295 | S52: 0.3627483487 | T52: 0.1 | U52: 0.4777315494 | V52: 0.3868355508 | W52: 0.0001496417434 | X52: 0.0001496417434 | Y52: 0.672121643 | Z52: 0.0009034950059 | AA52: 0.0009034950059 | AB52: 0.9809186831 | AC52: 0.06254309508 | AD52: 0.005106179739 | AE52: 0.016759968 | AF52: 0 | AG52: 0.08489774143 | AH52: 0.9227894021 | AI52: 0.03406161122 | AJ52: 0.00400932 | AK52: 0.03819060792 | AL52: 0.014448 | AM52: 0.00042 | AN52: 0.0394992 | AO52: 0.02913066 | AP52: 0.0197496 | AQ52: 0.0399192 | AR52: 0.6395957227 | AS52: 0.6561647725 | AT52: 0.6561647725 | AU52: 7.74 | AV52: 0.9218494646 | AW52: 2.171968693 | AX52: 0.9880443021 | AZ52: 92.18494646 | BA52: 0.4777315494 | BB52: 0.1375363494 | BC52: 0.09443342143 | BD52: 0.04295844792 | BE52: 0.178433223
A53: VsdBot | B53: =Vsd_Q2 -> 0.7 | C53: V | D53: Diode Forward Voltage of Bottom FET Body Diode | G53: 44 | H53: 12 | I53: 1 | J53: 1.32 | K53: 1.32 | L53: 0.7333333333 | M53: 0.5312126643 | N53: 1.339936516 | O53: 1.989968258 | P53: 0.650031742 | Q53: 0 | R53: 1.375506872 | S53: 0.3784038311 | T53: 0.1 | U53: 0.4945850696 | V53: 0.3868063541 | W53: 0.0001496191556 | X53: 0.0001496191556 | Y53: 0.6864120674 | Z53: 0.0009423230526 | AA53: 0.0009423230526 | AB53: 1.00252907 | AC53: 0.06532919487 | AD53: 0.005224928105 | AE53: 0.016759968 | AF53: 0 | AG53: 0.08784204679 | AH53: 0.9417826814 | AI53: 0.03547818476 | AJ53: 0.00410256 | AK53: 0.0397103591 | AL53: 0.014784 | AM53: 0.00042 | AN53: 0.0394992 | AO53: 0.02913066 | AP53: 0.0197496 | AQ53: 0.0399192 | AR53: 0.6600018669 | AS53: 0.677883062 | AT53: 0.677883062 | AU53: 7.92 | AV53: 0.9211569805 | AW53: 2.244788196 | AX53: 1.025548819 | AZ53: 92.11569805 | BA53: 0.4945850696 | BB53: 0.1423364059 | BC53: 0.09759948679 | BD53: 0.0445890791 | BE53: 0.1832979924
A54: QrrBot | B54: =Qrr_Q2*1000000000 -> 7 | C54: nC | D54: Reverse Recovery Charge of Body Diode | G54: 45 | H54: 12 | I54: 1 | J54: 1.35 | K54: 1.35 | L54: 0.75 | M54: 0.5319188651 | N54: 1.339830007 | O54: 2.019915004 | P54: 0.6800849963 | Q54: 0 | R54: 1.404313131 | S54: 0.3944190741 | T54: 0.1 | U54: 0.5118747574 | V54: 0.3867756077 | W54: 0.0001495953707 | X54: 0.0001495953707 | Y54: 0.7007243712 | Z54: 0.0009820292888 | AA54: 0.0009820292888 | AB54: 1.024204438 | AC54: 0.06818465755 | AD54: 0.005343676471 | AE54: 0.016759968 | AF54: 0 | AG54: 0.0908582548 | AH54: 0.960781265 | AI54: 0.03692402557 | AJ54: 0.0041958 | AK54: 0.04125998617 | AL54: 0.01512 | AM54: 0.00042 | AN54: 0.0394992 | AO54: 0.02913066 | AP54: 0.0197496 | AQ54: 0.0399192 | AR54: 0.6808664017 | AS54: 0.7001426352 | AT54: 0.7001426352 | AU54: 8.1 | AV54: 0.9204396265 | AW54: 2.31926146 | AX54: 1.063740482 | AZ54: 92.04396265 | BA54: 0.5118747574 | BB54: 0.147238241 | BC54: 0.1008374548 | BD54: 0.04624958617 | BE54: 0.1882678777
A55: TrrBot | B55: =Trr_Q2*1000000000 -> 40 | C55: ns | D55: Reverse Recovery Time of Body Diode | G55: 46 | H55: 12 | I55: 1 | J55: 1.38 | K55: 1.38 | L55: 0.7666666667 | M55: 0.5326249253 | N55: 1.339718133 | O55: 2.049859066 | P55: 0.7101409337 | Q55: 0 | R55: 1.433167956 | S55: 0.4107940779 | T55: 0.1 | U55: 0.5296041646 | V55: 0.3867433122 | W55: 0.0001495703896 | X55: 0.0001495703896 | Y55: 0.7150569072 | Z55: 0.001022612761 | AA55: 0.001022612761 | AB55: 1.045942554 | AC55: 0.07110972865 | AD55: 0.005462424837 | AE55: 0.016759968 | AF55: 0 | AG55: 0.09394672992 | AH55: 0.9797829169 | AI55: 0.03839898257 | AJ55: 0.00428904 | AK55: 0.04283936145 | AL55: 0.015456 | AM55: 0.00042 | AN55: 0.0394992 | AO55: 0.02913066 | AP55: 0.0197496 | AQ55: 0.0399192 | AR55: 0.702189422 | AS55: 0.7229474034 | AT55: 0.7229474034 | AU55: 8.28 | AV55: 0.9196988085 | AW55: 2.395396868 | AX55: 1.102616353 | AZ55: 91.96988085 | BA55: 0.5296041646 | BB55: 0.1522420914 | BC55: 0.1041476899 | BD55: 0.04793984145 | BE55: 0.1933432388
A56: θJABot | B56: =ThetaJA_Q2 -> 23 | C56: °C/W | D56: Junction to Ambient Resistance | G56: 47 | H56: 12 | I56: 1 | J56: 1.41 | K56: 1.41 | L56: 0.7833333333 | M56: 0.533330845 | N56: 1.339600893 | O56: 2.079800446 | P56: 0.7401995536 | Q56: 0 | R56: 1.462068471 | S56: 0.4275288425 | T56: 0.1 | U56: 0.5477769484 | V56: 0.386709468 | W56: 0.0001495442127 | X56: 0.0001495442127 | Y56: 0.7294081488 | Z56: 0.001064072495 | AA56: 0.001064072495 | AB56: 1.067741352 | AC56: 0.07410465363 | AD56: 0.005581173203 | AE56: 0.016759968 | AF56: 0 | AG56: 0.09710783997 | AH56: 0.9987855718 | AI56: 0.03990290473 | AJ56: 0.00438228 | AK56: 0.04444835764 | AL56: 0.015792 | AM56: 0.00042 | AN56: 0.0394992 | AO56: 0.02913066 | AP56: 0.0197496 | AQ56: 0.0399192 | AR56: 0.7239710221 | AS56: 0.7463013903 | AT56: 0.7463013903 | AU56: 8.46 | AV56: 0.9189358073 | AW56: 2.473202879 | AX56: 1.142173506 | AZ56: 91.89358073 | BA56: 0.5477769484 | BB56: 0.1573481976 | BC56: 0.10753056 | BD56: 0.04965971764 | BE56: 0.198524442
G57: 48 | H57: 12 | I57: 1 | J57: 1.44 | K57: 1.44 | L57: 0.8 | M57: 0.5340366242 | N57: 1.33947829 | O57: 2.109739145 | P57: 0.770260855 | Q57: 0 | R57: 1.491012019 | S57: 0.4446233682 | T57: 0.1 | U57: 0.566396874 | V57: 0.3866740756 | W57: 0.0001495168408 | X57: 0.0001495168408 | Y57: 0.7437766786 | Z57: 0.001106407495 | AA57: 0.001106407495 | AB57: 1.089598923 | AC57: 0.07716967784 | AD57: 0.005699921569 | AE57: 0.016759968 | AF57: 0 | AG57: 0.1003419562 | AH57: 1.01778732 | AI57: 0.04143564112 | AJ57: 0.00447552 | AK57: 0.04608684782 | AL57: 0.016128 | AM57: 0.00042 | AN57: 0.0394992 | AO57: 0.02913066 | AP57: 0.0197496 | AQ57: 0.0399192 | AR57: 0.7462112967 | AS57: 0.7702087343 | AT57: 0.7702087343 | AU57: 8.64 | AV57: 0.9181517907 | AW57: 2.552688033 | AX57: 1.18240902 | AZ57: 91.81517907 | BA57: 0.566396874 | BB57: 0.162556804 | BC57: 0.1109864362 | BD57: 0.05140908782 | BE57: 0.2038118602
G58: 49 | H58: 12 | I58: 1 | J58: 1.47 | K58: 1.47 | L58: 0.8166666667 | M58: 0.5347422629 | N58: 1.339350325 | O58: 2.139675163 | P58: 0.8003248373 | Q58: 0 | R58: 1.519996143 | S58: 0.4620776549 | T58: 0.1 | U58: 0.5854678167 | V58: 0.3866371355 | W58: 0.0001494882745 | X58: 0.0001494882745 | Y58: 0.7581611785 | Z58: 0.001149616745 | AA58: 0.001149616745 | AB58: 1.111513497 | AC58: 0.08030504652 | AD58: 0.005818669935 | AE58: 0.016759968 | AF58: 0 | AG58: 0.1036494533 | AH58: 1.036786391 | AI58: 0.04299704082 | AJ58: 0.00456876 | AK58: 0.04775470543 | AL58: 0.016464 | AM58: 0.00042 | AN58: 0.0394992 | AO58: 0.02913066 | AP58: 0.0197496 | AQ58: 0.0399192 | AR58: 0.7689103402 | AS58: 0.7946736899 | AT58: 0.7946736899 | AU58: 8.82 | AV58: 0.9173478253 | AW58: 2.633860945 | AX58: 1.223319985 | AZ58: 91.73478253 | BA58: 0.5854678167 | BB58: 0.1678681587 | BC58: 0.1145156933 | BD58: 0.05318782543 | BE58: 0.2092058732
G59: 50 | H59: 12 | I59: 1 | J59: 1.5 | K59: 1.5 | L59: 0.8333333333 | M59: 0.5354477612 | N59: 1.339217001 | O59: 2.1696085 | P59: 0.8303914995 | Q59: 0 | R59: 1.549018565 | S59: 0.4798917029 | T59: 0.1 | U59: 0.6049937633 | V59: 0.386598648 | W59: 0.0001494585146 | X59: 0.0001494585146 | Y59: 0.7725604209 | Z59: 0.001193699208 | AA59: 0.001193699208 | AB59: 1.133483432 | AC59: 0.08351100483 | AD59: 0.005937418301 | AE59: 0.016759968 | AF59: 0 | AG59: 0.1070307094 | AH59: 1.055781144 | AI59: 0.044586953 | AJ59: 0.004662 | AK59: 0.04945180428 | AL59: 0.0168 | AM59: 0.00042 | AN59: 0.0394992 | AO59: 0.02913066 | AP59: 0.0197496 | AQ59: 0.0399192 | AR59: 0.7920682471 | AS59: 0.8197006305 | AT59: 0.8197006305 | AU59: 9 | AV59: 0.9165248859 | AW59: 2.716730316 | AX59: 1.264903498 | AZ59: 91.65248859 | BA59: 0.6049937633 | BB59: 0.1732825137 | BC59: 0.1181187094 | BD59: 0.05499580428 | BE59: 0.2147068672
G60: 51 | H60: 12 | I60: 1 | J60: 1.53 | K60: 1.53 | L60: 0.85 | M60: 0.5361531191 | N60: 1.339078318 | O60: 2.199539159 | P60: 0.860460841 | Q60: 0 | R60: 1.578077172 | S60: 0.4980655124 | T60: 0.1 | U60: 0.6249788152 | V60: 0.3865586137 | W60: 0.0001494275618 | X60: 0.0001494275618 | Y60: 0.7869732605 | Z60: 0.001238653825 | AA60: 0.001238653825 | AB60: 1.1555072 | AC60: 0.08678779784 | AD60: 0.006056166667 | AE60: 0.016759968 | AF60: 0 | AG60: 0.1104861063 | AH60: 1.074770055 | AI60: 0.04620522688 | AJ60: 0.00475524 | AK60: 0.05117801854 | AL60: 0.017136 | AM60: 0.00042 | AN60: 0.0394992 | AO60: 0.02913066 | AP60: 0.0197496 | AQ60: 0.0399192 | AR60: 0.8156851117 | AS60: 0.8452940504 | AT60: 0.8452940504 | AU60: 9.18 | AV60: 0.9156838646 | AW60: 2.801304925 | AX60: 1.307156666 | AZ60: 91.56838646 | BA60: 0.6249788152 | BB60: 0.1788001249 | BC60: 0.1217958663 | BD60: 0.05683289854 | BE60: 0.2203152352
A61: Controller | B61: Input Value | C61: Units | D61: Std Units | G61: 52 | H61: 12 | I61: 1 | J61: 1.56 | K61: 1.56 | L61: 0.8666666667 | M61: 0.5368583366 | N61: 1.338934278 | O61: 2.229467139 | P61: 0.8905328608 | Q61: 0 | R61: 1.607170002 | S61: 0.5165990834 | T61: 0.1 | U61: 0.64542719 | V61: 0.386517033 | W61: 0.0001493954168 | X61: 0.0001493954168 | Y61: 0.801398627 | Z61: 0.001284479519 | AA61: 0.001284479519 | AB61: 1.177583383 | AC61: 0.0901356705 | AD61: 0.006174915033 | AE61: 0.016759968 | AF61: 0 | AG61: 0.1140160294 | AH61: 1.093751706 | AI61: 0.04785171175 | AJ61: 0.00484848 | AK61: 0.05293322272 | AL61: 0.017472 | AM61: 0.00042 | AN61: 0.0394992 | AO61: 0.02913066 | AP61: 0.0197496 | AQ61: 0.0399192 | AR61: 0.8397610286 | AS61: 0.8714585672 | AT61: 0.8714585672 | AU61: 9.36 | AV61: 0.9148255782 | AW61: 2.887593635 | AX61: 1.350076603 | AZ61: 91.48255782 | BA61: 0.64542719 | BB61: 0.1844212521 | BC61: 0.1255475494 | BD61: 0.05869898272 | BE61: 0.2260313773
A62: θJA | B62: 23 | C62: °C/W | D62: Junction to Ambient Resistance | G62: 53 | H62: 12 | I62: 1 | J62: 1.59 | K62: 1.59 | L62: 0.8833333333 | M62: 0.5375634139 | N62: 1.338784883 | O62: 2.259392442 | P62: 0.9206075583 | Q62: 0 | R62: 1.63629523 | S62: 0.5354924161 | T62: 0.1 | U62: 0.666343224 | V62: 0.3864739064 | W62: 0.0001493620804 | X62: 0.0001493620804 | Y62: 0.8158355191 | Z62: 0.001331175188 | AA62: 0.001331175188 | AB62: 1.199710655 | AC62: 0.09355486767 | AD62: 0.006293663399 | AE62: 0.016759968 | AF62: 0 | AG62: 0.1176208675 | AH62: 1.112724775 | AI62: 0.04952625695 | AJ62: 0.00494172 | AK62: 0.05471729168 | AL62: 0.017808 | AM62: 0.00042 | AN62: 0.0394992 | AO62: 0.02913066 | AP62: 0.0197496 | AQ62: 0.0399192 | AR62: 0.8642960921 | AS62: 0.898198924 | AT62: 0.898198924 | AU62: 9.54 | AV62: 0.9139507754 | AW62: 2.975605393 | AX62: 1.393660429 | AZ62: 91.39507754 | BA62: 0.666343224 | BB62: 0.1901461592 | BC62: 0.1293741475 | BD62: 0.06059393168 | BE62: 0.2318557001
A63: Theta JC | B63: 2 | C63: °C/W | D63: Junction to Ambient Resistance | G63: 54 | H63: 12 | I63: 1 | J63: 1.62 | K63: 1.62 | L63: 0.9 | M63: 0.5382683509 | N63: 1.338630135 | O63: 2.289315067 | P63: 0.9506849325 | Q63: 0 | R63: 1.665451156 | S63: 0.5547455106 | T63: 0.1 | U63: 0.6877313747 | V63: 0.3864292344 | W63: 0.0001493275532 | X63: 0.0001493275532 | Y63: 0.830282998 | Z63: 0.001378739713 | AA63: 0.001378739713 | AB63: 1.221887784 | AC63: 0.09704563413 | AD63: 0.006412411765 | AE63: 0.016759968 | AF63: 0 | AG63: 0.1213010134 | AH63: 1.13168803 | AI63: 0.05122871189 | AJ63: 0.00503496 | AK63: 0.0565301006 | AL63: 0.018144 | AM63: 0.00042 | AN63: 0.0394992 | AO63: 0.02913066 | AP63: 0.0197496 | AQ63: 0.0399192 | AR63: 0.8892903964 | AS63: 0.9255199921 | AT63: 0.9255199921 | AU63: 9.72 | AV63: 0.9130601424 | AW63: 3.065349228 | AX63: 1.437905274 | AZ63: 91.30601424 | BA63: 0.6877313747 | BB63: 0.195975114 | BC63: 0.1332760534 | BD63: 0.0625176206 | BE63: 0.2377886173
G64: 55 | H64: 12 | I64: 1 | J64: 1.65 | K64: 1.65 | L64: 0.9166666667 | M64: 0.5389731477 | N64: 1.338470035 | O64: 2.319235017 | P64: 0.9807649827 | Q64: 0 | R64: 1.694636196 | S64: 0.5743583672 | T64: 0.1 | U64: 0.7095962234 | V64: 0.3863830174 | W64: 0.0001492918361 | X64: 0.0001492918361 | Y64: 0.8447401828 | Z64: 0.001427171953 | AA64: 0.001427171953 | AB64: 1.244113614 | AC64: 0.1006082146 | AD64: 0.006531160131 | AE64: 0.016759968 | AF64: 0 | AG64: 0.1250568635 | AH64: 1.150640322 | AI64: 0.05295892603 | AJ64: 0.0051282 | AK64: 0.05837152501 | AL64: 0.01848 | AM64: 0.00042 | AN64: 0.0394992 | AO64: 0.02913066 | AP64: 0.0197496 | AQ64: 0.0399192 | AR64: 0.9147440359 | AS64: 0.9534267733 | AT64: 0.9534267733 | AU64: 9.9 | AV64: 0.9121543091 | AW64: 3.15683426 | AX64: 1.482808275 | AZ64: 91.21543091 | BA64: 0.7095962234 | BB64: 0.2019083885 | BC64: 0.1372536635 | BD64: 0.06446992501 | BE64: 0.2438305499
G65: 56 | H65: 12 | I65: 1 | J65: 1.68 | K65: 1.68 | L65: 0.9333333333 | M65: 0.5396778043 | N65: 1.338304584 | O65: 2.349152292 | P65: 1.010847708 | Q65: 0 | R65: 1.723848871 | S65: 0.594330986 | T65: 0.1 | U65: 0.7319424775 | V65: 0.3863352558 | W65: 0.0001492549299 | X65: 0.0001492549299 | Y65: 0.8592062456 | Z65: 0.001476470745 | AA65: 0.001476470745 | AB65: 1.266387069 | AC65: 0.1042428535 | AD65: 0.006649908497 | AE65: 0.016759968 | AF65: 0 | AG65: 0.1288888179 | AH65: 1.169580575 | AI65: 0.05471674889 | AJ65: 0.00522144 | AK65: 0.06024144074 | AL65: 0.018816 | AM65: 0.00042 | AN65: 0.0394992 | AO65: 0.02913066 | AP65: 0.0197496 | AQ65: 0.0399192 | AR65: 0.9406571049 | AS65: 0.9819244029 | AT65: 0.9819244029 | AU65: 10.08 | AV65: 0.9112338534 | AW65: 3.250069692 | AX65: 1.528366577 | AZ65: 91.12338534 | BA65: 0.7319424775 | BB65: 0.2079462586 | BC65: 0.1413073779 | BD65: 0.06645072074 | BE65: 0.2499819254
A66: Outputs | G66: 57 | H66: 12 | I66: 1 | J66: 1.71 | K66: 1.71 | L66: 0.95 | M66: 0.5403823208 | N66: 1.338133784 | O66: 2.379066892 | P66: 1.040933108 | Q66: 0 | R66: 1.7530878 | S66: 0.6146633671 | T66: 0.1 | U66: 0.7547749733 | V66: 0.3862859502 | W66: 0.0001492168353 | X66: 0.0001492168353 | Y66: 0.8736804068 | Z66: 0.001526634906 | AA66: 0.001526634906 | AB66: 1.288707137 | AC66: 0.1079497955 | AD66: 0.006768656863 | AE66: 0.016759968 | AF66: 0 | AG66: 0.1327972807 | AH66: 1.188507783 | AI66: 0.05650203006 | AJ66: 0.00531468 | AK66: 0.06213972395 | AL66: 0.019152 | AM66: 0.00042 | AN66: 0.0394992 | AO66: 0.02913066 | AP66: 0.0197496 | AQ66: 0.0399192 | AR66: 0.9670296974 | AS66: 1.011018152 | AT66: 1.011018152 | AU66: 10.26 | AV66: 0.9102993058 | AW66: 3.345064817 | AX66: 1.574577331 | AZ66: 91.02993058 | BA66: 0.7547749733 | BB66: 0.2140890047 | BC66: 0.1454376007 | BD66: 0.06845988395 | BE66: 0.256243179
A67: Design | B67: Value | C67: Units | G67: 58 | H67: 12 | I67: 1 | J67: 1.74 | K67: 1.74 | L67: 0.9666666667 | M67: 0.5410866972 | N67: 1.337957637 | O67: 2.408978819 | P67: 1.071021181 | Q67: 0 | R67: 1.782351692 | S67: 0.6353555106 | T67: 0.1 | U67: 0.7780986789 | V67: 0.3862351009 | W67: 0.0001491775532 | X67: 0.0001491775532 | Y67: 0.8881619318 | Z67: 0.001577663234 | AA67: 0.001577663234 | AB67: 1.311072871 | AC67: 0.1117292848 | AD67: 0.006887405229 | AE67: 0.016759968 | AF67: 0 | AG67: 0.1367826599 | AH67: 1.207421003 | AI67: 0.05831461917 | AJ67: 0.00540792 | AK67: 0.06406625108 | AL67: 0.019488 | AM67: 0.00042 | AN67: 0.0394992 | AO67: 0.02913066 | AP67: 0.0197496 | AQ67: 0.0399192 | AR67: 0.9938619078 | AS67: 1.040713432 | AT67: 1.040713432 | AU67: 10.44 | AV67: 0.9093511533 | AW67: 3.441829017 | AX67: 1.621437695 | AZ67: 90.93511533 | BA67: 0.7780986789 | BB67: 0.220336911 | BC67: 0.1496447399 | BD67: 0.07049729108 | BE67: 0.2626147527
A68: Dmax | B68: =D1_Vinmin -> 0.6666666667 | C68: index | G68: 59 | H68: 12 | I68: 1 | J68: 1.77 | K68: 1.77 | L68: 0.9833333333 | M68: 0.5417909335 | N68: 1.337776144 | O68: 2.438888072 | P68: 1.101111928 | Q68: 0 | R68: 1.811639336 | S68: 0.6564074169 | T68: 0.1 | U68: 0.8019186969 | V68: 0.3861827086 | W68: 0.0001491370844 | X68: 0.0001491370844 | Y68: 0.9026501271 | Z68: 0.001629554504 | AA68: 0.001629554504 | AB68: 1.333483384 | AC68: 0.1155815658 | AD68: 0.007006153595 | AE68: 0.016759968 | AF68: 0 | AG68: 0.1408453672 | AH68: 1.22631935 | AI68: 0.06015436595 | AJ68: 0.00550116 | AK68: 0.06602089892 | AL68: 0.019824 | AM68: 0.00042 | AN68: 0.0394992 | AO68: 0.02913066 | AP68: 0.0197496 | AQ68: 0.0399192 | AR68: 1.02115383 | AS68: 1.071015793 | AT68: 1.071015793 | AU68: 10.62 | AV68: 0.9083898429 | AW68: 3.540371766 | AX68: 1.668944835 | AZ68: 90.83898429 | BA68: 0.8019186969 | BB68: 0.2266902661 | BC68: 0.1539292072 | BD68: 0.07256281892 | BE68: 0.269097096
A69: Dprime | B69: =1-B68 -> 0.3333333333 | C69: index | G69: 60 | H69: 12 | I69: =MODE -> 1 | J69: 1.8 | K69: 1.8 | L69: 1 | M69: 0.5424950298 | N69: 1.337589308 | O69: 2.468794654 | P69: 1.131205346 | Q69: 0 | R69: 1.8409496 | S69: 0.6778190859 | T69: 0.1 | U69: 0.8262402674 | V69: 0.3861287735 | W69: 0.0001490954297 | X69: 0.0001490954297 | Y69: 0.9171443373 | Z69: 0.001682307471 | AA69: 0.001682307471 | AB69: 1.35593784 | AC69: 0.1195068827 | AD69: 0.007124901961 | AE69: 0.016759968 | AF69: 0 | AG69: 0.1449858186 | AH69: 1.245201993 | AI69: 0.06202112014 | AJ69: 0.0055944 | AK69: 0.06800354449 | AL69: 0.02016 | AM69: 0.00042 | AN69: 0.0394992 | AO69: 0.02913066 | AP69: 0.0197496 | AQ69: 0.0399192 | AR69: 1.048905559 | AS69: 1.101930933 | AT69: 1.101930933 | AU69: 10.8 | AV69: 0.9074157849 | AW69: 3.640702627 | AX69: 1.717095923 | AZ69: 90.74157849 | BA69: 0.8262402674 | BB69: 0.2331493631 | BC69: 0.1582914186 | BD69: 0.07465634449 | BE69: 0.2756906658
A70: Ipp | B70: =Iripple_Vinnom -> 1.309433962 | C70: A | G70: 61 | H70: 12 | I70: 1 | J70: 1.83 | K70: 1.83 | L70: 1.016666667 | M70: 0.5431989862 | N70: 1.337397129 | O70: 2.498698564 | P70: 1.161301436 | Q70: 0 | R70: 1.87028142 | S70: 0.699590518 | T70: 0.1 | U70: 0.8510687711 | V70: 0.3860732962 | W70: 0.00014905259 | X70: 0.00014905259 | Y70: 0.9316439421 | Z70: 0.00173592087 | AA70: 0.00173592087 | AB70: 1.378435454 | AC70: 0.1235054795 | AD70: 0.007243650327 | AE70: 0.016759968 | AF70: 0 | AG70: 0.1492044339 | AH70: 1.264068151 | AI70: 0.06391473158 | AJ70: 0.00568764 | AK70: 0.07001406515 | AL70: 0.020496 | AM70: 0.00042 | AN70: 0.0394992 | AO70: 0.02913066 | AP70: 0.0197496 | AQ70: 0.0399192 | AR70: 1.077117187 | AS70: 1.133464697 | AT70: 1.133464697 | AU70: 10.98 | AV70: 0.9064293556 | AW70: 3.742831259 | AX70: 1.765888139 | AZ70: 90.64293556 | BA70: 0.8510687711 | BB70: 0.239714499 | BC70: 0.1627317939 | BD70: 0.07677774515 | BE70: 0.2823959262
A71: Top FET | B71: Value | C71: Units | G71: 62 | H71: 12 | I71: 1 | J71: 1.86 | K71: 1.86 | L71: 1.033333333 | M71: 0.5439028026 | N71: 1.337199609 | O71: 2.528599805 | P71: 1.191400195 | Q71: 0 | R71: 1.899633798 | S71: 0.7217217132 | T71: 0.1 | U71: 0.8764097325 | V71: 0.3860162771 | W71: 0.0001490085662 | X71: 0.0001490085662 | Y71: 0.9461483536 | Z71: 0.001790393414 | AA71: 0.001790393414 | AB71: 1.400975486 | AC71: 0.1275776003 | AD71: 0.007362398693 | AE71: 0.016759968 | AF71: 0 | AG71: 0.1535016371 | AH71: 1.282917088 | AI71: 0.06583505014 | AJ71: 0.00578088 | AK71: 0.07205233852 | AL71: 0.020832 | AM71: 0.00042 | AN71: 0.0394992 | AO71: 0.02913066 | AP71: 0.0197496 | AQ71: 0.0399192 | AR71: 1.10578881 | AS71: 1.165623082 | AT71: 1.165623082 | AU71: 11.16 | AV71: 0.9054309 | AW71: 3.846767413 | AX71: 1.815318666 | AZ71: 90.54309 | BA71: 0.8764097325 | BB71: 0.2463859756 | BC71: 0.1672507571 | BD71: 0.07892689852 | BE71: 0.289213349
A72: Tr | B72: =(Qgd_Q1+Qgs_Q1/2)*(RdsonDRT+Rgate1)/(VCC-Vsp_Q1)*1000000000 -> 0.8010802469 | C72: ns | D72: Turn on of MOSFET -> Rise time of current | G72: 63 | H72: 12 | I72: 1 | J72: 1.89 | K72: 1.89 | L72: 1.05 | M72: 0.5446064792 | N72: 1.33699675 | O72: 2.558498375 | P72: 1.221501625 | Q72: 0 | R72: 1.929005796 | S72: 0.7442126718 | T72: 0.1 | U72: 0.9022688233 | V72: 0.3859577168 | W72: 0.0001489633591 | X72: 0.0001489633591 | Y72: 0.9606570141 | Z72: 0.001845723797 | AA72: 0.001845723797 | AB72: 1.42355724 | AC72: 0.131723489 | AD72: 0.007481147059 | AE72: 0.016759968 | AF72: 0 | AG72: 0.1578778565 | AH72: 1.301748111 | AI72: 0.06778192577 | AJ72: 0.00587412 | AK72: 0.07411824248 | AL72: 0.021168 | AM72: 0.00042 | AN72: 0.0394992 | AO72: 0.02913066 | AP72: 0.0197496 | AQ72: 0.0399192 | AR72: 1.134920522 | AS72: 1.198412237 | AT72: 1.198412237 | AU72: 11.34 | AV72: 0.9044207341 | AW72: 3.952520938 | AX72: 1.865384697 | AZ72: 90.44207341 | BA72: 0.9022688233 | BB72: 0.2531640989 | BC72: 0.1718487365 | BD72: 0.08110368248 | BE72: 0.2961434135
A73: Tf | B73: =(Qgd_Q1+Qgs_Q1/2)*(RdsonDRT2+Rgate1)/(Vsp_Q1)*1000000000 -> 0.8482026144 | C73: ns | D73: Turn off of MOSFET -> Fall time of current | G73: 64 | H73: =Vin -> 12 | I73: =MODE -> 1 | J73: 1.92 | K73: =Iout*G73/100/Number_of_Phases -> 1.92 | L73: =Vout*K73/(Vin*Efficiency) -> 1.066666667 | M73: =(Vout+(Rdson2+Rs+Rdcr)*K73)/(Vin+(Rs+Rdson2-Rdson1)*K73) -> 0.5453100159 | N73: =(Vin-(Rdson1+Rdcr)*K73-Vout)*M73/(Fsw*Lf) -> 1.336788553 | O73: 2.588394277 | P73: 1.251605723 | Q73: =IF(MIN(Vin, -P73/(Coss_Q1+Coss_Q2)*0.00000002)<0, 0, MIN(Vin, -P73/(Coss_Q1+Coss_Q2)*0.00000002)) -> 0 | R73: 1.95839653 | S73: =R73^2*Rdcr -> 0.7670633939 | T73: =Core_Loss -> 0.1 | U73: =(T73+S73*(1+Ltc*(Ta-25)))/(1-S73*Ltc*ThetaCa) -> 0.9286518652 | V73: 0.3858976155 | W73: 0.0001489169697 | X73: 0.0001489169697 | Y73: 0.9751693935 | Z73: 0.001901910692 | AA73: 0.001901910692 | AB73: 1.446180057 | AC73: =Rdson1*AB73^2 -> 0.1359433893 | AD73: =(Vin*K73/2)*Fsw*(Tr_buck+Tf_buck) -> 0.007599895425 | AE73: =(0.5*Coss_Q1*(Vin-Q73)^2-0.5*Coss_Q2*(Vin-Q73)^2+(Qoss_Q2*(Vin-Q73)/Vin)*Vin)*Fsw -> 0.016759968 | AF73: =IF(K73>N73/2,0,ABS(K73-N73/2)*Vsd_Q1*Deadtime*Fsw) -> 0 | AG73: =(AF73+AE73+AD73+AC73*(1+RdsonTopTc*Ta-RdsonTopTc*25))/(1-AC73*RdsonTopTc*ThetaJA_Q1) -> 0.1623335243 | AH73: =SQRT((1-M73))*SQRT(K73^2+(N73^2)/12) -> 1.320560567 | AI73: =Rdson2*AH73^2 -> 0.06975520848 | AJ73: =IF(K73<N73/2,Deadtime*Fsw*Vsd_Q2*(K73+N73/2),2*Deadtime*Fsw*Vsd_Q2*K73) -> 0.00596736 | AK73: =(AJ73+AI73*(1+RdsonBotTc*Ta-RdsonBotTc*25))/(1-AI73*RdsonBotTc*ThetaJA_Q2) -> 0.07621165519 | AL73: =Qrr_Q2*K73/Iout*Fsw*Vin -> 0.021504 | AM73: =Iq*Vin -> 0.00042 | AN73: =IF(Ext_VCC=1, (Qg_Q1+Qg_Q2)*Fsw*Vout, (Qg_Q1+Qg_Q2)*Fsw*Vin) -> 0.0394992 | AO73: =(Vin-VCC)*Fsw*(Qg_Q1+Qg_Q2) -> 0.02913066 | AP73: =(Qg_Q1+Qg_Q2)*Fsw*(Vin-Vout) -> 0.0197496 | AQ73: 0.0399192 | AR73: 1.164512415 | AS73: =U73 + ((AF73+AE73+AD73+AC73*(1+RdsonTC*(Ta-25))) + (AJ73+AI73*(1+RdsonTC*(Ta-25))) + AQ73 + AL73) / (1-AC73*RdsonTC*ThetaJA_Q1 -AI73*RdsonTC*ThetaJA_Q2) -> 1.231838472 | AT73: 1.231838472 | AU73: =Vout*K73 -> 11.52 | AV73: 0.9033991471 | AW73: =ThetaJA_Q1*BC73 -> 4.060101778 | AX73: =ThetaJA_Q2*BD73 -> 1.916083429 | AZ73: 90.33991471 | BA73: =U73 -> 0.9286518652 | BB73: =AG73+AK73+AL73 -> 0.2600491795 | BC73: =AG73+AL73*0.66 -> 0.1765261643 | BD73: =AK73+AL73*0.33 -> 0.08330797519 | BE73: 0.3031866067
A74: Part Power | B74: Value | C74: Units | G74: 65 | H74: 12 | I74: 1 | J74: =Iout*G74/100 -> 1.95 | K74: 1.95 | L74: 1.083333333 | M74: 0.5460134128 | N74: 1.33657502 | O74: =K74+N74/2 -> 2.61828751 | P74: =K74-N74/2 -> 1.28171249 | Q74: 0 | R74: =SQRT(K74^2+(N74^2)/12) -> 1.987805171 | S74: 0.7902738798 | T74: 0.1 | U74: 0.9555648343 | V74: =N74/SQRT(12) -> 0.3858359739 | W74: =RCoutEsr*V74^2 -> 0.0001488693988 | X74: =W74 -> 0.0001488693988 | Y74: =SQRT(M74*(1-M74))*SQRT(K74^2+(N74^2)/12) -> 0.989684988 | Z74: =RCinEsr*Y74^2 -> 0.001958952751 | AA74: =Z74 -> 0.001958952751 | AB74: =SQRT(M74)*SQRT(K74^2+(N74^2)/12) -> 1.468843317 | AC74: 0.1402375449 | AD74: 0.007718643791 | AE74: 0.016759968 | AF74: 0 | AG74: 0.1668690772 | AH74: 1.33935384 | AI74: 0.07175474832 | AJ74: 0.0060606 | AK74: 0.07833245508 | AL74: 0.02184 | AM74: 0.00042 | AN74: 0.0394992 | AO74: 0.02913066 | AP74: 0.0197496 | AQ74: 0.0399192 | AR74: =SUM(S74,T74,AC74,AD74,AE74,AF74,AI74,AJ74,AQ74, AL74) -> 1.194564585 | AS74: 1.265908257 | AT74: =AS74 -> 1.265908257 | AU74: 11.7 | AV74: =AU74/(AU74+AT74) -> 0.9023664033 | AW74: 4.169519975 | AX74: 1.967412067 | AZ74: =AV74*100 -> 90.23664033 | BA74: 0.9555648343 | BB74: 0.2670415323 | BC74: 0.1812834772 | BD74: 0.08553965508 | BE74: =AS74-BA74 -> 0.3103434231
A75: Power Dis | B75: =AQ9 -> 0.0399192 | C75: W | G75: 66 | H75: 12 | I75: 1 | J75: 1.98 | K75: 1.98 | L75: 1.1 | M75: 0.54671667 | N75: 1.336356153 | O75: 2.648178077 | P75: 1.311821923 | Q75: 0 | R75: 2.017230936 | S75: 0.8138441295 | T75: 0.1 | U75: 0.9830138641 | V75: 0.3857727924 | W75: 0.0001488206473 | X75: 0.0001488206473 | Y75: 1.004203317 | Z75: 0.002016848605 | AA75: 0.002016848605 | AB75: 1.491546433 | AC75: 0.1446061995 | AD75: 0.007837392157 | AE75: 0.016759968 | AF75: 0 | AG75: 0.1714849561 | AH75: 1.358127345 | AI75: 0.07378039542 | AJ75: 0.00615384 | AK75: 0.08048052081 | AL75: 0.022176 | AM75: 0.00042 | AN75: 0.0394992 | AO75: 0.02913066 | AP75: 0.0197496 | AQ75: =SUM(AM75:AN75) -> 0.0399192 | AR75: 1.225077125 | AS75: 1.300628229 | AT75: 1.300628229 | AU75: 11.88 | AV75: 0.9013227437 | AW75: 4.280785671 | AX75: 2.019367819 | AZ75: 90.13227437 | BA75: 0.9830138641 | BB75: 0.274141477 | BC75: 0.1861211161 | BD75: 0.08779860081 | BE75: 0.3176143653
A76: Temp rise | B76: =B75*B62 -> 0.9181416 | C76: °C | G76: 67 | H76: 12 | I76: 1 | J76: 2.01 | K76: 2.01 | L76: 1.116666667 | M76: 0.5474197874 | N76: 1.336131953 | O76: 2.678065977 | P76: 1.341934023 | Q76: 0 | R76: 2.046673085 | S76: 0.8377741433 | T76: 0.1 | U76: 1.011005249 | V76: 0.3857080714 | W76: 0.0001487707163 | X76: 0.0001487707163 | Y76: 1.018723924 | Z76: 0.002075596865 | AA76: 0.002075596865 | AB76: 1.514288849 | AC76: 0.1490495966 | AD76: 0.007956140523 | AE76: 0.016759968 | AF76: 0 | AG76: 0.1761816065 | AH76: 1.376880532 | AI76: 0.07583199997 | AJ76: 0.00624708 | AK76: 0.08265573132 | AL76: 0.022512 | AM76: 0.00042 | AN76: 0.0394992 | AO76: 0.02913066 | AP76: 0.0197496 | AQ76: 0.0399192 | AR76: 1.256050128 | AS76: 1.336005193 | AT76: 1.336005193 | AU76: 12.06 | AV76: 0.9002683879 | AW76: 4.393909109 | AX76: 2.0719479 | AZ76: 90.02683879 | BA76: 1.011005249 | BB76: 0.2813493378 | BC76: 0.1910395265 | BD76: 0.09008469132 | BE76: 0.3249999437
A77: Current (switching) | B77: =(Qg_Q1+Qg_Q2)*Fsw+Iq -> 0.0033266 | C77: A | G77: 68 | H77: 12 | I77: 1 | J77: 2.04 | K77: 2.04 | L77: 1.133333333 | M77: 0.5481227652 | N77: 1.335902422 | O77: 2.707951211 | P77: 1.372048789 | Q77: 0 | R77: 2.076130922 | S77: 0.8620639213 | T77: 0.1 | U77: 1.03954545 | V77: 0.3856418114 | W77: 0.0001487196067 | X77: 0.0001487196067 | Y77: 1.03324637 | Z77: 0.002135196122 | AA77: 0.002135196122 | AB77: 1.537070038 | AC77: 0.1535679796 | AD77: 0.008074888889 | AE77: 0.016759968 | AF77: 0 | AG77: 0.180959478 | AH77: 1.395612878 | AI77: 0.0779094122 | AJ77: 0.00634032 | AK77: 0.08485796575 | AL77: 0.022848 | AM77: 0.00042 | AN77: 0.0394992 | AO77: 0.02913066 | AP77: 0.0197496 | AQ77: 0.0399192 | AR77: 1.28748369 | AS77: 1.372046127 | AT77: 1.372046127 | AU77: 12.24 | AV77: 0.8992035353 | AW77: 4.508900634 | AX77: 2.125149532 | AZ77: 89.92035353 | BA77: 1.03954545 | BB77: 0.2886654437 | BC77: 0.196039158 | BD77: 0.09239780575 | BE77: 0.3325006765
A78: Qrr Current | B78: =Qrr_Q2*Fsw -> 0.0028 | C78: A | G78: 69 | H78: 12 | I78: 1 | J78: 2.07 | K78: 2.07 | L78: 1.15 | M78: 0.5488256033 | N78: 1.33566756 | O78: 2.73783378 | P78: 1.40216622 | Q78: 0 | R78: 2.10560379 | S78: 0.8867134639 | T78: 0.1 | U78: 1.068641097 | V78: 0.3855740128 | W78: 0.0001486673193 | X78: 0.0001486673193 | Y78: 1.047770239 | Z78: 0.002195644947 | AA78: 0.002195644947 | AB78: 1.559889502 | AC78: 0.1581615918 | AD78: 0.008193637255 | AE78: 0.016759968 | AF78: 0 | AG78: 0.1858190249 | AH78: 1.414323888 | AI78: 0.08001248241 | AJ78: 0.00643356 | AK78: 0.08708710351 | AL78: 0.023184 | AM78: 0.00042 | AN78: 0.0394992 | AO78: 0.02913066 | AP78: 0.0197496 | AQ78: 0.0399192 | AR78: 1.319377903 | AS78: 1.408758187 | AT78: 1.408758187 | AU78: 12.42 | AV78: 0.8981283664 | AW78: 4.625770693 | AX78: 2.178969941 | AZ78: 89.81283664 | BA78: 1.068641097 | BB78: 0.2960901284 | BC78: 0.2011204649 | BD78: 0.09473782351 | BE78: 0.3401170902
A79: Diode Current | B79: =Deadtime*Fsw*(Iripple_Vinnom/2)*(Vsd_Q2)/Vin -> 8.478584906e-05 | G79: 70 | H79: 12 | I79: 1 | J79: 2.1 | K79: 2.1 | L79: 1.166666667 | M79: 0.5495283019 | N79: 1.335427371 | O79: 2.767713686 | P79: 1.432286314 | Q79: 0 | R79: 2.135091065 | S79: 0.9117227711 | T79: 0.1 | U79: 1.098298991 | V79: 0.3855046761 | W79: 0.0001486138553 | X79: 0.0001486138553 | Y79: 1.06229513 | Z79: 0.002256941888 | AA79: 0.002256941888 | AB79: 1.582746768 | AC79: 0.1628306765 | AD79: 0.008312385621 | AE79: 0.016759968 | AF79: 0 | AG79: 0.190760706 | AH79: 1.433013093 | AI79: 0.08214106098 | AJ79: 0.0065268 | AK79: 0.08934302421 | AL79: 0.02352 | AM79: 0.00042 | AN79: 0.0394992 | AO79: 0.02913066 | AP79: 0.0197496 | AQ79: 0.0399192 | AR79: 1.351732862 | AS79: 1.44614871 | AT79: 1.44614871 | AU79: 12.6 | AV79: 0.8970430443 | AW79: 4.744529839 | AX79: 2.233406357 | AZ79: 89.70430443 | BA79: 1.098298991 | BB79: 0.3036237303 | BC79: 0.206283906 | BD79: 0.09710462421 | BE79: 0.3478497193
A80: Total | B80: =SUM(B77:B79) -> 0.006211385849 | C80: A | G80: 71 | H80: 12 | I80: 1 | J80: 2.13 | K80: 2.13 | L80: 1.183333333 | M80: 0.5502308609 | N80: 1.335181855 | O80: 2.797590928 | P80: 1.462409072 | Q80: 0 | R80: 2.164592159 | S80: 0.9370918431 | T80: 0.1 | U80: 1.128526113 | V80: 0.3854338018 | W80: 0.0001485592156 | X80: 0.0001485592156 | Y80: 1.076820662 | Z80: 0.002319085474 | AA80: 0.002319085474 | AB80: 1.605641385 | AC80: 0.1675754768 | AD80: 0.008431133987 | AE80: 0.016759968 | AF80: 0 | AG80: 0.1957849849 | AH80: 1.451680047 | AI80: 0.08429499831 | AJ80: 0.00662004 | AK80: 0.09162560771 | AL80: 0.023856 | AM80: 0.00042 | AN80: 0.0394992 | AO80: 0.02913066 | AP80: 0.0197496 | AQ80: 0.0399192 | AR80: 1.38454866 | AS80: 1.48422522 | AT80: 1.48422522 | AU80: 12.78 | AV80: 0.8959477156 | AW80: 4.865188732 | AX80: 2.288456017 | AZ80: 89.59477156 | BA80: 1.128526113 | BB80: 0.3112665926 | BC80: 0.2115299449 | BD80: 0.09949808771 | BE80: 0.3556991065
G81: 72 | H81: 12 | I81: 1 | J81: 2.16 | K81: 2.16 | L81: 1.2 | M81: 0.5509332804 | N81: 1.334931015 | O81: 2.827465507 | P81: 1.492534493 | Q81: 0 | R81: 2.194106515 | S81: 0.9628206802 | T81: 0.1 | U81: 1.159329627 | V81: 0.3853613903 | W81: 0.0001485034011 | X81: 0.0001485034011 | Y81: 1.091346466 | Z81: 0.002382074216 | AA81: 0.002382074216 | AB81: 1.628572927 | AC81: 0.1723962356 | AD81: 0.008549882353 | AE81: 0.016759968 | AF81: 0 | AG81: 0.2008923295 | AH81: 1.470324326 | AI81: 0.08647414489 | AJ81: 0.00671328 | AK81: 0.09393473406 | AL81: 0.024192 | AM81: 0.00042 | AN81: 0.0394992 | AO81: 0.02913066 | AP81: 0.0197496 | AQ81: 0.0399192 | AR81: 1.417825391 | AS81: 1.52299543 | AT81: 1.52299543 | AU81: 12.96 | AV81: 0.8948425112 | AW81: 4.987758138 | AX81: 2.344116163 | AZ81: 89.48425112 | BA81: 1.159329627 | BB81: 0.3190190635 | BC81: 0.2168590495 | BD81: 0.1019180941 | BE81: 0.3636658029
G82: 73 | H82: 12 | I82: 1 | J82: 2.19 | K82: 2.19 | L82: 1.216666667 | M82: 0.5516355604 | N82: 1.33467485 | O82: 2.857337425 | P82: 1.522662575 | Q82: 0 | R82: 2.223633606 | S82: 0.9889092826 | T82: 0.1 | U82: 1.190716882 | V82: 0.3852874421 | W82: 0.000148446413 | X82: 0.000148446413 | Y82: 1.10587219 | Z82: 0.0024459066 | AA82: 0.0024459066 | AB82: 1.651540987 | AC82: 0.177293196 | AD82: 0.008668630719 | AE82: 0.016759968 | AF82: 0 | AG82: 0.2060832127 | AH82: 1.488945527 | AI82: 0.08867835126 | AJ82: 0.00680652 | AK82: 0.09627028354 | AL82: 0.024528 | AM82: 0.00042 | AN82: 0.0394992 | AO82: 0.02913066 | AP82: 0.0197496 | AQ82: 0.0399192 | AR82: 1.451563149 | AS82: 1.56246725 | AT82: 1.56246725 | AU82: 13.14 | AV82: 0.8937275477 | AW82: 5.112248932 | AX82: 2.400384041 | AZ82: 89.37275477 | BA82: 1.190716882 | BB82: 0.3268814962 | BC82: 0.2222716927 | BD82: 0.1043645235 | BE82: 0.3717503679
G83: 74 | H83: 12 | I83: 1 | J83: 2.22 | K83: 2.22 | L83: 1.233333333 | M83: 0.552337701 | N83: 1.334413365 | O83: 2.887206682 | P83: 1.552793318 | Q83: 0 | R83: 2.25317293 | S83: 1.01535765 | T83: 0.1 | U83: 1.222695419 | V83: 0.3852119576 | W83: 0.0001483882523 | X83: 0.0001483882523 | Y83: 1.120397495 | Z83: 0.002510581095 | AA83: 0.002510581095 | AB83: 1.674545178 | AC83: 0.1822666009 | AD83: 0.008787379085 | AE83: 0.016759968 | AF83: 0 | AG83: 0.2113581122 | AH83: 1.507543267 | AI83: 0.09090746802 | AJ83: 0.00689976 | AK83: 0.09863213662 | AL83: 0.024864 | AM83: 0.00042 | AN83: 0.0394992 | AO83: 0.02913066 | AP83: 0.0197496 | AQ83: 0.0399192 | AR83: 1.485762026 | AS83: 1.602648788 | AT83: 1.602648788 | AU83: 13.32 | AV83: 0.8926029279 | AW83: 5.238672101 | AX83: 2.457256902 | AZ83: 89.26029279 | BA83: 1.222695419 | BB83: 0.3348542488 | BC83: 0.2277683522 | BD83: 0.1068372566 | BE83: 0.3799533695
G84: 75 | H84: 12 | I84: 1 | J84: 2.25 | K84: 2.25 | L84: 1.25 | M84: 0.5530397022 | N84: 1.334146558 | O84: 2.917073279 | P84: 1.582926721 | Q84: 0 | R84: 2.282724013 | S84: 1.042165784 | T84: 0.1 | U84: 1.255272976 | V84: 0.3851349373 | W84: 0.00014832892 | X84: 0.00014832892 | Y84: 1.134922056 | Z84: 0.002576096148 | AA84: 0.002576096148 | AB84: 1.69758513 | AC84: 0.1873166928 | AD84: 0.008906127451 | AE84: 0.016759968 | AF84: 0 | AG84: 0.2167175106 | AH84: 1.52611718 | AI84: 0.09316134583 | AJ84: 0.006993 | AK84: 0.101020174 | AL84: 0.0252 | AM84: 0.00042 | AN84: 0.0394992 | AO84: 0.02913066 | AP84: 0.0197496 | AQ84: 0.0399192 | AR84: 1.520422118 | AS84: 1.64354836 | AT84: 1.64354836 | AU84: 13.5 | AV84: 0.8914687416 | AW84: 5.367038743 | AX84: 2.514732001 | AZ84: 89.14687416 | BA84: 1.255272976 | BB84: 0.3429376845 | BC84: 0.2333495106 | BD84: 0.109336174 | BE84: 0.3882753842
G85: 76 | H85: 12 | I85: 1 | J85: 2.28 | K85: 2.28 | L85: 1.266666667 | M85: 0.5537415641 | N85: 1.333874434 | O85: 2.946937217 | P85: 1.613062783 | Q85: 0 | R85: 2.312286405 | S85: 1.069333683 | T85: 0.1 | U85: 1.288457493 | V85: 0.3850563817 | W85: 0.0001482684171 | X85: 0.0001482684171 | Y85: 1.149445559 | Z85: 0.002642450187 | AA85: 0.002642450187 | AB85: 1.720660493 | AC85: 0.1924437146 | AD85: 0.009024875817 | AE85: 0.016759968 | AF85: 0 | AG85: 0.2221618952 | AH85: 1.544666917 | AI85: 0.0954398354 | AJ85: 0.00708624 | AK85: 0.1034342764 | AL85: 0.025536 | AM85: 0.00042 | AN85: 0.0394992 | AO85: 0.02913066 | AP85: 0.0197496 | AQ85: 0.0399192 | AR85: 1.555543517 | AS85: 1.68517449 | AT85: 1.68517449 | AU85: 13.68 | AV85: 0.8903250665 | AW85: 5.497360069 | AX85: 2.572806598 | AZ85: 89.03250665 | BA85: 1.288457493 | BB85: 0.3511321716 | BC85: 0.2390156552 | BD85: 0.1118611564 | BE85: 0.3967169972
G86: 77 | H86: 12 | I86: 1 | J86: 2.31 | K86: 2.31 | L86: 1.283333333 | M86: 0.5544432867 | N86: 1.333596992 | O86: 2.976798496 | P86: 1.643201504 | Q86: 0 | R86: 2.341859677 | S86: 1.096861349 | T86: 0.1 | U86: 1.322257116 | V86: 0.3849762912 | W86: 0.0001482067448 | X86: 0.0001482067448 | Y86: 1.163967701 | Z86: 0.002709641618 | AA86: 0.002709641618 | AB86: 1.74377093 | AC86: 0.1976479087 | AD86: 0.009143624183 | AE86: 0.016759968 | AF86: 0 | AG86: 0.2276917585 | AH86: 1.563192147 | AI86: 0.09774278752 | AJ86: 0.00717948 | AK86: 0.1058743251 | AL86: 0.025872 | AM86: 0.00042 | AN86: 0.0394992 | AO86: 0.02913066 | AP86: 0.0197496 | AQ86: 0.0399192 | AR86: 1.591126317 | AS86: 1.727535919 | AT86: 1.727535919 | AU86: 13.86 | AV86: 0.8891719687 | AW86: 5.629647405 | AX86: 2.631477957 | AZ86: 88.91719687 | BA86: 1.322257116 | BB86: 0.3594380835 | BC86: 0.2447672785 | BD86: 0.1144120851 | BE86: 0.4052788025
G87: 78 | H87: 12 | I87: 1 | J87: 2.34 | K87: 2.34 | L87: 1.3 | M87: 0.55514487 | N87: 1.333314235 | O87: 3.006657117 | P87: 1.673342883 | Q87: 0 | R87: 2.371443422 | S87: 1.124748781 | T87: 0.1 | U87: 1.356680205 | V87: 0.3848946662 | W87: 0.0001481439041 | X87: 0.0001481439041 | Y87: 1.17848819 | Z87: 0.002777668829 | AA87: 0.002777668829 | AB87: 1.766916121 | AC87: 0.2029295176 | AD87: 0.009262372549 | AE87: 0.016759968 | AF87: 0 | AG87: 0.233307598 | AH87: 1.581692551 | AI87: 0.100070053 | AJ87: 0.00727272 | AK87: 0.1083402011 | AL87: 0.026208 | AM87: 0.00042 | AN87: 0.0394992 | AO87: 0.02913066 | AP87: 0.0197496 | AQ87: 0.0399192 | AR87: 1.627170612 | AS87: 1.770641608 | AT87: 1.770641608 | AU87: 14.04 | AV87: 0.8880095032 | AW87: 5.763912194 | AX87: 2.690743345 | AZ87: 88.80095032 | BA87: 1.356680205 | BB87: 0.3678557991 | BC87: 0.250604878 | BD87: 0.1169888411 | BE87: 0.4139614029
G88: 79 | H88: 12 | I88: 1 | J88: 2.37 | K88: 2.37 | L88: 1.316666667 | M88: 0.5558463141 | N88: 1.333026164 | O88: 3.036513082 | P88: 1.703486918 | Q88: 0 | R88: 2.401037254 | S88: 1.152995979 | T88: 0.1 | U88: 1.391735336 | V88: 0.3848115073 | W88: 0.0001480798961 | X88: 0.0001480798961 | Y88: 1.193006745 | Z88: 0.002846530185 | AA88: 0.002846530185 | AB88: 1.790095759 | AC88: 0.2082887837 | AD88: 0.009381120915 | AE88: 0.016759968 | AF88: 0 | AG88: 0.2390099164 | AH88: 1.600167826 | AI88: 0.1024214828 | AJ88: 0.00736596 | AK88: 0.1108317859 | AL88: 0.026544 | AM88: 0.00042 | AN88: 0.0394992 | AO88: 0.02913066 | AP88: 0.0197496 | AQ88: 0.0399192 | AR88: 1.663676495 | AS88: 1.814500747 | AT88: 1.814500747 | AU88: 14.22 | AV88: 0.8868377148 | AW88: 5.900165998 | AX88: 2.750600037 | AZ88: 88.68377148 | BA88: 1.391735336 | BB88: 0.3763857024 | BC88: 0.2565289564 | BD88: 0.1195913059 | BE88: 0.4227654103
G89: 80 | H89: 12 | I89: 1 | J89: 2.4 | K89: 2.4 | L89: 1.333333333 | M89: 0.556547619 | N89: 1.332732781 | O89: 3.06636639 | P89: 1.73363361 | Q89: 0 | R89: 2.430640805 | S89: 1.181602944 | T89: 0.1 | U89: 1.427431312 | V89: 0.3847268148 | W89: 0.000148014722 | X89: 0.000148014722 | Y89: 1.207523091 | Z89: 0.002916224033 | AA89: 0.002916224033 | AB89: 1.813309551 | AC89: 0.2137259492 | AD89: 0.009499869281 | AE89: 0.016759968 | AF89: 0 | AG89: 0.2447992216 | AH89: 1.61861768 | AI89: 0.1047969278 | AJ89: 0.0074592 | AK89: 0.1133489611 | AL89: 0.02688 | AM89: 0.00042 | AN89: 0.0394992 | AO89: 0.02913066 | AP89: 0.0197496 | AQ89: 0.0399192 | AR89: 1.700644059 | AS89: 1.859122758 | AT89: 1.859122758 | AU89: 14.4 | AV89: 0.8856566381 | AW89: 6.038420496 | AX89: 2.811045306 | AZ89: 88.56566381 | BA89: 1.427431312 | BB89: 0.3850281827 | BC89: 0.2625400216 | BD89: 0.1222193611 | BE89: 0.4316914457
G90: 81 | H90: 12 | I90: 1 | J90: 2.43 | K90: 2.43 | L90: 1.35 | M90: 0.5572487848 | N90: 1.332434087 | O90: 3.096217043 | P90: 1.763782957 | Q90: 0 | R90: 2.460253723 | S90: 1.210569677 | T90: 0.1 | U90: 1.463777164 | V90: 0.3846405893 | W90: 0.0001479483829 | X90: 0.0001479483829 | Y90: 1.222036967 | Z90: 0.002986748698 | AA90: 0.002986748698 | AB90: 1.836557216 | AC90: 0.2192412564 | AD90: 0.009618617647 | AE90: 0.016759968 | AF90: 0 | AG90: 0.2506760265 | AH90: 1.637041837 | AI90: 0.1071962391 | AJ90: 0.00755244 | AK90: 0.1158916084 | AL90: 0.027216 | AM90: 0.00042 | AN90: 0.0394992 | AO90: 0.02913066 | AP90: 0.0197496 | AQ90: 0.0399192 | AR90: 1.738073398 | AS90: 1.904517303 | AT90: 1.904517303 | AU90: 14.58 | AV90: 0.8844662984 | AW90: 6.17868749 | AX90: 2.872076432 | AZ90: 88.44662984 | BA90: 1.463777164 | BB90: 0.3937836349 | BC90: 0.2686385865 | BD90: 0.1248728884 | BE90: 0.440740139
G91: 82 | H91: 12 | I91: 1 | J91: 2.46 | K91: 2.46 | L91: 1.366666667 | M91: 0.5579498115 | N91: 1.332130084 | O91: 3.126065042 | P91: 1.793934958 | Q91: 0 | R91: 2.489875676 | S91: 1.239896176 | T91: 0.1 | U91: 1.50078216 | V91: 0.3845528312 | W91: 0.00014788088 | X91: 0.00014788088 | Y91: 1.236548116 | Z91: 0.003058102486 | AA91: 0.003058102486 | AB91: 1.859838485 | AC91: 0.2248349473 | AD91: 0.009737366013 | AE91: 0.016759968 | AF91: 0 | AG91: 0.2566408498 | AH91: 1.65544003 | AI91: 0.1096192677 | AJ91: 0.00764568 | AK91: 0.1184596096 | AL91: 0.027552 | AM91: 0.00042 | AN91: 0.0394992 | AO91: 0.02913066 | AP91: 0.0197496 | AQ91: 0.0399192 | AR91: 1.775964605 | AS91: 1.950694289 | AT91: 1.950694289 | AU91: 14.76 | AV91: 0.883266712 | AW91: 6.320978906 | AX91: 2.9336907 | AZ91: 88.3266712 | BA91: 1.50078216 | BB91: 0.4026524594 | BC91: 0.2748251698 | BD91: 0.1275517696 | BE91: 0.4499121297
G92: 83 | H92: 12 | I92: 1 | J92: 2.49 | K92: 2.49 | L92: 1.383333333 | M92: 0.5586506992 | N92: 1.331820773 | O92: 3.155910386 | P92: 1.824089614 | Q92: 0 | R92: 2.519506343 | S92: 1.269582443 | T92: 0.1 | U92: 1.538455811 | V92: 0.3844635409 | W92: 0.0001478122143 | X92: 0.0001478122143 | Y92: 1.25105629 | Z92: 0.003130283683 | AA92: 0.003130283683 | AB92: 1.8831531 | AC92: 0.2305072638 | AD92: 0.009856114379 | AE92: 0.016759968 | AF92: 0 | AG92: 0.2626942153 | AH92: 1.673812002 | AI92: 0.1120658647 | AJ92: 0.00773892 | AK92: 0.1210528468 | AL92: 0.027888 | AM92: 0.00042 | AN92: 0.0394992 | AO92: 0.02913066 | AP92: 0.0197496 | AQ92: 0.0399192 | AR92: 1.814317774 | AS92: 1.997663878 | AT92: 1.997663878 | AU92: 14.94 | AV92: 0.8820578864 | AW92: 6.465306791 | AX92: 2.995885395 | AZ92: 88.20578864 | BA92: 1.538455811 | BB92: 0.411635062 | BC92: 0.2811002953 | BD92: 0.1302558868 | BE92: 0.4592080665
G93: 84 | H93: 12 | I93: 1 | J93: 2.52 | K93: 2.52 | L93: 1.4 | M93: 0.5593514478 | N93: 1.331506156 | O93: 3.185753078 | P93: 1.854246922 | Q93: 0 | R93: 2.549145423 | S93: 1.299628477 | T93: 0.1 | U93: 1.576807879 | V93: 0.3843727189 | W93: 0.000147742387 | X93: 0.000147742387 | Y93: 1.26556125 | Z93: 0.003203290554 | AA93: 0.003203290554 | AB93: 1.906500814 | AC93: 0.2362584479 | AD93: 0.009974862745 | AE93: 0.016759968 | AF93: 0 | AG93: 0.2688366522 | AH93: 1.692157509 | AI93: 0.1145358814 | AJ93: 0.00783216 | AK93: 0.1236712021 | AL93: 0.028224 | AM93: 0.00042 | AN93: 0.0394992 | AO93: 0.02913066 | AP93: 0.0197496 | AQ93: 0.0399192 | AR93: 1.853132997 | AS93: 2.045436487 | AT93: 2.045436487 | AU93: 15.12 | AV93: 0.8808398208 | AW93: 6.611683321 | AX93: 3.058657808 | AZ93: 88.08398208 | BA93: 1.576807879 | BB93: 0.4207318543 | BC93: 0.2874644922 | BD93: 0.1329851221 | BE93: 0.4686286078
G94: 85 | H94: 12 | I94: 1 | J94: 2.55 | K94: 2.55 | L94: 1.416666667 | M94: 0.5600520575 | N94: 1.331186235 | O94: 3.215593118 | P94: 1.884406882 | Q94: 0 | R94: 2.578792624 | S94: 1.33003428 | T94: 0.1 | U94: 1.615848383 | V94: 0.3842803657 | W94: 0.0001476713994 | X94: 0.0001476713994 | Y94: 1.280062761 | Z94: 0.003277121344 | AA94: 0.003277121344 | AB94: 1.929881389 | AC94: 0.2420887414 | AD94: 0.01009361111 | AE94: 0.016759968 | AF94: 0 | AG94: 0.2750686956 | AH94: 1.710476315 | AI94: 0.117029169 | AJ94: 0.0079254 | AK94: 0.1263145578 | AL94: 0.02856 | AM94: 0.00042 | AN94: 0.0394992 | AO94: 0.02913066 | AP94: 0.0197496 | AQ94: 0.0399192 | AR94: 1.892410369 | AS94: 2.094022804 | AT94: 2.094022804 | AU94: 15.3 | AV94: 0.8796125067 | AW94: 6.7601208 | AX94: 3.12200523 | AZ94: 87.96125067 | BA94: 1.615848383 | BB94: 0.4299432535 | BC94: 0.2939182956 | BD94: 0.1357393578 | BE94: 0.4781744214
G95: 86 | H95: 12 | I95: 1 | J95: 2.58 | K95: 2.58 | L95: 1.433333333 | M95: 0.5607525283 | N95: 1.330861012 | O95: 3.245430506 | P95: 1.914569494 | Q95: 0 | R95: 2.608447671 | S95: 1.360799851 | T95: 0.1 | U95: 1.655587605 | V95: 0.3841864816 | W95: 0.0001475992527 | X95: 0.0001475992527 | Y95: 1.294560597 | Z95: 0.003351774277 | AA95: 0.003351774277 | AB95: 1.953294597 | AC95: 0.2479983859 | AD95: 0.01021235948 | AE95: 0.016759968 | AF95: 0 | AG95: 0.2813908861 | AH95: 1.728768194 | AI95: 0.1195455788 | AJ95: 0.00801864 | AK95: 0.1289827965 | AL95: 0.028896 | AM95: 0.00042 | AN95: 0.0394992 | AO95: 0.02913066 | AP95: 0.0197496 | AQ95: 0.0399192 | AR95: 1.932149983 | AS95: 2.14343379 | AT95: 2.14343379 | AU95: 15.48 | AV95: 0.8783759275 | AW95: 6.910631659 | AX95: 3.18592496 | AZ95: 87.83759275 | BA95: 1.655587605 | BB95: 0.4392696826 | BC95: 0.3004622461 | BD95: 0.1385184765 | BE95: 0.4878461849
G96: 87 | H96: 12 | I96: 1 | J96: 2.61 | K96: 2.61 | L96: 1.45 | M96: 0.5614528601 | N96: 1.330530487 | O96: 3.275265243 | P96: 1.944734757 | Q96: 0 | R96: 2.638110299 | S96: 1.39192519 | T96: 0.1 | U96: 1.696036099 | V96: 0.3840910673 | W96: 0.000147525948 | X96: 0.000147525948 | Y96: 1.309054537 | Z96: 0.003427247559 | AA96: 0.003427247559 | AB96: 1.976740219 | AC96: 0.2539876231 | AD96: 0.01033110784 | AE96: 0.016759968 | AF96: 0 | AG96: 0.2878037697 | AH96: 1.747032929 | AI96: 0.1220849622 | AJ96: 0.00811188 | AK96: 0.1316758006 | AL96: 0.029232 | AM96: 0.00042 | AN96: 0.0394992 | AO96: 0.02913066 | AP96: 0.0197496 | AQ96: 0.0399192 | AR96: 1.972351931 | AS96: 2.193680685 | AT96: 2.193680685 | AU96: 15.66 | AV96: 0.8771300594 | AW96: 7.063228464 | AX96: 3.250414294 | AZ96: 87.71300594 | BA96: 1.696036099 | BB96: 0.4487115703 | BC96: 0.3070968897 | BD96: 0.1413223606 | BE96: 0.4976445858
G97: 88 | H97: 12 | I97: 1 | J97: 2.64 | K97: 2.64 | L97: 1.466666667 | M97: 0.5621530531 | N97: 1.330194662 | O97: 3.305097331 | P97: 1.974902669 | Q97: 0 | R97: 2.667780255 | S97: 1.423410297 | T97: 0.1 | U97: 1.7372047 | V97: 0.3839941231 | W97: 0.0001474514866 | X97: 0.0001474514866 | Y97: 1.323544365 | Z97: 0.003503539375 | AA97: 0.003503539375 | AB97: 2.000218044 | AC97: 0.2600566945 | AD97: 0.01044985621 | AE97: 0.016759968 | AF97: 0 | AG97: 0.2943078987 | AH97: 1.765270309 | AI97: 0.1246471706 | AJ97: 0.00820512 | AK97: 0.1343934528 | AL97: 0.029568 | AM97: 0.00042 | AN97: 0.0394992 | AO97: 0.02913066 | AP97: 0.0197496 | AQ97: 0.0399192 | AR97: 2.013016307 | AS97: 2.244775021 | AT97: 2.244775021 | AU97: 15.84 | AV97: 0.8758748716 | AW97: 7.21792391 | AX97: 3.315470535 | AZ97: 87.58748716 | BA97: 1.7372047 | BB97: 0.4582693515 | BC97: 0.3138227787 | BD97: 0.1441508928 | BE97: 0.5075703216
G98: 89 | H98: 12 | I98: 1 | J98: 2.67 | K98: 2.67 | L98: 1.483333333 | M98: 0.5628531073 | N98: 1.329853539 | O98: 3.33492677 | P98: 2.00507323 | Q98: 0 | R98: 2.697457297 | S98: 1.455255174 | T98: 0.1 | U98: 1.77910453 | V98: 0.3838956494 | W98: 0.0001473758697 | X98: 0.0001473758697 | Y98: 1.338029874 | Z98: 0.003580647889 | AA98: 0.003580647889 | AB98: 2.023727868 | AC98: 0.2662058414 | AD98: 0.01056860458 | AE98: 0.016759968 | AF98: 0 | AG98: 0.3009038309 | AH98: 1.783480133 | AI98: 0.1272320555 | AJ98: 0.00829836 | AK98: 0.137135636 | AL98: 0.029904 | AM98: 0.00042 | AN98: 0.0394992 | AO98: 0.02913066 | AP98: 0.0197496 | AQ98: 0.0399192 | AR98: 2.054143203 | AS98: 2.296728629 | AT98: 2.296728629 | AU98: 16.02 | AV98: 0.8746103261 | AW98: 7.37473083 | AX98: 3.381090987 | AZ98: 87.46103261 | BA98: 1.77910453 | BB98: 0.4679434668 | BC98: 0.3206404709 | BD98: 0.147003956 | BE98: 0.5176240997
G99: 90 | H99: 12 | I99: 1 | J99: 2.7 | K99: 2.7 | L99: 1.5 | M99: 0.5635530228 | N99: 1.32950712 | O99: 3.36475356 | P99: 2.03524644 | Q99: 0 | R99: 2.727141195 | S99: 1.48745982 | T99: 0.1 | U99: 1.821747007 | V99: 0.3837956468 | W99: 0.0001472990985 | X99: 0.0001472990985 | Y99: 1.352510859 | Z99: 0.003658571245 | AA99: 0.003658571245 | AB99: 2.047269496 | AC99: 0.2724353052 | AD99: 0.01068735294 | AE99: 0.016759968 | AF99: 0 | AG99: 0.3075921301 | AH99: 1.801662208 | AI99: 0.1298394684 | AJ99: 0.0083916 | AK99: 0.1399022329 | AL99: 0.03024 | AM99: 0.00042 | AN99: 0.0394992 | AO99: 0.02913066 | AP99: 0.0197496 | AQ99: 0.0399192 | AR99: 2.095732714 | AS99: 2.349553645 | AT99: 2.349553645 | AU99: 16.2 | AV99: 0.8733363783 | AW99: 7.533662193 | AX99: 3.447272957 | AZ99: 87.33363783 | BA99: 1.821747007 | BB99: 0.477734363 | BC99: 0.3275505301 | BD99: 0.1498814329 | BE99: 0.5278066378
G100: 91 | H100: 12 | I100: 1 | J100: 2.73 | K100: 2.73 | L100: 1.516666667 | M100: 0.5642527995 | N100: 1.329155406 | O100: 3.394577703 | P100: 2.065422297 | Q100: 0 | R100: 2.756831728 | S100: 1.520024235 | T100: 0.1 | U100: 1.865143857 | V100: 0.3836941157 | W100: 0.0001472211744 | X100: 0.0001472211744 | Y100: 1.366987119 | Z100: 0.003737307569 | AA100: 0.003737307569 | AB100: 2.070842739 | AC100: 0.2787453272 | AD100: 0.01080610131 | AE100: 0.016759968 | AF100: 0 | AG100: 0.3143733663 | AH100: 1.819816344 | AI100: 0.132469261 | AJ100: 0.00848484 | AK100: 0.1426931267 | AL100: 0.030576 | AM100: 0.00042 | AN100: 0.0394992 | AO100: 0.02913066 | AP100: 0.0197496 | AQ100: 0.0399192 | AR100: 2.137784932 | AS100: 2.403262521 | AT100: 2.403262521 | AU100: 16.38 | AV100: 0.8720529771 | AW100: 7.694731106 | AX100: 3.514013754 | AZ100: 87.20529771 | BA100: 1.865143857 | BB100: 0.487642493 | BC100: 0.3345535263 | BD100: 0.1527832067 | BE100: 0.538118664
G101: 92 | H101: 12 | I101: 1 | J101: 2.76 | K101: 2.76 | L101: 1.533333333 | M101: 0.5649524376 | N101: 1.328798398 | O101: 3.424399199 | P101: 2.095600801 | Q101: 0 | R101: 2.786528683 | S101: 1.55294842 | T101: 0.1 | U101: 1.909307115 | V101: 0.3835910565 | W101: 0.0001471420987 | X101: 0.0001471420987 | Y101: 1.381458462 | Z101: 0.003816854964 | AA101: 0.003816854964 | AB101: 2.094447415 | AC101: 0.2851361484 | AD101: 0.01092484967 | AE101: 0.016759968 | AF101: 0 | AG101: 0.3212481155 | AH101: 1.837942361 | AI101: 0.1351212849 | AJ101: 0.00857808 | AK101: 0.1455082004 | AL101: 0.030912 | AM101: 0.00042 | AN101: 0.0394992 | AO101: 0.02913066 | AP101: 0.0197496 | AQ101: 0.0399192 | AR101: 2.180299951 | AS101: 2.457868032 | AT101: 2.457868032 | AU101: 16.56 | AV101: 0.8707600648 | AW101: 7.857950817 | AX101: 3.581310689 | AZ101: 87.07600648 | BA101: 1.909307115 | BB101: 0.4976683159 | BC101: 0.3416500355 | BD101: 0.1557091604 | BE101: 0.5485609169
G102: 93 | H102: 12 | I102: 1 | J102: 2.79 | K102: 2.79 | L102: 1.55 | M102: 0.565651937 | N102: 1.328436099 | O102: 3.45421805 | P102: 2.12578195 | Q102: 0 | R102: 2.816231857 | S102: 1.586232374 | T102: 0.1 | U102: 1.954249146 | V102: 0.3834864697 | W102: 0.0001470618725 | X102: 0.0001470618725 | Y102: 1.395924696 | Z102: 0.003897211516 | AA102: 0.003897211516 | AB102: 2.11808335 | AC102: 0.2916080099 | AD102: 0.01104359804 | AE102: 0.016759968 | AF102: 0 | AG102: 0.3282169599 | AH102: 1.856040085 | AI102: 0.1377953919 | AJ102: 0.00867132 | AK102: 0.1483473372 | AL102: 0.031248 | AM102: 0.00042 | AN102: 0.0394992 | AO102: 0.02913066 | AP102: 0.0197496 | AQ102: 0.0399192 | AR102: 2.223277862 | AS102: 2.513383291 | AT102: 2.513383291 | AU102: 16.74 | AV102: 0.8694575777 | AW102: 8.023334717 | AX102: 3.649161075 | AZ102: 86.94575777 | BA102: 1.954249146 | BB102: 0.507812297 | BC102: 0.3488406399 | BD102: 0.1586591772 | BE102: 0.5591341454
G103: 94 | H103: 12 | I103: 1 | J103: 2.82 | K103: 2.82 | L103: 1.566666667 | M103: 0.5663512978 | N103: 1.32806851 | O103: 3.484034255 | P103: 2.155965745 | Q103: 0 | R103: 2.845941057 | S103: 1.619876099 | T103: 0.1 | U103: 1.999982644 | V103: 0.3833803558 | W103: 0.0001469804972 | X103: 0.0001469804972 | Y103: 1.410385637 | Z103: 0.003978375289 | AA103: 0.003978375289 | AB103: 2.141750372 | AC103: 0.2981611526 | AD103: 0.01116234641 | AE103: 0.016759968 | AF103: 0 | AG103: 0.3352804878 | AH103: 1.874109346 | AI103: 0.1404914336 | AJ103: 0.00876456 | AK103: 0.1512104204 | AL103: 0.031584 | AM103: 0.00042 | AN103: 0.0394992 | AO103: 0.02913066 | AP103: 0.0197496 | AQ103: 0.0399192 | AR103: 2.26671876 | AS103: 2.569821753 | AT103: 2.569821753 | AU103: 16.92 | AV103: 0.8681454461 | AW103: 8.190896339 | AX103: 3.717562229 | AZ103: 86.81454461 | BA103: 1.999982644 | BB103: 0.5180749082 | BC103: 0.3561259278 | BD103: 0.1616331404 | BE103: 0.5698391094
G104: 95 | H104: 12 | I104: 1 | J104: 2.85 | K104: 2.85 | L104: 1.583333333 | M104: 0.5670505201 | N104: 1.327695632 | O104: 3.513847816 | P104: 2.186152184 | Q104: 0 | R104: 2.875656095 | S104: 1.653879595 | T104: 0.1 | U104: 2.046520648 | V104: 0.3832727152 | W104: 0.0001468979742 | X104: 0.0001468979742 | Y104: 1.424841101 | Z104: 0.004060344327 | AA104: 0.004060344327 | AB104: 2.165448319 | AC104: 0.3047958174 | AD104: 0.01128109477 | AE104: 0.016759968 | AF104: 0 | AG104: 0.3424392941 | AH104: 1.892149981 | AI104: 0.1432092621 | AJ104: 0.0088578 | AK104: 0.1540973333 | AL104: 0.03192 | AM104: 0.00042 | AN104: 0.0394992 | AO104: 0.02913066 | AP104: 0.0197496 | AQ104: 0.0399192 | AR104: 2.310622737 | AS104: 2.627197227 | AT104: 2.627197227 | AU104: 17.1 | AV104: 0.866823594 | AW104: 8.360649365 | AX104: 3.786511466 | AZ104: 86.6823594 | BA104: 2.046520648 | BB104: 0.5284566274 | BC104: 0.3635064941 | BD104: 0.1646309333 | BE104: 0.5806765795
G105: 96 | H105: 12 | I105: 1 | J105: 2.88 | K105: 2.88 | L105: =Vout*K105/(Vin*Efficiency) -> 1.6 | M105: 0.5677496038 | N105: =(Vin-(Rdson1+Rdcr)*K105-Vout)*M105/(Fsw*Lf) -> 1.327317467 | O105: 3.543658733 | P105: 2.216341267 | Q105: =IF(MIN(Vin, -P105/(Coss_Q1+Coss_Q2)*0.00000002)<0, 0, MIN(Vin, -P105/(Coss_Q1+Coss_Q2)*0.00000002)) -> 0 | R105: 2.905376792 | S105: =R105^2*Rdcr -> 1.688242861 | T105: 0.1 | U105: =(T105+S105*(1+Ltc*(Ta-25)))/(1-S105*Ltc*ThetaCa) -> 2.093876552 | V105: 0.3831635483 | W105: 0.0001468143048 | X105: 0.0001468143048 | Y105: 1.439290912 | Z105: 0.004143116656 | AA105: 0.004143116656 | AB105: 2.189177032 | AC105: =Rdson1*AB105^2 -> 0.311512245 | AD105: 0.01139984314 | AE105: 0.016759968 | AF105: 0 | AG105: =(AF105+AE105+AD105+AC105*(1+RdsonTopTc*Ta-RdsonTopTc*25))/(1-AC105*RdsonTopTc*ThetaJA_Q1) -> 0.3496939802 | AH105: 1.910161833 | AI105: =Rdson2*AH105^2 -> 0.1459487291 | AJ105: 0.00895104 | AK105: =(AJ105+AI105*(1+RdsonBotTc*Ta-RdsonBotTc*25))/(1-AI105*RdsonBotTc*ThetaJA_Q2) -> 0.1570079594 | AL105: 0.032256 | AM105: 0.00042 | AN105: 0.0394992 | AO105: 0.02913066 | AP105: 0.0197496 | AQ105: 0.0399192 | AR105: 2.354989886 | AS105: 2.68552389 | AT105: 2.68552389 | AU105: 17.28 | AV105: 0.8654919398 | AW105: 8.532607624 | AX105: 3.856006107 | AZ105: 86.54919398 | BA105: 2.093876552 | BB105: 0.5389579396 | BC105: 0.3709829402 | BD105: 0.1676524394 | BE105: 0.5916473375
G106: 97 | H106: 12 | I106: 1 | J106: 2.91 | K106: 2.91 | L106: 1.616666667 | M106: 0.5684485491 | N106: 1.326934016 | O106: 3.573467008 | P106: 2.246532992 | Q106: 0 | R106: 2.935102978 | S106: 1.722965898 | T106: 0.1 | U106: 2.142064116 | V106: 0.3830528557 | W106: 0.0001467294902 | X106: 0.0001467294902 | Y106: 1.453734893 | Z106: 0.00422669028 | AA106: 0.00422669028 | AB106: 2.212936358 | AC106: 0.3183106761 | AD106: 0.0115185915 | AE106: 0.016759968 | AF106: 0 | AG106: 0.3570451537 | AH106: 1.928144747 | AI106: 0.1487096866 | AJ106: 0.00904428 | AK106: 0.1599421822 | AL106: 0.032592 | AM106: 0.00042 | AN106: 0.0394992 | AO106: 0.02913066 | AP106: 0.0197496 | AQ106: 0.0399192 | AR106: 2.3998203 | AS106: 2.744816292 | AT106: 2.744816292 | AU106: 17.46 | AV106: 0.864150396 | AW106: 8.706785096 | AX106: 3.926043471 | AZ106: 86.4150396 | BA106: 2.142064116 | BB106: 0.5495793359 | BC106: 0.3785558737 | BD106: 0.1706975422 | BE106: 0.6027521759
G107: 98 | H107: 12 | I107: 1 | J107: 2.94 | K107: 2.94 | L107: 1.633333333 | M107: 0.5691473559 | N107: 1.326545281 | O107: 3.603272641 | P107: 2.276727359 | Q107: 0 | R107: 2.964834486 | S107: 1.758048706 | T107: 0.1 | U107: 2.191097475 | V107: 0.3829406377 | W107: 0.000146643532 | X107: 0.000146643532 | Y107: 1.468172875 | Z107: 0.004311063184 | AA107: 0.004311063184 | AB107: 2.236726149 | AC107: 0.3251913512 | AD107: 0.01163733987 | AE107: 0.016759968 | AF107: 0 | AG107: 0.3644934292 | AH107: 1.946098576 | AI107: 0.1514919867 | AJ107: 0.00913752 | AK107: 0.1628998852 | AL107: 0.032928 | AM107: 0.00042 | AN107: 0.0394992 | AO107: 0.02913066 | AP107: 0.0197496 | AQ107: 0.0399192 | AR107: 2.445114072 | AS107: 2.805089374 | AT107: 2.805089374 | AU107: 17.64 | AV107: 0.8627988696 | AW107: 8.883195912 | AX107: 3.99662088 | AZ107: 86.27988696 | BA107: 2.191097475 | BB107: 0.5603213144 | BC107: 0.3862259092 | BD107: 0.1737661252 | BE107: 0.6139918989
G108: 99 | H108: 12 | I108: 1 | J108: 2.97 | K108: 2.97 | L108: 1.65 | M108: 0.5698460244 | N108: 1.326151265 | O108: 3.633075632 | P108: 2.306924368 | Q108: 0 | R108: 2.99457116 | S108: 1.793491286 | T108: 0.1 | U108: 2.240991155 | V108: 0.3828268948 | W108: 0.0001465564314 | X108: 0.0001465564314 | Y108: 1.48260469 | Z108: 0.004396233333 | AA108: 0.004396233333 | AB108: 2.260546261 | AC108: 0.3321545107 | AD108: 0.01175608824 | AE108: 0.016759968 | AF108: 0 | AG108: 0.3720394278 | AH108: 1.964023176 | AI108: 0.1542954814 | AJ108: 0.00923076 | AK108: 0.1658809521 | AL108: 0.033264 | AM108: 0.00042 | AN108: 0.0394992 | AO108: 0.02913066 | AP108: 0.0197496 | AQ108: 0.0399192 | AR108: 2.490871295 | AS108: 2.866358477 | AT108: 2.866358477 | AU108: 17.82 | AV108: 0.8614372617 | AW108: 9.061854359 | AX108: 4.067735658 | AZ108: 86.14372617 | BA108: 2.240991155 | BB108: 0.5711843799 | BC108: 0.3939936678 | BD108: 0.1768580721 | BE108: 0.6253673218
G109: 100 | H109: 12 | I109: 1 | J109: 3 | K109: 3 | L109: 1.666666667 | M109: 0.5705445545 | N109: 1.325751967 | O109: 3.662875983 | P109: 2.337124017 | Q109: 0 | R109: 3.024312846 | S109: 1.829293638 | T109: 0.1 | U109: 2.291760081 | V109: 0.3827116275 | W109: 0.0001464681898 | X109: 0.0001464681898 | Y109: 1.497030172 | Z109: 0.004482198672 | AA109: 0.004482198672 | AB109: 2.284396554 | AC109: 0.3392003952 | AD109: 0.0118748366 | AE109: 0.016759968 | AF109: 0 | AG109: 0.3796837774 | AH109: 1.981918407 | AI109: 0.1571200229 | AJ109: 0.009324 | AK109: 0.1688852665 | AL109: 0.0336 | AM109: 0.00042 | AN109: 0.0394992 | AO109: 0.02913066 | AP109: 0.0197496 | AQ109: 0.0399192 | AR109: 2.537092061 | AS109: 2.928639352 | AT109: 2.928639352 | AU109: 18 | AV109: 0.860065468 | AW109: 9.242774881 | AX109: 4.13938513 | AZ109: 86.0065468 | BA109: 2.291760081 | BB109: 0.5821690439 | BC109: 0.4018597774 | BD109: 0.1799732665 | BE109: 0.6368792718

Sheet Efficiency Plot Management (hidden)
A2: ="EFF_Ch1" -> EFF_Ch1
A3: ="EFF_Ch2" -> EFF_Ch2

Sheet Standard Value Calculator (hidden)
A2: Capacitors | B2: Css | C2: Cc1ea | D2: Cc2ea | E2: Cout | F2: Cin | G2: Cres | H2: Cdither | I2: Cc3ea | J2: Cc4ea
A3: Inputs | B3: =Css ->  | C3: =Cc1ea ->  | D3: =Cc2ea ->  | E3: =Cout -> 3.52e-05 | F3: =Cin -> 2e-05 | G3: =Cres ->  | H3: =Cdither_init ->  | I3: =Cc3ea ->  | J3: =Cc4ea ->  | M3: Resistors | N3: inputs | O3: Standard Result
A4: Standard Result | B4: =SUM(B6:B158)/1000000000000 ->  | C4: =IF(C3="OPEN","OPEN",SUM(C6:C158)/1000000000000) ->  | D4: =SUM(D6:D158)/1000000000000 ->  | E4: =SUM(E6:E158)/1000000000000 -> 3.3e-05 | F4: =SUM(F6:F158)/1000000000000 -> 2.2e-05 | G4: =SUM(G6:G158)/1000000000000 ->  | H4: =IF(H3="OPEN","OPEN",SUM(H6:H158)/1000000000000) ->  | M4: Rt | N4: =Rfadj -> 86.6 | O4: =IF(N4>(INT(0.5+100*POWER(10,IF(96*(LOG(N4)-INT(LOG(N4)))-ROUND(96*(LOG(N4)-INT(LOG(N4))),0)<0,ROUND(96*(LOG(N4)-INT(LOG(N4))),0)-1,ROUND(96*(LOG(N4)-INT(LOG(N4))),0))/96))*POWER(10,INT(LOG(N4))-2)+INT(0.5+100*POWER(10,(IF(96*(LOG(N4)-INT(LOG(N4)))-ROUND(96*(LOG(N4)-INT(LOG(N4))),0)<0,ROUND(96*(LOG(N4)-INT(LOG(N4))),0)-1,ROUND(96*(LOG(N4)-INT(LOG(N4))),0))+1)/96))*POWER(10,INT(LOG(N4))-2))/2,INT(0.5+100*POWER(10,(IF(96*(LOG(N4)-INT(LOG(N4)))-ROUND(96*(LOG(N4)-INT(LOG(N4))),0)<0,ROUND(96*(LOG(N4)-INT(LOG(N4))),0)-1,ROUND(96*(LOG(N4)-INT(LOG(N4))),0))+1)/96))*POWER(10,INT(LOG(N4))-2),INT(0.5+100*POWER(10,IF(96*(LOG(N4)-INT(LOG(N4)))-ROUND(96*(LOG(N4)-INT(LOG(N4))),0)<0,ROUND(96*(LOG(N4)-INT(LOG(N4))),0)-1,ROUND(96*(LOG(N4)-INT(LOG(N4))),0))/96))*POWER(10,INT(LOG(N4))-2)) -> 86.6 | P4: Ω
A5: (pF)
A6: 0.47 | B6: =IF(IF((B$3*10^12-$A7)*(B$3*10^12-$A6)*-1<0,0,1)*IF(ABS(B$3*10^12-$A7)>(B$3*10^12-$A6),$A6,$A7)=B7,0,IF((B$3*10^12-$A7)*(B$3*10^12-$A6)*-1<0,0,1)*IF(ABS(B$3*10^12-$A7)>(B$3*10^12-$A6),$A6,$A7)) ->  | E6: 0 | F6: 0
A7: 0.56 | B7: =IF(IF((B$3*10^12-$A8)*(B$3*10^12-$A7)*-1<0,0,1)*IF(ABS(B$3*10^12-$A8)>(B$3*10^12-$A7),$A7,$A8)=B8,0,IF((B$3*10^12-$A8)*(B$3*10^12-$A7)*-1<0,0,1)*IF(ABS(B$3*10^12-$A8)>(B$3*10^12-$A7),$A7,$A8)) ->  | C7: =IF(IF((C$3*10^12-$A8)*(C$3*10^12-$A7)*-1<0,0,1)*IF(ABS(C$3*10^12-$A8)>(C$3*10^12-$A7),$A7,$A8)=C8,0,IF((C$3*10^12-$A8)*(C$3*10^12-$A7)*-1<0,0,1)*IF(ABS(C$3*10^12-$A8)>(C$3*10^12-$A7),$A7,$A8)) ->  | D7: =IF(IF((D$3*10^12-$A8)*(D$3*10^12-$A7)*-1<0,0,1)*IF(ABS(D$3*10^12-$A8)>(D$3*10^12-$A7),$A7,$A8)=D8,0,IF((D$3*10^12-$A8)*(D$3*10^12-$A7)*-1<0,0,1)*IF(ABS(D$3*10^12-$A8)>(D$3*10^12-$A7),$A7,$A8)) ->  | E7: =IF(IF((E$3*10^12-$A8)*(E$3*10^12-$A7)*-1<0,0,1)*IF(ABS(E$3*10^12-$A8)>(E$3*10^12-$A7),$A7,$A8)=E8,0,IF((E$3*10^12-$A8)*(E$3*10^12-$A7)*-1<0,0,1)*IF(ABS(E$3*10^12-$A8)>(E$3*10^12-$A7),$A7,$A8)) -> 0 | F7: =IF(IF((F$3*10^12-$A8)*(F$3*10^12-$A7)*-1<0,0,1)*IF(ABS(F$3*10^12-$A8)>(F$3*10^12-$A7),$A7,$A8)=F8,0,IF((F$3*10^12-$A8)*(F$3*10^12-$A7)*-1<0,0,1)*IF(ABS(F$3*10^12-$A8)>(F$3*10^12-$A7),$A7,$A8)) -> 0 | G7: =IF(IF((G$3*10^12-$A8)*(G$3*10^12-$A7)*-1<0,0,1)*IF(ABS(G$3*10^12-$A8)>(G$3*10^12-$A7),$A7,$A8)=G8,0,IF((G$3*10^12-$A8)*(G$3*10^12-$A7)*-1<0,0,1)*IF(ABS(G$3*10^12-$A8)>(G$3*10^12-$A7),$A7,$A8)) ->  | M7: Renb | N7: =Renb -> 98804.20206 | O7: 100000 | P7: Ω
A8: 0.68 | E8: 0 | F8: 0 | M8: Rc1ea | N8: =Rcea2 ->  | O8: =IF(N8>(INT(0.5+100*POWER(10,IF(96*(LOG(N8)-INT(LOG(N8)))-ROUND(96*(LOG(N8)-INT(LOG(N8))),0)<0,ROUND(96*(LOG(N8)-INT(LOG(N8))),0)-1,ROUND(96*(LOG(N8)-INT(LOG(N8))),0))/96))*POWER(10,INT(LOG(N8))-2)+INT(0.5+100*POWER(10,(IF(96*(LOG(N8)-INT(LOG(N8)))-ROUND(96*(LOG(N8)-INT(LOG(N8))),0)<0,ROUND(96*(LOG(N8)-INT(LOG(N8))),0)-1,ROUND(96*(LOG(N8)-INT(LOG(N8))),0))+1)/96))*POWER(10,INT(LOG(N8))-2))/2,INT(0.5+100*POWER(10,(IF(96*(LOG(N8)-INT(LOG(N8)))-ROUND(96*(LOG(N8)-INT(LOG(N8))),0)<0,ROUND(96*(LOG(N8)-INT(LOG(N8))),0)-1,ROUND(96*(LOG(N8)-INT(LOG(N8))),0))+1)/96))*POWER(10,INT(LOG(N8))-2),INT(0.5+100*POWER(10,IF(96*(LOG(N8)-INT(LOG(N8)))-ROUND(96*(LOG(N8)-INT(LOG(N8))),0)<0,ROUND(96*(LOG(N8)-INT(LOG(N8))),0)-1,ROUND(96*(LOG(N8)-INT(LOG(N8))),0))/96))*POWER(10,INT(LOG(N8))-2)) ->  | P8: Ω
A9: 0.82 | E9: 0 | F9: 0
A10: 1 | E10: 0 | F10: 0 | M10: Rfb1 | N10: =Rfb1_ -> 100000 | O10: =IF(N10>(INT(0.5+100*POWER(10,IF(96*(LOG(N10)-INT(LOG(N10)))-ROUND(96*(LOG(N10)-INT(LOG(N10))),0)<0,ROUND(96*(LOG(N10)-INT(LOG(N10))),0)-1,ROUND(96*(LOG(N10)-INT(LOG(N10))),0))/96))*POWER(10,INT(LOG(N10))-2)+INT(0.5+100*POWER(10,(IF(96*(LOG(N10)-INT(LOG(N10)))-ROUND(96*(LOG(N10)-INT(LOG(N10))),0)<0,ROUND(96*(LOG(N10)-INT(LOG(N10))),0)-1,ROUND(96*(LOG(N10)-INT(LOG(N10))),0))+1)/96))*POWER(10,INT(LOG(N10))-2))/2,INT(0.5+100*POWER(10,(IF(96*(LOG(N10)-INT(LOG(N10)))-ROUND(96*(LOG(N10)-INT(LOG(N10))),0)<0,ROUND(96*(LOG(N10)-INT(LOG(N10))),0)-1,ROUND(96*(LOG(N10)-INT(LOG(N10))),0))+1)/96))*POWER(10,INT(LOG(N10))-2),INT(0.5+100*POWER(10,IF(96*(LOG(N10)-INT(LOG(N10)))-ROUND(96*(LOG(N10)-INT(LOG(N10))),0)<0,ROUND(96*(LOG(N10)-INT(LOG(N10))),0)-1,ROUND(96*(LOG(N10)-INT(LOG(N10))),0))/96))*POWER(10,INT(LOG(N10))-2)) -> 100000 | P10: Ω
A11: 1.2 | E11: 0 | F11: 0 | M11: Rfb2 | N11: =Rfb2_ -> 20000 | O11: =IF(N11="OPEN","OPEN",IF(N11>(INT(0.5+100*POWER(10,IF(96*(LOG(N11)-INT(LOG(N11)))-ROUND(96*(LOG(N11)-INT(LOG(N11))),0)<0,ROUND(96*(LOG(N11)-INT(LOG(N11))),0)-1,ROUND(96*(LOG(N11)-INT(LOG(N11))),0))/96))*POWER(10,INT(LOG(N11))-2)+INT(0.5+100*POWER(10,(IF(96*(LOG(N11)-INT(LOG(N11)))-ROUND(96*(LOG(N11)-INT(LOG(N11))),0)<0,ROUND(96*(LOG(N11)-INT(LOG(N11))),0)-1,ROUND(96*(LOG(N11)-INT(LOG(N11))),0))+1)/96))*POWER(10,INT(LOG(N11))-2))/2,INT(0.5+100*POWER(10,(IF(96*(LOG(N11)-INT(LOG(N11)))-ROUND(96*(LOG(N11)-INT(LOG(N11))),0)<0,ROUND(96*(LOG(N11)-INT(LOG(N11))),0)-1,ROUND(96*(LOG(N11)-INT(LOG(N11))),0))+1)/96))*POWER(10,INT(LOG(N11))-2),INT(0.5+100*POWER(10,IF(96*(LOG(N11)-INT(LOG(N11)))-ROUND(96*(LOG(N11)-INT(LOG(N11))),0)<0,ROUND(96*(LOG(N11)-INT(LOG(N11))),0)-1,ROUND(96*(LOG(N11)-INT(LOG(N11))),0))/96))*POWER(10,INT(LOG(N11))-2))) -> 20000 | P11: Ω
A12: 1.5 | E12: 0 | F12: 0 | M12: Rt1 | N12: ='Variable Management'!B38*1000 -> 87433.62832 | O12: =IF(N12>(INT(0.5+100*POWER(10,IF(96*(LOG(N12)-INT(LOG(N12)))-ROUND(96*(LOG(N12)-INT(LOG(N12))),0)<0,ROUND(96*(LOG(N12)-INT(LOG(N12))),0)-1,ROUND(96*(LOG(N12)-INT(LOG(N12))),0))/96))*POWER(10,INT(LOG(N12))-2)+INT(0.5+100*POWER(10,(IF(96*(LOG(N12)-INT(LOG(N12)))-ROUND(96*(LOG(N12)-INT(LOG(N12))),0)<0,ROUND(96*(LOG(N12)-INT(LOG(N12))),0)-1,ROUND(96*(LOG(N12)-INT(LOG(N12))),0))+1)/96))*POWER(10,INT(LOG(N12))-2))/2,INT(0.5+100*POWER(10,(IF(96*(LOG(N12)-INT(LOG(N12)))-ROUND(96*(LOG(N12)-INT(LOG(N12))),0)<0,ROUND(96*(LOG(N12)-INT(LOG(N12))),0)-1,ROUND(96*(LOG(N12)-INT(LOG(N12))),0))+1)/96))*POWER(10,INT(LOG(N12))-2),INT(0.5+100*POWER(10,IF(96*(LOG(N12)-INT(LOG(N12)))-ROUND(96*(LOG(N12)-INT(LOG(N12))),0)<0,ROUND(96*(LOG(N12)-INT(LOG(N12))),0)-1,ROUND(96*(LOG(N12)-INT(LOG(N12))),0))/96))*POWER(10,INT(LOG(N12))-2)) -> 86600 | P12: Ω
A13: 1.8 | E13: 0 | F13: 0 | M13: Rt2 | N13: ='Variable Management'!#REF!*1000 ->  | O13: =IF(N13="OPEN","OPEN",IF(N13>(INT(0.5+100*POWER(10,IF(96*(LOG(N13)-INT(LOG(N13)))-ROUND(96*(LOG(N13)-INT(LOG(N13))),0)<0,ROUND(96*(LOG(N13)-INT(LOG(N13))),0)-1,ROUND(96*(LOG(N13)-INT(LOG(N13))),0))/96))*POWER(10,INT(LOG(N13))-2)+INT(0.5+100*POWER(10,(IF(96*(LOG(N13)-INT(LOG(N13)))-ROUND(96*(LOG(N13)-INT(LOG(N13))),0)<0,ROUND(96*(LOG(N13)-INT(LOG(N13))),0)-1,ROUND(96*(LOG(N13)-INT(LOG(N13))),0))+1)/96))*POWER(10,INT(LOG(N13))-2))/2,INT(0.5+100*POWER(10,(IF(96*(LOG(N13)-INT(LOG(N13)))-ROUND(96*(LOG(N13)-INT(LOG(N13))),0)<0,ROUND(96*(LOG(N13)-INT(LOG(N13))),0)-1,ROUND(96*(LOG(N13)-INT(LOG(N13))),0))+1)/96))*POWER(10,INT(LOG(N13))-2),INT(0.5+100*POWER(10,IF(96*(LOG(N13)-INT(LOG(N13)))-ROUND(96*(LOG(N13)-INT(LOG(N13))),0)<0,ROUND(96*(LOG(N13)-INT(LOG(N13))),0)-1,ROUND(96*(LOG(N13)-INT(LOG(N13))),0))/96))*POWER(10,INT(LOG(N13))-2))) ->  | P13: Ω
A14: 2.2 | B14: =IF(IF((B$3*10^12-$A15)*(B$3*10^12-$A14)*-1<0,0,1)*IF(ABS(B$3*10^12-$A15)>(B$3*10^12-$A14),$A14,$A15)=B15,0,IF((B$3*10^12-$A15)*(B$3*10^12-$A14)*-1<0,0,1)*IF(ABS(B$3*10^12-$A15)>(B$3*10^12-$A14),$A14,$A15)) ->  | E14: 0 | F14: 0
A15: 2.7 | E15: 0 | F15: 0
A16: 3.3 | E16: 0 | F16: 0 | M16: Rs | N16: =Rs_ideal*1000 ->  | O16: =IF(N16=0,0,IF(N16>(INT(0.5+100*POWER(10,IF(96*(LOG(N16)-INT(LOG(N16)))-ROUND(96*(LOG(N16)-INT(LOG(N16))),0)<0,ROUND(96*(LOG(N16)-INT(LOG(N16))),0)-1,ROUND(96*(LOG(N16)-INT(LOG(N16))),0))/96))*POWER(10,INT(LOG(N16))-2)+INT(0.5+100*POWER(10,(IF(96*(LOG(N16)-INT(LOG(N16)))-ROUND(96*(LOG(N16)-INT(LOG(N16))),0)<0,ROUND(96*(LOG(N16)-INT(LOG(N16))),0)-1,ROUND(96*(LOG(N16)-INT(LOG(N16))),0))+1)/96))*POWER(10,INT(LOG(N16))-2))/2,INT(0.5+100*POWER(10,(IF(96*(LOG(N16)-INT(LOG(N16)))-ROUND(96*(LOG(N16)-INT(LOG(N16))),0)<0,ROUND(96*(LOG(N16)-INT(LOG(N16))),0)-1,ROUND(96*(LOG(N16)-INT(LOG(N16))),0))+1)/96))*POWER(10,INT(LOG(N16))-2),INT(0.5+100*POWER(10,IF(96*(LOG(N16)-INT(LOG(N16)))-ROUND(96*(LOG(N16)-INT(LOG(N16))),0)<0,ROUND(96*(LOG(N16)-INT(LOG(N16))),0)-1,ROUND(96*(LOG(N16)-INT(LOG(N16))),0))/96))*POWER(10,INT(LOG(N16))-2))) ->  | P16: mΩ
A17: 3.9 | E17: 0 | F17: 0 | M17: Cres | N17: =Cres ->  | O17: =G4*1000000000000 ->  | P17: pF
A18: 4.7 | E18: 0 | F18: 0
A19: 5.6 | E19: 0 | F19: 0
A20: 6.8 | E20: 0 | F20: 0
A21: 8.2 | E21: 0 | F21: 0
A22: 10 | E22: 0 | F22: 0 | M22: Cdither | N22: =Cdither_init ->  | O22: =H4 -> 
A23: 12 | E23: 0 | F23: 0
A24: 15 | E24: 0 | F24: 0
A25: 18 | E25: 0 | F25: 0
A26: 22 | E26: 0 | F26: 0
A27: 27 | E27: 0 | F27: 0
A28: 33 | E28: 0 | F28: 0
A29: 39 | E29: 0 | F29: 0
A30: 47 | E30: 0 | F30: 0 | M30: Rc1 | N30: =O7/1000&" kΩ" -> 100 kΩ | O30: =O7/1000 -> 100 | P30: kΩ
A31: 56 | E31: 0 | F31: 0 | M31: Cc1 | N31: =C4*1000000000&" nF" ->  | O31: =C4*1000000000 ->  | P31: nF
A32: 68 | E32: 0 | F32: 0 | M32: Cc2 | N32: =D4*1000000000000&" pF" ->  | O32: =D4*1000000000000 ->  | P32: pF
A33: 82 | E33: 0 | F33: 0
A34: =A22*10 -> 100 | E34: 0 | F34: 0 | M34: Rc2 | N34: =O8/1000&" kΩ" ->  | O34: =O8/1000 ->  | P34: kΩ
A35: =A23*10 -> 120 | E35: 0 | F35: 0 | M35: Cc3 | N35: =I4*1000000000&" nF" ->  | O35: =I4*1000000000 ->  | P35: nF
A36: 150 | E36: 0 | F36: 0 | M36: Cc4 | N36: =J4*1000000000000&" pF" ->  | O36: =J4*1000000000000 ->  | P36: pF
A37: 180 | E37: 0 | F37: 0
A38: 220 | E38: 0 | F38: 0
A39: 270 | C39: =IF(IF((C$3*10^12-$A40)*(C$3*10^12-$A39)*-1<0,0,1)*IF(ABS(C$3*10^12-$A40)>(C$3*10^12-$A39),$A39,$A40)=C40,0,IF((C$3*10^12-$A40)*(C$3*10^12-$A39)*-1<0,0,1)*IF(ABS(C$3*10^12-$A40)>(C$3*10^12-$A39),$A39,$A40)) ->  | E39: 0 | F39: 0
A40: 330 | E40: 0 | F40: 0
A41: 390 | E41: 0 | F41: 0
A42: 470 | E42: 0 | F42: 0
A43: 560 | E43: 0 | F43: 0
A44: 680 | E44: 0 | F44: 0
A45: =A33*10 -> 820 | E45: 0 | F45: 0
A46: 1000 | E46: 0 | F46: 0
A47: 1200 | E47: 0 | F47: 0
A48: 1500 | E48: 0 | F48: 0
A49: 1800 | E49: 0 | F49: 0
A50: 2200 | E50: 0 | F50: 0
A51: 2700 | E51: 0 | F51: 0
A52: 3300 | E52: 0 | F52: 0
A53: 3900 | E53: 0 | F53: 0
A54: 4700 | E54: 0 | F54: 0
A55: 5600 | E55: 0 | F55: 0
A56: 6800 | E56: 0 | F56: 0
A57: 8200 | E57: 0 | F57: 0
A58: 10000 | E58: 0 | F58: 0
A59: 12000 | E59: 0 | F59: 0
A60: 15000 | E60: 0 | F60: 0
A61: 18000 | E61: 0 | F61: 0
A62: 22000 | E62: 0 | F62: 0
A63: 27000 | E63: 0 | F63: 0
A64: 33000 | E64: 0 | F64: 0
A65: 39000 | E65: 0 | F65: 0
A66: 47000 | E66: 0 | F66: 0
A67: 56000 | E67: 0 | F67: 0
A68: 68000 | E68: 0 | F68: 0
A69: 82000 | E69: 0 | F69: 0 | J69: =IF(IF((J$3*10^12-$A70)*(J$3*10^12-$A69)*-1<0,0,1)*IF(ABS(J$3*10^12-$A70)>(J$3*10^12-$A69),$A69,$A70)=J70,0,IF((J$3*10^12-$A70)*(J$3*10^12-$A69)*-1<0,0,1)*IF(ABS(J$3*10^12-$A70)>(J$3*10^12-$A69),$A69,$A70)) -> 
A70: 100000 | D70: =IF(IF((D$3*10^12-$A71)*(D$3*10^12-$A70)*-1<0,0,1)*IF(ABS(D$3*10^12-$A71)>(D$3*10^12-$A70),$A70,$A71)=D71,0,IF((D$3*10^12-$A71)*(D$3*10^12-$A70)*-1<0,0,1)*IF(ABS(D$3*10^12-$A71)>(D$3*10^12-$A70),$A70,$A71)) ->  | E70: 0 | F70: 0
A71: 120000 | B71: =IF(IF((B$3*10^12-$A72)*(B$3*10^12-$A71)*-1<0,0,1)*IF(ABS(B$3*10^12-$A72)>(B$3*10^12-$A71),$A71,$A72)=B72,0,IF((B$3*10^12-$A72)*(B$3*10^12-$A71)*-1<0,0,1)*IF(ABS(B$3*10^12-$A72)>(B$3*10^12-$A71),$A71,$A72)) ->  | C71: =IF(IF((C$3*10^12-$A72)*(C$3*10^12-$A71)*-1<0,0,1)*IF(ABS(C$3*10^12-$A72)>(C$3*10^12-$A71),$A71,$A72)=C72,0,IF((C$3*10^12-$A72)*(C$3*10^12-$A71)*-1<0,0,1)*IF(ABS(C$3*10^12-$A72)>(C$3*10^12-$A71),$A71,$A72)) ->  | E71: 0 | F71: =IF(IF((F$3*10^12-$A72)*(F$3*10^12-$A71)*-1<0,0,1)*IF(ABS(F$3*10^12-$A72)>(F$3*10^12-$A71),$A71,$A72)=F72,0,IF((F$3*10^12-$A72)*(F$3*10^12-$A71)*-1<0,0,1)*IF(ABS(F$3*10^12-$A72)>(F$3*10^12-$A71),$A71,$A72)) -> 0 | G71: =IF(IF((G$3*10^12-$A72)*(G$3*10^12-$A71)*-1<0,0,1)*IF(ABS(G$3*10^12-$A72)>(G$3*10^12-$A71),$A71,$A72)=G72,0,IF((G$3*10^12-$A72)*(G$3*10^12-$A71)*-1<0,0,1)*IF(ABS(G$3*10^12-$A72)>(G$3*10^12-$A71),$A71,$A72)) ->  | H71: =IF(IF((H$3*10^12-$A72)*(H$3*10^12-$A71)*-1<0,0,1)*IF(ABS(H$3*10^12-$A72)>(H$3*10^12-$A71),$A71,$A72)=H72,0,IF((H$3*10^12-$A72)*(H$3*10^12-$A71)*-1<0,0,1)*IF(ABS(H$3*10^12-$A72)>(H$3*10^12-$A71),$A71,$A72)) ->  | I71: =IF(IF((I$3*10^12-$A72)*(I$3*10^12-$A71)*-1<0,0,1)*IF(ABS(I$3*10^12-$A72)>(I$3*10^12-$A71),$A71,$A72)=I72,0,IF((I$3*10^12-$A72)*(I$3*10^12-$A71)*-1<0,0,1)*IF(ABS(I$3*10^12-$A72)>(I$3*10^12-$A71),$A71,$A72)) -> 
A72: 150000 | E72: 0 | F72: 0
A73: 180000 | E73: 0 | F73: 0
A74: 220000 | E74: 0 | F74: 0
A75: 270000 | E75: 0 | F75: 0
A76: 330000 | E76: 0 | F76: 0
A77: 390000 | E77: 0 | F77: 0
A78: 470000 | E78: 0 | F78: 0
A79: 560000 | E79: 0 | F79: 0
A80: 680000 | E80: 0 | F80: 0
A81: 820000 | E81: 0 | F81: 0
A82: 1000000 | E82: 0 | F82: 0
A83: 1200000 | E83: 0 | F83: 0
A84: 1500000 | E84: 0 | F84: 0
A85: 1800000 | E85: 0 | F85: 0
A86: 2200000 | E86: 0 | F86: 0
A87: 2700000 | E87: 0 | F87: 0
A88: 3300000 | E88: 0 | F88: 0
A89: 3900000 | E89: 0 | F89: 0
A90: 4700000 | E90: 0 | F90: 0
A91: 5600000 | E91: 0 | F91: 0
A92: 6800000 | E92: 0 | F92: 0
A93: 8200000 | E93: 0 | F93: 0
A94: 10000000 | E94: 0 | F94: 0
A95: 12000000 | E95: 0 | F95: 0
A96: 15000000 | E96: 0 | F96: 0
A97: 18000000 | E97: 0 | F97: 22000000
A98: 22000000 | E98: 0 | F98: 0
A99: =A87*10 -> 27000000 | E99: 0 | F99: 0
A100: 33000000 | E100: 33000000 | F100: 0
A101: 39000000 | E101: 0 | F101: 0
A102: 47000000 | E102: 0 | F102: 0
A103: 56000000 | E103: 0 | F103: =IF(IF((F$3*10^12-$A104)*(F$3*10^12-$A103)*-1<0,0,1)*IF(ABS(F$3*10^12-$A104)>(F$3*10^12-$A103),$A103,$A104)=F104,0,IF((F$3*10^12-$A104)*(F$3*10^12-$A103)*-1<0,0,1)*IF(ABS(F$3*10^12-$A104)>(F$3*10^12-$A103),$A103,$A104)) -> 0 | G103: =IF(IF((G$3*10^12-$A104)*(G$3*10^12-$A103)*-1<0,0,1)*IF(ABS(G$3*10^12-$A104)>(G$3*10^12-$A103),$A103,$A104)=G104,0,IF((G$3*10^12-$A104)*(G$3*10^12-$A103)*-1<0,0,1)*IF(ABS(G$3*10^12-$A104)>(G$3*10^12-$A103),$A103,$A104)) ->  | H103: =IF(IF((H$3*10^12-$A104)*(H$3*10^12-$A103)*-1<0,0,1)*IF(ABS(H$3*10^12-$A104)>(H$3*10^12-$A103),$A103,$A104)=H104,0,IF((H$3*10^12-$A104)*(H$3*10^12-$A103)*-1<0,0,1)*IF(ABS(H$3*10^12-$A104)>(H$3*10^12-$A103),$A103,$A104)) ->  | I103: =IF(IF((I$3*10^12-$A104)*(I$3*10^12-$A103)*-1<0,0,1)*IF(ABS(I$3*10^12-$A104)>(I$3*10^12-$A103),$A103,$A104)=I104,0,IF((I$3*10^12-$A104)*(I$3*10^12-$A103)*-1<0,0,1)*IF(ABS(I$3*10^12-$A104)>(I$3*10^12-$A103),$A103,$A104)) -> 
A104: 68000000 | E104: 0 | F104: 0
A105: 82000000 | E105: 0 | F105: 0
A106: 100000000 | E106: 0 | F106: 0
A107: 120000000 | E107: 0 | F107: 0
A108: 150000000 | E108: 0 | F108: 0
A109: 180000000 | E109: 0 | F109: 0
A110: 220000000 | E110: 0 | F110: 0
A111: 270000000 | E111: 0 | F111: 0
A112: 330000000 | E112: 0 | F112: 0
A113: 390000000 | E113: 0 | F113: 0
A114: 470000000 | E114: 0 | F114: 0
A115: 560000000 | E115: 0 | F115: 0
A116: 680000000 | E116: 0 | F116: 0
A117: 820000000 | E117: 0 | F117: 0
A118: 1000000000 | E118: 0 | F118: 0
A119: 1200000000 | E119: 0 | F119: 0
A120: 1500000000 | E120: 0 | F120: 0
A121: 1800000000 | E121: 0 | F121: 0
A122: 2200000000 | E122: 0 | F122: 0
A123: 2700000000 | E123: 0 | F123: 0
A124: 3300000000 | E124: 0 | F124: 0
A125: 3900000000 | E125: 0 | F125: 0
A126: 4700000000 | E126: 0 | F126: 0
A127: 5600000000 | E127: 0 | F127: 0
A128: 6800000000 | E128: 0 | F128: 0
A129: 8200000000 | E129: 0 | F129: 0
A130: 10000000000 | E130: 0 | F130: 0
A131: 12000000000 | E131: 0 | F131: 0
A132: 15000000000 | E132: 0 | F132: 0
A133: 18000000000 | E133: 0 | F133: 0 | J133: =IF(IF((J$3*10^12-$A134)*(J$3*10^12-$A133)*-1<0,0,1)*IF(ABS(J$3*10^12-$A134)>(J$3*10^12-$A133),$A133,$A134)=J134,0,IF((J$3*10^12-$A134)*(J$3*10^12-$A133)*-1<0,0,1)*IF(ABS(J$3*10^12-$A134)>(J$3*10^12-$A133),$A133,$A134)) -> 
A134: 22000000000 | E134: =IF(IF((E$3*10^12-$A135)*(E$3*10^12-$A134)*-1<0,0,1)*IF(ABS(E$3*10^12-$A135)>(E$3*10^12-$A134),$A134,$A135)=E135,0,IF((E$3*10^12-$A135)*(E$3*10^12-$A134)*-1<0,0,1)*IF(ABS(E$3*10^12-$A135)>(E$3*10^12-$A134),$A134,$A135)) -> 0 | F134: 0 | J134: =IF(IF((J$3*10^12-$A135)*(J$3*10^12-$A134)*-1<0,0,1)*IF(ABS(J$3*10^12-$A135)>(J$3*10^12-$A134),$A134,$A135)=J135,0,IF((J$3*10^12-$A135)*(J$3*10^12-$A134)*-1<0,0,1)*IF(ABS(J$3*10^12-$A135)>(J$3*10^12-$A134),$A134,$A135)) -> 
A135: 27000000000 | B135: =IF(IF((B$3*10^12-$A136)*(B$3*10^12-$A135)*-1<0,0,1)*IF(ABS(B$3*10^12-$A136)>(B$3*10^12-$A135),$A135,$A136)=B136,0,IF((B$3*10^12-$A136)*(B$3*10^12-$A135)*-1<0,0,1)*IF(ABS(B$3*10^12-$A136)>(B$3*10^12-$A135),$A135,$A136)) ->  | C135: =IF(IF((C$3*10^12-$A136)*(C$3*10^12-$A135)*-1<0,0,1)*IF(ABS(C$3*10^12-$A136)>(C$3*10^12-$A135),$A135,$A136)=C136,0,IF((C$3*10^12-$A136)*(C$3*10^12-$A135)*-1<0,0,1)*IF(ABS(C$3*10^12-$A136)>(C$3*10^12-$A135),$A135,$A136)) ->  | E135: 0 | F135: 0
A136: 33000000000 | E136: 0 | F136: 0
A137: 39000000000 | E137: 0 | F137: 0
A138: 47000000000 | E138: 0 | F138: 0
A139: 56000000000 | E139: 0 | F139: 0
A140: 68000000000 | E140: 0 | F140: 0
A141: 82000000000 | E141: 0 | F141: 0
A142: 100000000000 | E142: 0 | F142: 0
A143: 120000000000 | E143: 0 | F143: 0
A144: 150000000000 | E144: 0 | F144: 0
A145: 180000000000 | E145: 0 | F145: 0
A146: 220000000000 | E146: 0 | F146: 0
A147: 270000000000 | E147: 0 | F147: 0
A148: 330000000000 | E148: 0 | F148: 0
A149: 390000000000 | E149: 0 | F149: 0
A150: 470000000000 | E150: 0 | F150: 0
A151: 560000000000 | E151: 0 | F151: 0
A152: 680000000000 | E152: 0 | F152: 0
A153: 820000000000 | E153: 0 | F153: 0
A154: 1000000000000 | E154: 0 | F154: 0
A155: 1200000000000 | E155: 0 | F155: 0
A156: 1500000000000 | E156: 0 | F156: 0
A157: 1800000000000 | E157: 0 | F157: 0
A158: 2200000000000 | E158: 0 | F158: 0
A159: 2700000000000 | E159: 2700000000000 | F159: 2700000000000

Sheet Snubber (hidden)
C1: UNITS | D1: STD UNITS
A2: Frequency of Ringing | B2: 85 | C2: MHz | D2: =B2*1000000 -> 85000000 | E2: Hz
A3: SW capacitance | B3: 3000 | C3: pF | D3: =B3*0.000000000001 -> 3e-09 | E3: F
A4: Lpar | B4: =1000000000*1/((D2*2*3.14159)^2*D3) -> 1.168643077 | C4: nH | D4: =B4/1000000000 -> 1.168643077e-09 | E4: H
A5: Csnub | B5: =4*B3 -> 12000 | C5: pF | D5: =B5*0.000000000001 -> 1.2e-08 | E5: F
A6: Rsnub | B6: =SQRT(D4/D3) -> 0.6241375589 | C6: Ω | D6: =B6 -> 0.6241375589 | E6: Ω

Sheet Parallel Output Caps (hidden)
A4: Fsw | B4: =Fsw -> 400000
A6: C1 | B6: 20 | C6: uF | D6: =B6/1000000 -> 2e-05 | E6: F
A7: R1 | B7: 0.5 | C7: mOhms | D7: =B7/1000 -> 0.0005 | E7: Ohms
A9: C2 | B9: 68 | C9: uF | D9: =B9/1000000 -> 6.8e-05 | E9: F
A10: R2 | B10: 20 | C10: mOhms | D10: =B10/1000 -> 0.02 | E10: Ohms
A13: I1 | B13: =(D6/(D6+D9))*SQRT((D10*D9*B4)^2+1)/SQRT((((D7+D10)*D6*D9/(D9+D6))*B4)^2+1) -> 0.256672574 | C13: %
A14: I2 | B14: =1-B13 -> 0.743327426 | C14: %
A16: I1 | B16: =B13*(Iripple1/(2*SQRT(3))) ->  | C16: A
A17: I2 | B17: =B14*(Iripple1/(2*SQRT(3))) ->  | C17: A
